Workbook

Sheet 江西余干库
A1: 山海货物出库明细
A2: 序号 | B2: 名称 | C2: 产品名称 | D2: 规格 | E2: 数量 | F2: 单价/元 | G2: 金额/元 | H2: 产品厂家 | I2: 仓库地点 | J2: 到达地点 | K2: 出库车牌号 | L2: 时间 | M2: 备注
A3: 1 | B3: 逆变器 | C3: 逆变器-36 | D3: 逆变器-36 | E3: 5 | F3: 8525 | G3: =F3*E3 -> 42625 | H3: 山海新能-锦浪 | I3: 江西余干库 | J3: 海南万物生长新能源科技有限公司 | L3: 2023-07-13
A4: 2 | B4: 逆变器 | C4: 逆变器-20 | D4: 逆变器-20 | E4: 1 | F4: 4510 | G4: 4510 | H4: 山海新能-锦浪 | I4: 江西余干库 | J4: 海南万物生长新能源科技有限公司 | L4: 2023-07-13
A5: 3 | B5: 逆变器 | C5: 逆变器-25 | D5: 逆变器-25 | E5: 5 | F5: 5170 | G5: 25850 | H5: 山海新能-锦浪 | I5: 江西余干库 | J5: 海南万物生长新能源科技有限公司 | L5: 2023-07-13
A6: 4 | B6: 逆变器 | C6: 逆变器-30 | D6: 逆变器-30 | E6: 4 | F6: 7700 | G6: 30800 | H6: 山海新能-锦浪 | I6: 江西余干库 | J6: 海南万物生长新能源科技有限公司 | L6: 2023-07-13
A7: 5 | B7: 组件 | C7: 东方日升660双玻 | D7: 东方日升660双玻 | E7: 736 | F7: 1082.4 | G7: 796646.4 | H7: 山海新能-东方日升 | I7: 江西余干库 | J7: 海南万物生长新能源科技有限公司 | L7: 2023-07-13
A8: 6 | B8: 逆变器 | C8: 逆变器-36 | D8: 逆变器-36 | E8: 2 | F8: 8525 | G8: 17050 | H8: 山海新能-锦浪 | I8: 江西余干库 | J8: 海南万物生长新能源科技有限公司 | L8: 2023-07-18
A9: 7 | B9: 组件 | C9: 东方日升660双玻 | D9: 东方日升660双玻 | E9: 384 | F9: 1082.4 | G9: 415641.6 | H9: 山海新能-东方日升 | I9: 江西余干库 | J9: 海南万物生长新能源科技有限公司 | L9: 2023-07-18
A10: 8 | B10: 逆变器 | C10: 逆变器-25 | D10: 逆变器-25 | E10: 2 | F10: 5170 | G10: 10340 | H10: 山海新能-锦浪 | I10: 江西余干库 | J10: 海南万物生长新能源科技有限公司 | L10: 2023-07-18
A11: 9 | B11: 逆变器 | C11: 逆变器-20 | D11: 逆变器-20 | E11: 1 | F11: 4510 | G11: 4510 | H11: 山海新能-锦浪 | I11: 江西余干库 | J11: 海南万物生长新能源科技有限公司 | L11: 2023-07-18
A12: 10 | B12: 逆变器 | C12: 逆变器-30 | D12: 逆变器-30 | E12: 3 | F12: 7700 | G12: 23100 | H12: 山海新能-锦浪 | I12: 江西余干库 | J12: 海南万物生长新能源科技有限公司 | L12: 2023-07-18
A13: 11 | B13: 逆变器 | C13: 逆变器-30 | D13: 逆变器-30 | E13: 3 | F13: 7700 | G13: 23100 | H13: 山海新能-锦浪 | I13: 江西余干库 | J13: 南昌恩悦新能源有限公司 | L13: 2023-07-18
A14: 12 | B14: 逆变器 | C14: 逆变器-36 | D14: 逆变器-36 | E14: 2 | F14: 8525 | G14: 17050 | H14: 山海新能-锦浪 | I14: 江西余干库 | J14: 南昌恩悦新能源有限公司 | L14: 2023-07-18
A15: 13 | B15: 逆变器 | C15: 逆变器-20 | D15: 逆变器-20 | E15: 1 | F15: 4510 | G15: 4510 | H15: 山海新能-锦浪 | I15: 江西余干库 | J15: 南昌恩悦新能源有限公司 | L15: 2023-07-18
A16: 14 | B16: 组件 | C16: 东方日升660双玻 | D16: 东方日升660双玻 | E16: 384 | F16: 1082.4 | G16: 415641.6 | H16: 山海新能-东方日升 | I16: 江西余干库 | J16: 南昌恩悦新能源有限公司 | L16: 2023-07-18
A17: 15 | B17: 逆变器 | C17: 逆变器-25 | D17: 逆变器-25 | E17: 2 | F17: 5170 | G17: 10340 | H17: 山海新能-锦浪 | I17: 江西余干库 | J17: 南昌恩悦新能源有限公司 | L17: 2023-07-18
A18: 16 | B18: 组件 | C18: 东方日升660双玻 | D18: 东方日升660双玻 | E18: 0 | F18: 1190.64 | G18: 0 | H18: 山海新能-东方日升 | I18: 江西余干库 | J18: 南昌恩悦新能源有限公司 | L18: 2023-07-19
A19: 17 | B19: 逆变器 | C19: 逆变器-25 | D19: 逆变器-25 | E19: 1 | F19: 5170 | G19: 5170 | H19: 山海新能-锦浪 | I19: 江西余干库 | J19: 江西创安新能源有限公司 | L19: 2023-07-20
A20: 18 | B20: 逆变器 | C20: 逆变器-30 | D20: 逆变器-30 | E20: 4 | F20: 7700 | G20: 30800 | H20: 山海新能-锦浪 | I20: 江西余干库 | J20: 江西创安新能源有限公司 | L20: 2023-07-20
A21: 19 | B21: 组件 | C21: 东方日升660双玻 | D21: 东方日升660双玻 | E21: 224 | F21: 1082.4 | G21: 242457.6 | H21: 山海新能-东方日升 | I21: 江西余干库 | J21: 江西创安新能源有限公司 | L21: 2023-07-20
A22: 20 | B22: 逆变器 | C22: 逆变器-15 | D22: 逆变器-15 | E22: 1 | F22: 4295.5 | G22: 4295.5 | H22: 山海新能-锦浪 | I22: 江西余干库 | J22: 江西大海光伏工程有限公司 | L22: 2023-07-27
A23: 21 | B23: 组件 | C23: 东方日升660双玻 | D23: 东方日升660双玻 | E23: 96 | F23: 1082.4 | G23: 103910.4 | H23: 山海新能-东方日升 | I23: 江西余干库 | J23: 余干县鑫维新能源有限公司 | L23: 2023-07-28T16:13:25
A24: 22 | B24: 逆变器 | C24: 逆变器-36 | D24: 逆变器-36 | E24: 1 | F24: 8525 | G24: 8525 | H24: 山海新能-锦浪 | I24: 江西余干库 | J24: 余干县鑫维新能源有限公司 | L24: 2023-07-28T16:13:25
A25: 23 | B25: 逆变器 | C25: 逆变器-25 | D25: 逆变器-25 | E25: 1 | F25: 5170 | G25: 5170 | H25: 山海新能-锦浪 | I25: 江西余干库 | J25: 余干县鑫维新能源有限公司 | L25: 2023-07-28T16:13:25
A26: 24 | B26: 逆变器 | C26: 逆变器-25 | D26: 逆变器-25 | E26: 1 | F26: 5170 | G26: 5170 | H26: 山海新能-锦浪 | I26: 江西余干库 | J26: 上饶市学立新能源有限公司 | L26: 2023-07-28T16:44:36
A27: 25 | B27: 组件 | C27: 东方日升660双玻 | D27: 东方日升660双玻 | E27: 192 | F27: 1082.4 | G27: 207820.8 | H27: 山海新能-东方日升 | I27: 江西余干库 | J27: 上饶市学立新能源有限公司 | L27: 2023-07-28T16:44:36
A28: 26 | B28: 逆变器 | C28: 逆变器-30 | D28: 逆变器-30 | E28: 2 | F28: 7700 | G28: 15400 | H28: 山海新能-锦浪 | I28: 江西余干库 | J28: 上饶市学立新能源有限公司 | L28: 2023-07-28T16:44:36
A29: 27 | B29: 逆变器 | C29: 逆变器-36 | D29: 逆变器-36 | E29: 1 | F29: 8525 | G29: 8525 | H29: 山海新能-锦浪 | I29: 江西余干库 | J29: 上饶市学立新能源有限公司 | L29: 2023-07-28T16:44:36
A30: 28 | B30: 组件 | C30: 东方日升660双玻 | D30: 东方日升660双玻 | E30: 192 | F30: 1082.4 | G30: 207820.8 | H30: 山海新能-东方日升 | I30: 江西余干库 | J30: 余干县鑫维新能源有限公司 | L30: 2023-07-29T15:17:06
A31: 29 | B31: 逆变器 | C31: 逆变器-36 | D31: 逆变器-36 | E31: 1 | F31: 8525 | G31: 8525 | H31: 山海新能-锦浪 | I31: 江西余干库 | J31: 余干县鑫维新能源有限公司 | L31: 2023-07-29T15:17:06
A32: 30 | B32: 逆变器 | C32: 逆变器-25 | D32: 逆变器-25 | E32: 1 | F32: 5170 | G32: 5170 | H32: 山海新能-锦浪 | I32: 江西余干库 | J32: 余干县鑫维新能源有限公司 | L32: 2023-07-29T15:17:06
A33: 31 | B33: 逆变器 | C33: 逆变器-30 | D33: 逆变器-30 | E33: 2 | F33: 7700 | G33: 15400 | H33: 山海新能-锦浪 | I33: 江西余干库 | J33: 余干县鑫维新能源有限公司 | L33: 2023-07-29T15:17:06
A34: 32 | B34: 逆变器 | C34: 逆变器-36 | D34: 逆变器-36 | E34: 1 | F34: 8525 | G34: 8525 | H34: 山海新能-锦浪 | I34: 江西余干库 | J34: 上饶市学立新能源有限公司 | L34: 2023-07-29T15:46:42
A35: 33 | B35: 逆变器 | C35: 逆变器-25 | D35: 逆变器-25 | E35: 1 | F35: 5170 | G35: 5170 | H35: 山海新能-锦浪 | I35: 江西余干库 | J35: 上饶市学立新能源有限公司 | L35: 2023-07-29T15:46:42
A36: 34 | B36: 逆变器 | C36: 逆变器-30 | D36: 逆变器-30 | E36: 2 | F36: 7700 | G36: 15400 | H36: 山海新能-锦浪 | I36: 江西余干库 | J36: 上饶市学立新能源有限公司 | L36: 2023-07-29T15:46:42
A37: 35 | B37: 组件 | C37: 东方日升660双玻 | D37: 东方日升660双玻 | E37: 192 | F37: 1082.4 | G37: 207820.8 | H37: 山海新能-东方日升 | I37: 江西余干库 | J37: 上饶市学立新能源有限公司 | L37: 2023-07-29T15:46:42
A38: 36 | B38: 逆变器 | C38: 逆变器-36 | D38: 逆变器-36 | E38: 1 | F38: 8525 | G38: 8525 | H38: 山海新能-锦浪 | I38: 江西余干库 | J38: 余干县鑫维新能源有限公司 | L38: 2023-07-29T16:15:14
A39: 37 | B39: 逆变器 | C39: 逆变器-25 | D39: 逆变器-25 | E39: 1 | F39: 5170 | G39: 5170 | H39: 山海新能-锦浪 | I39: 江西余干库 | J39: 余干县鑫维新能源有限公司 | L39: 2023-07-29T16:15:14
A40: 38 | B40: 组件 | C40: 东方日升660双玻 | D40: 东方日升660双玻 | E40: 96 | F40: 1082.4 | G40: 103910.4 | H40: 山海新能-东方日升 | I40: 江西余干库 | J40: 余干县鑫维新能源有限公司 | L40: 2023-07-29T16:15:14
A41: 39 | B41: 逆变器 | C41: 逆变器-30 | D41: 逆变器-30 | E41: 4 | F41: 7700 | G41: 30800 | H41: 山海新能-锦浪 | I41: 江西余干库 | J41: 江西大海光伏工程有限公司 | L41: 2023-08-01T15:08:54
A42: 40 | B42: 组件 | C42: 东方日升660双玻 | D42: 东方日升660双玻 | E42: 384 | F42: 1082.4 | G42: 415641.6 | H42: 山海新能-东方日升 | I42: 江西余干库 | J42: 江西大海光伏工程有限公司 | L42: 2023-08-01T15:08:54
A43: 41 | B43: 逆变器 | C43: 逆变器-25 | D43: 逆变器-25 | E43: 3 | F43: 5170 | G43: 15510 | H43: 山海新能-锦浪 | I43: 江西余干库 | J43: 江西大海光伏工程有限公司 | L43: 2023-08-01T15:08:54
A44: 42 | B44: 逆变器 | C44: 逆变器-36 | D44: 逆变器-36 | E44: 1 | F44: 8525 | G44: 8525 | H44: 山海新能-锦浪 | I44: 江西余干库 | J44: 江西大海光伏工程有限公司 | L44: 2023-08-01T15:08:54
A45: 43 | B45: 逆变器 | C45: 逆变器-30 | D45: 逆变器-30 | E45: 4 | F45: 8470 | G45: 33880 | H45: 山海新能-锦浪 | I45: 江西余干库 | J45: 江西大海光伏工程有限公司 | L45: 2023-08-04
A46: 44 | B46: 逆变器 | C46: 逆变器-20 | D46: 逆变器-20 | E46: 1 | F46: 4961 | G46: 4961 | H46: 山海新能-锦浪 | I46: 江西余干库 | J46: 江西大海光伏工程有限公司 | L46: 2023-08-04
A47: 45 | B47: 逆变器 | C47: 逆变器-36 | D47: 逆变器-36 | E47: 1 | F47: 9377.5 | G47: 9377.5 | H47: 山海新能-锦浪 | I47: 江西余干库 | J47: 江西大海光伏工程有限公司 | L47: 2023-08-04
A48: 46 | B48: 逆变器 | C48: 逆变器-25 | D48: 逆变器-25 | E48: 3 | F48: 5687 | G48: 17061 | H48: 山海新能-锦浪 | I48: 江西余干库 | J48: 江西大海光伏工程有限公司 | L48: 2023-08-04
A49: 47 | B49: 组件 | C49: 东方日升660双玻 | D49: 东方日升660双玻 | E49: 372 | F49: 1190.64 | G49: 442918.08 | H49: 山海新能-东方日升 | I49: 江西余干库 | J49: 江西大海光伏工程有限公司 | L49: 2023-08-04
A50: 48 | B50: 组件 | C50: 东方日升660双玻 | D50: 东方日升660双玻 | E50: 12 | F50: 1082.4 | G50: 12988.8 | H50: 山海新能-东方日升 | I50: 江西余干库 | J50: 江西大海光伏工程有限公司 | L50: 2023-08-04T09:43:51
A51: 49 | B51: 逆变器 | C51: 逆变器-36 | D51: 逆变器-36 | E51: 5 | F51: 9377.5 | G51: 46887.5 | H51: 山海新能-锦浪 | I51: 江西余干库 | J51: 江西大海光伏工程有限公司 | L51: 2023-08-11
A52: 50 | B52: 组件 | C52: 东方日升660双玻 | D52: 东方日升660双玻 | E52: 448 | F52: 1190.64 | G52: 533406.72 | H52: 山海新能-东方日升 | I52: 江西余干库 | J52: 江西大海光伏工程有限公司 | L52: 2023-08-11
A53: 51 | B53: 逆变器 | C53: 逆变器-25 | D53: 逆变器-25 | E53: 3 | F53: 5687 | G53: 17061 | H53: 山海新能-锦浪 | I53: 江西余干库 | J53: 江西大海光伏工程有限公司 | L53: 2023-08-11
A54: 52 | B54: 逆变器 | C54: 逆变器-30 | D54: 逆变器-30 | E54: 1 | F54: 8470 | G54: 8470 | H54: 山海新能-锦浪 | I54: 江西余干库 | J54: 江西大海光伏工程有限公司 | L54: 2023-08-11
A55: 53 | B55: 逆变器 | C55: 逆变器-25 | D55: 逆变器-25 | E55: 1 | F55: 5170 | G55: 5170 | H55: 山海新能-锦浪 | I55: 江西余干库 | J55: 南昌恩悦新能源有限公司 | L55: 2023-08-12T11:17:34
A56: 54 | B56: 组件 | C56: 东方日升660双玻 | D56: 东方日升660双玻 | E56: 448 | F56: 1082.4 | G56: 484915.2 | H56: 山海新能-东方日升 | I56: 江西余干库 | J56: 南昌恩悦新能源有限公司 | L56: 2023-08-14T10:21:28
A57: 55 | B57: 逆变器 | C57: 逆变器-36 | D57: 逆变器-36 | E57: 4 | F57: 8525 | G57: 34100 | H57: 山海新能-锦浪 | I57: 江西余干库 | J57: 南昌恩悦新能源有限公司 | L57: 2023-08-14T10:21:28
A58: 56 | B58: 逆变器 | C58: 逆变器-30 | D58: 逆变器-30 | E58: 3 | F58: 7700 | G58: 23100 | H58: 山海新能-锦浪 | I58: 江西余干库 | J58: 南昌恩悦新能源有限公司 | L58: 2023-08-14T10:21:28
A59: 57 | B59: 逆变器 | C59: 逆变器-25 | D59: 逆变器-25 | E59: 1 | F59: 5170 | G59: 5170 | H59: 山海新能-锦浪 | I59: 江西余干库 | J59: 南昌恩悦新能源有限公司 | L59: 2023-08-14T10:21:28
A60: 58 | B60: 逆变器 | C60: 逆变器-36 | D60: 逆变器-36 | E60: 1 | F60: 9377.5 | G60: 9377.5 | H60: 山海新能-锦浪 | I60: 江西余干库 | J60: 江西大海光伏工程有限公司 | L60: 2023-08-21
A61: 59 | B61: 组件 | C61: 东方日升660双玻 | D61: 东方日升660双玻 | E61: 352 | F61: 1082.4 | G61: 381004.8 | H61: 山海新能-东方日升 | I61: 江西余干库 | J61: 江西大海光伏工程有限公司 | L61: 2023-08-21T17:01:07
A62: 60 | B62: 逆变器 | C62: 逆变器-20 | D62: 逆变器-20 | E62: 1 | F62: 4510 | G62: 4510 | H62: 山海新能-锦浪 | I62: 江西余干库 | J62: 江西大海光伏工程有限公司 | L62: 2023-08-21T17:01:07
A63: 61 | B63: 逆变器 | C63: 逆变器-30 | D63: 逆变器-30 | E63: 3 | F63: 7700 | G63: 23100 | H63: 山海新能-锦浪 | I63: 江西余干库 | J63: 江西大海光伏工程有限公司 | L63: 2023-08-21T17:01:07
A64: 62 | B64: 逆变器 | C64: 逆变器-36 | D64: 逆变器-36 | E64: 2 | F64: 8525 | G64: 17050 | H64: 山海新能-锦浪 | I64: 江西余干库 | J64: 江西大海光伏工程有限公司 | L64: 2023-08-21T17:01:07
A65: 63 | B65: 逆变器 | C65: 逆变器-40 | D65: 逆变器-40 | E65: 1 | F65: 8690 | G65: 8690 | H65: 山海新能-锦浪 | I65: 江西余干库 | J65: 江西大海光伏工程有限公司 | L65: 2023-08-21T17:01:07
A66: 64 | B66: 逆变器 | C66: 逆变器-25 | D66: 逆变器-25 | E66: 2 | F66: 5170 | G66: 10340 | H66: 山海新能-锦浪 | I66: 江西余干库 | J66: 江西大海光伏工程有限公司 | L66: 2023-08-22T17:19:34
A67: 65 | B67: 逆变器 | C67: 逆变器-30 | D67: 逆变器-30 | E67: 7 | F67: 7700 | G67: =F67*E67 -> 53900 | H67: 山海新能-锦浪 | I67: 江西余干库 | J67: 江西大海光伏工程有限公司 | L67: 2023-08-22T17:19:34
A68: 66 | B68: 逆变器 | C68: 逆变器-36 | D68: 逆变器-36 | E68: 2 | F68: 8525 | G68: 17050 | H68: 山海新能-锦浪 | I68: 江西余干库 | J68: 江西大海光伏工程有限公司 | L68: 2023-08-22T17:19:34
A69: 67 | B69: 逆变器 | C69: 逆变器-40 | D69: 逆变器-40 | E69: 2 | F69: 8690 | G69: 17380 | H69: 山海新能-锦浪 | I69: 江西余干库 | J69: 江西大海光伏工程有限公司 | L69: 2023-08-22T17:19:34
A70: 68 | B70: 组件 | C70: 东方日升660双玻 | D70: 东方日升660双玻 | E70: 96 | F70: 1082.4 | G70: 103910.4 | H70: 山海新能-东方日升 | I70: 江西余干库 | J70: 余干县鑫维新能源有限公司 | L70: 2023-08-23T11:46:45
A71: 69 | B71: 逆变器 | C71: 逆变器-50 | D71: 逆变器-50 | E71: 1 | F71: 11990 | G71: 11990 | H71: 山海新能-锦浪 | I71: 江西余干库 | J71: 余干县鑫维新能源有限公司 | L71: 2023-08-23T11:46:45
A72: 70 | B72: 组件 | C72: 东方日升660双玻 | D72: 东方日升660双玻 | E72: 384 | F72: 1082.4 | G72: 415641.6 | H72: 山海新能-东方日升 | I72: 江西余干库 | J72: 江西大海光伏工程有限公司 | L72: 2023-09-01
A73: 71 | B73: 组件 | C73: 东方日升660双玻 | D73: 东方日升660双玻 | E73: 160 | F73: 1082.4 | G73: 173184 | H73: 东方日升 | I73: 江西余干库 | J73: 江西大海光伏工程有限公司 | L73: 2023-09-09
A74: 72 | B74: 逆变器 | C74: 逆变器-25 | D74: 逆变器-25 | E74: 2 | F74: 5170 | G74: 10340 | H74: 锦浪 | I74: 江西余干库 | J74: 江西大海光伏工程有限公司 | L74: 2023-09-09
A75: 73 | B75: 逆变器 | C75: 逆变器-30 | D75: 逆变器-30 | E75: 1 | F75: 7700 | G75: 7700 | H75: 锦浪 | I75: 江西余干库 | J75: 江西大海光伏工程有限公司 | L75: 2023-09-09
A76: 74 | B76: 逆变器 | C76: 逆变器-36 | D76: 逆变器-36 | E76: 1 | F76: 8525 | G76: 8525 | H76: 锦浪 | I76: 江西余干库 | J76: 江西大海光伏工程有限公司 | L76: 2023-09-09
A77: 75 | B77: 逆变器 | C77: 逆变器-50 | D77: 逆变器-50 | E77: 1 | F77: 11990 | G77: 11990 | H77: 锦浪 | I77: 江西余干库 | J77: 江西大海光伏工程有限公司 | L77: 2023-09-09
A78: 76 | B78: 组件 | C78: 东方日升660双玻 | D78: 东方日升660双玻 | E78: 544 | F78: 1082.4 | G78: 588825.6 | H78: 东方日升 | I78: 江西余干库 | J78: 江西大海光伏工程有限公司 | L78: 2023-09-14
A79: 77 | B79: 逆变器 | C79: 逆变器-25 | D79: 逆变器-25 | E79: 5 | F79: 5170 | G79: 25850 | H79: 锦浪 | I79: 江西余干库 | J79: 江西大海光伏工程有限公司 | L79: 2023-09-14
A80: 78 | B80: 逆变器 | C80: 逆变器-30 | D80: 逆变器-30 | E80: 4 | F80: 7700 | G80: 30800 | H80: 锦浪 | I80: 江西余干库 | J80: 江西大海光伏工程有限公司 | L80: 2023-09-14
A81: 79 | B81: 逆变器 | C81: 逆变器-50 | D81: 逆变器-50 | E81: 1 | F81: 11990 | G81: 11990 | H81: 锦浪 | I81: 江西余干库 | J81: 江西大海光伏工程有限公司 | L81: 2023-09-14
A82: 80 | B82: 组件 | C82: 东方日升660双玻 | D82: 东方日升660双玻 | E82: 160 | F82: 1082.4 | G82: 173184 | H82: 东方日升 | I82: 江西余干库 | J82: 江西大海光伏工程有限公司 | L82: 2023-09-14
A83: 81 | B83: 逆变器 | C83: 逆变器-30 | D83: 逆变器-30 | E83: 1 | F83: 7700 | G83: 7700 | H83: 锦浪 | I83: 江西余干库 | J83: 江西大海光伏工程有限公司 | L83: 2023-09-14
A84: 82 | B84: 组件 | C84: 东方日升660双玻 | D84: 东方日升660双玻 | E84: 160 | F84: 1082.4 | G84: =F84*E84 -> 173184 | H84: 东方日升 | I84: 江西余干库 | J84: 江西大海光伏工程有限公司 | L84: 2023-09-18
A85: 83 | B85: 逆变器 | C85: 逆变器-25 | D85: 逆变器-25 | E85: 1 | F85: 5170 | G85: 5170 | H85: 锦浪 | I85: 江西余干库 | J85: 江西大海光伏工程有限公司 | L85: 2023-09-18
A86: 84 | B86: 逆变器 | C86: 逆变器-30 | D86: 逆变器-30 | E86: 1 | F86: 7700 | G86: 7700 | H86: 锦浪 | I86: 江西余干库 | J86: 江西大海光伏工程有限公司 | L86: 2023-09-18
A87: 85 | B87: 逆变器 | C87: 逆变器-36 | D87: 逆变器-36 | E87: 1 | F87: 8525 | G87: 8525 | H87: 锦浪 | I87: 江西余干库 | J87: 江西大海光伏工程有限公司 | L87: 2023-09-18
A88: 86 | G88: 0
A89: 87 | G89: 0
A90: 88 | G90: 0
A91: 89 | G91: 0
A92: 90 | G92: 0
A93: 91

Sheet 庄河荣名库
A1: 山海货物出库明细
A2: 序号 | B2: 名称 | C2: 产品名称 | D2: 规格 | E2: 数量 | F2: 单价/元 | G2: 金额/元 | H2: 产品厂家 | I2: 仓库地点 | J2: 到达地点 | K2: 出库车牌号 | L2: 时间 | M2: 备注
A3: 1 | B3: 逆变器 | C3: 逆变器-30 | D3: 逆变器-30 | E3: 1 | F3: 8470 | G3: =E3*F3 -> 8470 | H3: 山海新能-锦浪 | I3: 庄河荣名库 | J3: 大连竣泰通信工程有限公司 | L3: 2023-07-06
A4: 2 | B4: 逆变器 | C4: 逆变器-30 | D4: 逆变器-30 | E4: 1 | F4: 8470 | G4: =E4*F4 -> 8470 | H4: 山海新能-锦浪 | I4: 庄河荣名库 | J4: 大连竣泰通信工程有限公司 | L4: 2023-07-06
A5: 3 | B5: 组件 | C5: 东方日升600 | D5: 东方日升600 | E5: 320 | F5: 1108.8 | G5: 354816 | H5: 山海新能-东方日升 | I5: 庄河荣名库 | J5: 潍坊地球村能源有限公司 | L5: 2023-07-07
A6: 4 | B6: 逆变器 | C6: 逆变器-13 | D6: 逆变器-13 | E6: 24 | F6: 3520 | G6: 84480 | H6: 山海新能-锦浪 | I6: 庄河荣名库 | J6: 大连竣泰通信工程有限公司 | L6: 2023-07-07
A7: 5 | B7: 逆变器 | C7: 逆变器-15 | D7: 逆变器-15 | E7: 2 | F7: 3905 | G7: 7810 | H7: 山海新能-锦浪 | I7: 庄河荣名库 | J7: 潍坊地球村能源有限公司 | L7: 2023-07-07
A8: 6 | B8: 逆变器 | C8: 逆变器-20 | D8: 逆变器-20 | E8: 40 | F8: 4510 | G8: 180400 | H8: 山海新能-锦浪 | I8: 庄河荣名库 | J8: 大连竣泰通信工程有限公司 | L8: 2023-07-07
A9: 7 | B9: 逆变器 | C9: 逆变器-20 | D9: 逆变器-20 | E9: 1 | F9: 4510 | G9: 4510 | H9: 山海新能-锦浪 | I9: 庄河荣名库 | J9: 潍坊地球村能源有限公司 | L9: 2023-07-07
A10: 8 | B10: 逆变器 | C10: 逆变器-25 | D10: 逆变器-25 | E10: 30 | F10: 5170 | G10: 155100 | H10: 山海新能-锦浪 | I10: 庄河荣名库 | J10: 大连竣泰通信工程有限公司 | L10: 2023-07-07
A11: 9 | B11: 逆变器 | C11: 逆变器-25 | D11: 逆变器-25 | E11: 8 | F11: 5170 | G11: 41360 | H11: 山海新能-锦浪 | I11: 庄河荣名库 | J11: 潍坊地球村能源有限公司 | L11: 2023-07-07
A12: 10 | B12: 逆变器 | C12: 逆变器-30 | D12: 逆变器-30 | E12: 2 | F12: 7700 | G12: 15400 | H12: 山海新能-锦浪 | I12: 庄河荣名库 | J12: 潍坊地球村能源有限公司 | L12: 2023-07-07
A13: 11 | B13: 逆变器 | C13: 逆变器-30 | D13: 逆变器-30 | E13: 1 | F13: 8470 | G13: 8470 | H13: 山海新能-锦浪 | I13: 庄河荣名库 | J13: 大连竣泰通信工程有限公司 | L13: 2023-07-07
A14: 12 | B14: 逆变器 | C14: 逆变器-36 | D14: 逆变器-36 | E14: 1 | F14: 8525 | G14: 8525 | H14: 山海新能-锦浪 | I14: 庄河荣名库 | J14: 潍坊地球村能源有限公司 | L14: 2023-07-07
A15: 13 | B15: 逆变器 | C15: 逆变器-50 | D15: 逆变器-50 | E15: 1 | F15: 11990 | G15: 11990 | H15: 山海新能-锦浪 | I15: 庄河荣名库 | J15: 潍坊地球村能源有限公司 | L15: 2023-07-07
A16: 14 | B16: 逆变器 | C16: 逆变器-30 | D16: 逆变器-30 | E16: 1 | F16: 8470 | G16: 8470 | H16: 山海新能-锦浪 | I16: 庄河荣名库 | J16: 大连竣泰通信工程有限公司 | L16: 2023-07-08
A17: 15 | B17: 组件 | C17: 东方日升600 | D17: 东方日升600 | E17: 3040 | F17: 1108.8 | G17: 3370752 | H17: 山海新能-东方日升 | I17: 庄河荣名库 | J17: 辽宁圣东建筑工程有限公司 | L17: 2023-07-10
A18: 16 | B18: 逆变器 | C18: 逆变器-13 | D18: 逆变器-13 | E18: 6 | F18: 3520 | G18: 21120 | H18: 山海新能-锦浪 | I18: 庄河荣名库 | J18: 辽宁圣东建筑工程有限公司 | L18: 2023-07-10
A19: 17 | B19: 逆变器 | C19: 逆变器-15 | D19: 逆变器-15 | E19: 20 | F19: 3905 | G19: 78100 | H19: 山海新能-锦浪 | I19: 庄河荣名库 | J19: 辽宁圣东建筑工程有限公司 | L19: 2023-07-10
A20: 18 | B20: 逆变器 | C20: 逆变器-20 | D20: 逆变器-20 | E20: 10 | F20: 4510 | G20: 45100 | H20: 山海新能-锦浪 | I20: 庄河荣名库 | J20: 辽宁圣东建筑工程有限公司 | L20: 2023-07-10
A21: 19 | B21: 逆变器 | C21: 逆变器-30 | D21: 逆变器-30 | E21: 10 | F21: 7700 | G21: 77000 | H21: 山海新能-锦浪 | I21: 庄河荣名库 | J21: 辽宁圣东建筑工程有限公司 | L21: 2023-07-10
A22: 20 | B22: 逆变器 | C22: 逆变器-33 | D22: 逆变器-33 | E22: 10 | F22: 8195 | G22: 81950 | H22: 山海新能-锦浪 | I22: 庄河荣名库 | J22: 辽宁圣东建筑工程有限公司 | L22: 2023-07-10
A23: 21 | B23: 逆变器 | C23: 逆变器-40 | D23: 逆变器-40 | E23: 10 | F23: 8690 | G23: 86900 | H23: 山海新能-锦浪 | I23: 庄河荣名库 | J23: 辽宁圣东建筑工程有限公司 | L23: 2023-07-10
A24: 22 | B24: 组件 | C24: 东方日升600 | D24: 东方日升600 | E24: 32 | F24: 1219.68 | G24: 39029.76 | H24: 山海新能-东方日升 | I24: 庄河荣名库 | J24: 大连竣泰通信工程有限公司 | L24: 2023-07-11
A25: 23 | B25: 组件 | C25: 东方日升600 | D25: 东方日升600 | E25: 32 | F25: 1219.68 | G25: 39029.76 | H25: 山海新能-东方日升 | I25: 庄河荣名库 | J25: 大连竣泰通信工程有限公司 | L25: 2023-07-11
A26: 24 | B26: 组件 | C26: 东方日升600 | D26: 东方日升600 | E26: 32 | F26: 1219.68 | G26: 39029.76 | H26: 山海新能-东方日升 | I26: 庄河荣名库 | J26: 大连竣泰通信工程有限公司 | L26: 2023-07-11
A27: 25 | B27: 组件 | C27: 东方日升600 | D27: 东方日升600 | E27: 32 | F27: 1219.68 | G27: 39029.76 | H27: 山海新能-东方日升 | I27: 庄河荣名库 | J27: 大连竣泰通信工程有限公司 | L27: 2023-07-11
A28: 26 | B28: 组件 | C28: 东方日升600 | D28: 东方日升600 | E28: 64 | F28: 1219.68 | G28: 78059.52 | H28: 山海新能-东方日升 | I28: 庄河荣名库 | J28: 大连竣泰通信工程有限公司 | L28: 2023-07-11
A29: 27 | B29: 逆变器 | C29: 逆变器-20 | D29: 逆变器-20 | E29: 1 | F29: 4961 | G29: 4961 | H29: 山海新能-锦浪 | I29: 庄河荣名库 | J29: 大连竣泰通信工程有限公司 | L29: 2023-07-11
A30: 28 | B30: 组件 | C30: 东方日升600 | D30: 东方日升600 | E30: 32 | F30: 1219.68 | G30: 39029.76 | H30: 山海新能-东方日升 | I30: 庄河荣名库 | J30: 潍坊地球村能源有限公司 | L30: 2023-07-12
A31: 29 | B31: 逆变器 | C31: 逆变器-13 | D31: 逆变器-13 | E31: 1 | F31: 3872 | G31: 3872 | H31: 山海新能-锦浪 | I31: 庄河荣名库 | J31: 潍坊地球村能源有限公司 | L31: 2023-07-12
A32: 30 | B32: 逆变器 | C32: 逆变器-15 | D32: 逆变器-15 | E32: 2 | F32: 3905 | G32: 7810 | H32: 山海新能-锦浪 | I32: 庄河荣名库 | J32: 安阳荣名库 | L32: 2023-07-12
A33: 31 | B33: 逆变器 | C33: 逆变器-33 | D33: 逆变器-33 | E33: 30 | F33: 7260 | G33: 217800 | H33: 禾望 | I33: 庄河荣名库 | J33: 锦浪科技股份有限公司 | L33: 2023-07-12
A34: 32 | B34: 组件 | C34: 东方日升600 | D34: 东方日升600 | E34: 32 | F34: 1219.68 | G34: 39029.76 | H34: 山海新能-东方日升 | I34: 庄河荣名库 | J34: 大连竣泰通信工程有限公司 | L34: 2023-07-13
A35: 33 | B35: 组件 | C35: 东方日升600 | D35: 东方日升600 | E35: 32 | F35: 1219.68 | G35: 39029.76 | H35: 山海新能-东方日升 | I35: 庄河荣名库 | J35: 大连竣泰通信工程有限公司 | L35: 2023-07-13
A36: 34 | B36: 逆变器 | C36: 逆变器-30 | D36: 逆变器-30 | E36: 1 | F36: 8470 | G36: =E36*F36 -> 8470 | H36: 山海新能-锦浪 | I36: 庄河荣名库 | J36: 大连竣泰通信工程有限公司 | L36: 2023-07-13
A37: 35 | B37: 组件 | C37: 东方日升600 | D37: 东方日升600 | E37: 96 | F37: 1219.68 | G37: 117089.28 | H37: 山海新能-东方日升 | I37: 庄河荣名库 | J37: 大连竣泰通信工程有限公司 | L37: 2023-07-14
A38: 36 | B38: 组件 | C38: 东方日升600 | D38: 东方日升600 | E38: 32 | F38: 1219.68 | G38: 39029.76 | H38: 山海新能-东方日升 | I38: 庄河荣名库 | J38: 大连竣泰通信工程有限公司 | L38: 2023-07-14
A39: 37 | B39: 组件 | C39: 东方日升600 | D39: 东方日升600 | E39: 376 | F39: 1108.8 | G39: 416908.8 | H39: 山海新能-东方日升 | I39: 庄河荣名库 | J39: 大连竣泰通信工程有限公司 | L39: 2023-07-15
A40: 38 | B40: 组件 | C40: 东方日升600 | D40: 东方日升600 | E40: 32 | F40: 1108.8 | G40: 35481.6 | H40: 山海新能-东方日升 | I40: 庄河荣名库 | J40: 大连竣泰通信工程有限公司 | L40: 2023-07-18
A41: 39 | B41: 组件 | C41: 东方日升600 | D41: 东方日升600 | E41: 1280 | F41: 1108.8 | G41: 1419264 | H41: 山海新能-东方日升 | I41: 庄河荣名库 | J41: 大连竣泰通信工程有限公司 | L41: 2023-07-18
A42: 40 | B42: 逆变器 | C42: 逆变器-110 | D42: 逆变器-110 | E42: 22 | F42: 19800 | G42: 435600 | H42: 山海新能-锦浪 | I42: 庄河荣名库 | J42: 大连竣泰通信工程有限公司 | L42: 2023-07-18
A43: 41 | B43: 逆变器 | C43: 逆变器-13 | D43: 逆变器-13 | E43: 1 | F43: 3520 | G43: 3520 | H43: 山海新能-锦浪 | I43: 庄河荣名库 | J43: 大连竣泰通信工程有限公司 | L43: 2023-07-18
A44: 42 | B44: 逆变器 | C44: 逆变器-15 | D44: 逆变器-15 | E44: 29 | F44: 3905 | G44: 113245 | H44: 山海新能-锦浪 | I44: 庄河荣名库 | J44: 大连竣泰通信工程有限公司 | L44: 2023-07-18
A45: 43 | B45: 逆变器 | C45: 逆变器-20 | D45: 逆变器-20 | E45: 4 | F45: 4510 | G45: 18040 | H45: 山海新能-锦浪 | I45: 庄河荣名库 | J45: 大连竣泰通信工程有限公司 | L45: 2023-07-18
A46: 44 | B46: 逆变器 | C46: 逆变器-30 | D46: 逆变器-30 | E46: 12 | F46: 7700 | G46: 92400 | H46: 山海新能-锦浪 | I46: 庄河荣名库 | J46: 大连竣泰通信工程有限公司 | L46: 2023-07-18
A47: 45 | B47: 逆变器 | C47: 逆变器-33 | D47: 逆变器-33 | E47: 9 | F47: 7100 | G47: 63900 | H47: 山海新能-古瑞瓦特 | I47: 庄河荣名库 | J47: 大连竣泰通信工程有限公司 | L47: 2023-07-18
A48: 46 | B48: 逆变器 | C48: 逆变器-36 | D48: 逆变器-36 | E48: 10 | F48: 7660 | G48: 76600 | H48: 山海新能-固德威 | I48: 庄河荣名库 | J48: 辽宁圣东建筑工程有限公司 | L48: 2023-07-18
A49: 47 | B49: 逆变器 | C49: 逆变器-36 | D49: 逆变器-36 | E49: 30 | F49: 8525 | G49: 255750 | H49: 山海新能-锦浪 | I49: 庄河荣名库 | J49: 大连竣泰通信工程有限公司 | L49: 2023-07-18
A50: 48 | B50: 逆变器 | C50: 逆变器-50 | D50: 逆变器-50 | E50: 4 | F50: 9000 | G50: 36000 | H50: 山海新能-古瑞瓦特 | I50: 庄河荣名库 | J50: 辽宁圣东建筑工程有限公司 | L50: 2023-07-18
A51: 49 | B51: 逆变器 | C51: 逆变器-50 | D51: 逆变器-50 | E51: 3 | F51: 11990 | G51: 35970 | H51: 山海新能-锦浪 | I51: 庄河荣名库 | J51: 大连竣泰通信工程有限公司 | L51: 2023-07-18
A52: 50 | B52: 逆变器 | C52: 逆变器-60 | D52: 逆变器-60 | E52: 6 | F52: 9900 | G52: 59400 | H52: 山海新能-固德威 | I52: 庄河荣名库 | J52: 大连竣泰通信工程有限公司 | L52: 2023-07-18
A53: 51 | B53: 逆变器 | C53: 逆变器-8 | D53: 逆变器-8 | E53: 50 | F53: 2830 | G53: 141500 | H53: 山海新能-锦浪 | I53: 庄河荣名库 | J53: 大连竣泰通信工程有限公司 | L53: 2023-07-18
A54: 52 | B54: 逆变器 | C54: 逆变器-80 | D54: 逆变器-80 | E54: 5 | F54: 17300 | G54: 86500 | H54: 山海新能-锦浪 | I54: 庄河荣名库 | J54: 大连竣泰通信工程有限公司 | L54: 2023-07-18
A55: 53 | B55: 组件 | C55: 东方日升600 | D55: 东方日升600 | E55: 960 | F55: 1108.8 | G55: 1064448 | H55: 山海新能-东方日升 | I55: 庄河荣名库 | J55: 潍坊地球村能源有限公司 | L55: 2023-07-19
A56: 54 | B56: 逆变器 | C56: 逆变器-15 | D56: 逆变器-15 | E56: 5 | F56: 3905 | G56: 19525 | H56: 山海新能-锦浪 | I56: 庄河荣名库 | J56: 潍坊地球村能源有限公司 | L56: 2023-07-19
A57: 55 | B57: 逆变器 | C57: 逆变器-20 | D57: 逆变器-20 | E57: 5 | F57: 4510 | G57: 22550 | H57: 山海新能-锦浪 | I57: 庄河荣名库 | J57: 潍坊地球村能源有限公司 | L57: 2023-07-19
A58: 56 | B58: 逆变器 | C58: 逆变器-25 | D58: 逆变器-25 | E58: 2 | F58: 5170 | G58: 10340 | H58: 山海新能-锦浪 | I58: 庄河荣名库 | J58: 潍坊地球村能源有限公司 | L58: 2023-07-19
A59: 57 | B59: 逆变器 | C59: 逆变器-30 | D59: 逆变器-30 | E59: 12 | F59: 7100 | G59: 85200 | H59: 山海新能-固德威 | I59: 庄河荣名库 | J59: 潍坊地球村能源有限公司 | L59: 2023-07-19
A60: 58 | B60: 逆变器 | C60: 逆变器-33 | D60: 逆变器-33 | E60: 5 | F60: 8195 | G60: 40975 | H60: 山海新能-锦浪 | I60: 庄河荣名库 | J60: 潍坊地球村能源有限公司 | L60: 2023-07-19
A61: 59 | B61: 逆变器 | C61: 逆变器-36 | D61: 逆变器-36 | E61: 5 | F61: 7660 | G61: 38300 | H61: 山海新能-固德威 | I61: 庄河荣名库 | J61: 潍坊地球村能源有限公司 | L61: 2023-07-19
A62: 60 | B62: 逆变器 | C62: 逆变器-40 | D62: 逆变器-40 | E62: 3 | F62: 8171 | G62: 24513 | H62: 山海新能-固德威 | I62: 庄河荣名库 | J62: 潍坊地球村能源有限公司 | L62: 2023-07-19
A63: 61 | B63: 组件 | C63: 东方日升600 | D63: 东方日升600 | E63: 1344 | F63: 1108.8 | G63: 1490227.2 | H63: 山海新能-东方日升 | I63: 庄河荣名库 | J63: 潍坊地球村能源有限公司 | L63: 2023-07-21
A64: 62 | B64: 逆变器 | C64: 逆变器-20 | D64: 逆变器-20 | E64: 9 | F64: 4510 | G64: 40590 | H64: 山海新能-锦浪 | I64: 庄河荣名库 | J64: 潍坊地球村能源有限公司 | L64: 2023-07-21
A65: 63 | B65: 逆变器 | C65: 逆变器-25 | D65: 逆变器-25 | E65: 8 | F65: 5170 | G65: 41360 | H65: 山海新能-锦浪 | I65: 庄河荣名库 | J65: 潍坊地球村能源有限公司 | L65: 2023-07-21
A66: 64 | B66: 逆变器 | C66: 逆变器-30 | D66: 逆变器-30 | E66: 8 | F66: 7100 | G66: 56800 | H66: 山海新能-固德威 | I66: 庄河荣名库 | J66: 潍坊地球村能源有限公司 | L66: 2023-07-21
A67: 65 | B67: 逆变器 | C67: 逆变器-33 | D67: 逆变器-33 | E67: 1 | F67: 9014.5 | G67: 9014.5 | H67: 山海新能-锦浪 | I67: 庄河荣名库 | J67: 潍坊地球村能源有限公司 | L67: 2023-07-21
A68: 66 | B68: 逆变器 | C68: 逆变器-33 | D68: 逆变器-33 | E68: 1 | F68: 9014.5 | G68: =E68*F68 -> 9014.5 | H68: 山海新能-锦浪 | I68: 庄河荣名库 | J68: 潍坊地球村能源有限公司 | L68: 2023-07-21
A69: 67 | B69: 逆变器 | C69: 逆变器-33 | D69: 逆变器-33 | E69: 1 | F69: 9014.5 | G69: 9014.5 | H69: 山海新能-锦浪 | I69: 庄河荣名库 | J69: 潍坊地球村能源有限公司 | L69: 2023-07-21
A70: 68 | B70: 逆变器 | C70: 逆变器-40 | D70: 逆变器-40 | E70: 1 | F70: 8988.1 | G70: 8988.1 | H70: 山海新能-固德威 | I70: 庄河荣名库 | J70: 潍坊地球村能源有限公司 | L70: 2023-07-21
A71: 69 | B71: 组件 | C71: 东方日升600 | D71: 东方日升600 | E71: 1668 | F71: 1108.8 | G71: 1849478.4 | H71: 山海新能-东方日升 | I71: 庄河荣名库 | J71: 大连竣泰通信工程有限公司 | L71: 2023-07-24
A72: 70 | B72: 组件 | C72: 东方日升600 | D72: 东方日升600 | E72: 64 | F72: 1219.68 | G72: 78059.52 | H72: 山海新能-东方日升 | I72: 庄河荣名库 | J72: 大连竣泰通信工程有限公司 | L72: 2023-07-24
A73: 71 | B73: 组件 | C73: 东方日升600 | D73: 东方日升600 | E73: 32 | F73: 1219.68 | G73: 39029.76 | H73: 山海新能-东方日升 | I73: 庄河荣名库 | J73: 大连竣泰通信工程有限公司 | L73: 2023-07-24
A74: 72 | B74: 组件 | C74: 东方日升600 | D74: 东方日升600 | E74: 32 | F74: 1219.68 | G74: 39029.76 | H74: 山海新能-东方日升 | I74: 庄河荣名库 | J74: 大连竣泰通信工程有限公司 | L74: 2023-07-24
A75: 73 | B75: 组件 | C75: 东方日升600 | D75: 东方日升600 | E75: 64 | F75: 1219.68 | G75: 78059.52 | H75: 山海新能-东方日升 | I75: 庄河荣名库 | J75: 大连竣泰通信工程有限公司 | L75: 2023-07-24
A76: 74 | B76: 组件 | C76: 东方日升600 | D76: 东方日升600 | E76: 64 | F76: 1219.68 | G76: 78059.52 | H76: 山海新能-东方日升 | I76: 庄河荣名库 | J76: 大连竣泰通信工程有限公司 | L76: 2023-07-24
A77: 75 | B77: 组件 | C77: 东方日升600 | D77: 东方日升600 | E77: 96 | F77: 1219.68 | G77: 117089.28 | H77: 山海新能-东方日升 | I77: 庄河荣名库 | J77: 大连竣泰通信工程有限公司 | L77: 2023-07-24
A78: 76 | B78: 组件 | C78: 东方日升600 | D78: 东方日升600 | E78: 64 | F78: 1219.68 | G78: 78059.52 | H78: 山海新能-东方日升 | I78: 庄河荣名库 | J78: 大连竣泰通信工程有限公司 | L78: 2023-07-24
A79: 77 | B79: 组件 | C79: 东方日升600 | D79: 东方日升600 | E79: 64 | F79: 1219.68 | G79: 78059.52 | H79: 山海新能-东方日升 | I79: 庄河荣名库 | J79: 大连竣泰通信工程有限公司 | L79: 2023-07-24
A80: 78 | B80: 组件 | C80: 东方日升600 | D80: 东方日升600 | E80: 32 | F80: 1219.68 | G80: 39029.76 | H80: 山海新能-东方日升 | I80: 庄河荣名库 | J80: 大连竣泰通信工程有限公司 | L80: 2023-07-24
A81: 79 | B81: 组件 | C81: 东方日升600 | D81: 东方日升600 | E81: 64 | F81: 1219.68 | G81: 78059.52 | H81: 山海新能-东方日升 | I81: 庄河荣名库 | J81: 大连竣泰通信工程有限公司 | L81: 2023-07-24
A82: 80 | B82: 逆变器 | C82: 逆变器-25 | D82: 逆变器-25 | E82: 2 | F82: 5170 | G82: 10340 | H82: 山海新能-锦浪 | I82: 庄河荣名库 | J82: 辽宁圣东建筑工程有限公司 | L82: 2023-07-24
A83: 81 | B83: 逆变器 | C83: 逆变器-25 | D83: 逆变器-25 | E83: 1 | F83: 5687 | G83: 5687 | H83: 山海新能-锦浪 | I83: 庄河荣名库 | J83: 大连竣泰通信工程有限公司 | L83: 2023-07-24
A84: 82 | B84: 逆变器 | C84: 逆变器-25 | D84: 逆变器-25 | E84: 1 | F84: 5687 | G84: 5687 | H84: 山海新能-锦浪 | I84: 庄河荣名库 | J84: 大连竣泰通信工程有限公司 | L84: 2023-07-24
A85: 83 | B85: 逆变器 | C85: 逆变器-25 | D85: 逆变器-25 | E85: 9 | F85: 5170 | G85: 46530 | H85: 山海新能-锦浪 | I85: 庄河荣名库 | J85: 大连竣泰通信工程有限公司 | L85: 2023-07-24T12:35:25
A86: 84 | B86: 组件 | C86: 东方日升600 | D86: 东方日升600 | E86: 64 | F86: 1219.68 | G86: 78059.52 | H86: 山海新能-东方日升 | I86: 庄河荣名库 | J86: 大连竣泰通信工程有限公司 | L86: 2023-07-25
A87: 85 | B87: 组件 | C87: 东方日升600 | D87: 东方日升600 | E87: 64 | F87: 1219.68 | G87: 78059.52 | H87: 山海新能-东方日升 | I87: 庄河荣名库 | J87: 大连竣泰通信工程有限公司 | L87: 2023-07-25
A88: 86 | B88: 组件 | C88: 东方日升600 | D88: 东方日升600 | E88: 32 | F88: 1219.68 | G88: 39029.76 | H88: 山海新能-东方日升 | I88: 庄河荣名库 | J88: 大连竣泰通信工程有限公司 | L88: 2023-07-25
A89: 87 | B89: 组件 | C89: 东方日升600 | D89: 东方日升600 | E89: 64 | F89: 1219.68 | G89: 78059.52 | H89: 山海新能-东方日升 | I89: 庄河荣名库 | J89: 大连竣泰通信工程有限公司 | L89: 2023-07-25
A90: 88 | B90: 组件 | C90: 东方日升600 | D90: 东方日升600 | E90: 96 | F90: 1219.68 | G90: 117089.28 | H90: 山海新能-东方日升 | I90: 庄河荣名库 | J90: 大连竣泰通信工程有限公司 | L90: 2023-07-25
A91: 89 | B91: 组件 | C91: 东方日升600 | D91: 东方日升600 | E91: 32 | F91: 1219.68 | G91: 39029.76 | H91: 山海新能-东方日升 | I91: 庄河荣名库 | J91: 大连竣泰通信工程有限公司 | L91: 2023-07-25
A92: 90 | B92: 组件 | C92: 东方日升600 | D92: 东方日升600 | E92: 64 | F92: 1219.68 | G92: 78059.52 | H92: 山海新能-东方日升 | I92: 庄河荣名库 | J92: 大连竣泰通信工程有限公司 | L92: 2023-07-25
A93: 91 | B93: 组件 | C93: 东方日升600 | D93: 东方日升600 | E93: 64 | F93: 1219.68 | G93: 78059.52 | H93: 山海新能-东方日升 | I93: 庄河荣名库 | J93: 大连竣泰通信工程有限公司 | L93: 2023-07-25
A94: 92 | B94: 组件 | C94: 东方日升600 | D94: 东方日升600 | E94: 64 | F94: 1219.68 | G94: 78059.52 | H94: 山海新能-东方日升 | I94: 庄河荣名库 | J94: 大连竣泰通信工程有限公司 | L94: 2023-07-25
A95: 93 | B95: 组件 | C95: 东方日升600 | D95: 东方日升600 | E95: 96 | F95: 1219.68 | G95: 117089.28 | H95: 山海新能-东方日升 | I95: 庄河荣名库 | J95: 大连竣泰通信工程有限公司 | L95: 2023-07-25
A96: 94 | B96: 组件 | C96: 东方日升600 | D96: 东方日升600 | E96: 64 | F96: 1219.68 | G96: 78059.52 | H96: 山海新能-东方日升 | I96: 庄河荣名库 | J96: 大连竣泰通信工程有限公司 | L96: 2023-07-25
A97: 95 | B97: 组件 | C97: 东方日升600 | D97: 东方日升600 | E97: 64 | F97: 1219.68 | G97: 78059.52 | H97: 山海新能-东方日升 | I97: 庄河荣名库 | J97: 大连竣泰通信工程有限公司 | L97: 2023-07-25
A98: 96 | B98: 组件 | C98: 东方日升600 | D98: 东方日升600 | E98: 64 | F98: 1219.68 | G98: 78059.52 | H98: 山海新能-东方日升 | I98: 庄河荣名库 | J98: 大连竣泰通信工程有限公司 | L98: 2023-07-25
A99: 97 | B99: 组件 | C99: 东方日升600 | D99: 东方日升600 | E99: 64 | F99: 1219.68 | G99: 78059.52 | H99: 山海新能-东方日升 | I99: 庄河荣名库 | J99: 大连竣泰通信工程有限公司 | L99: 2023-07-25
A100: 98 | B100: 组件 | C100: 东方日升600 | D100: 东方日升600 | E100: 96 | F100: 1219.68 | G100: =E100*F100 -> 117089.28 | H100: 山海新能-东方日升 | I100: 庄河荣名库 | J100: 大连竣泰通信工程有限公司 | L100: 2023-07-25
A101: 99 | B101: 组件 | C101: 东方日升600 | D101: 东方日升600 | E101: 32 | F101: 1219.68 | G101: 39029.76 | H101: 山海新能-东方日升 | I101: 庄河荣名库 | J101: 大连竣泰通信工程有限公司 | L101: 2023-07-25
A102: 100 | B102: 组件 | C102: 东方日升600 | D102: 东方日升600 | E102: 64 | F102: 1219.68 | G102: 78059.52 | H102: 山海新能-东方日升 | I102: 庄河荣名库 | J102: 大连竣泰通信工程有限公司 | L102: 2023-07-25
A103: 101 | B103: 组件 | C103: 东方日升600 | D103: 东方日升600 | E103: 96 | F103: 1219.68 | G103: 117089.28 | H103: 山海新能-东方日升 | I103: 庄河荣名库 | J103: 大连竣泰通信工程有限公司 | L103: 2023-07-25
A104: 102 | B104: 组件 | C104: 东方日升600 | D104: 东方日升600 | E104: 32 | F104: 1219.68 | G104: 39029.76 | H104: 山海新能-东方日升 | I104: 庄河荣名库 | J104: 大连竣泰通信工程有限公司 | L104: 2023-07-25
A105: 103 | B105: 组件 | C105: 东方日升600 | D105: 东方日升600 | E105: 32 | F105: 1219.68 | G105: 39029.76 | H105: 山海新能-东方日升 | I105: 庄河荣名库 | J105: 大连竣泰通信工程有限公司 | L105: 2023-07-25
A106: 104 | B106: 组件 | C106: 东方日升600 | D106: 东方日升600 | E106: 32 | F106: 1219.68 | G106: 39029.76 | H106: 山海新能-东方日升 | I106: 庄河荣名库 | J106: 大连竣泰通信工程有限公司 | L106: 2023-07-25
A107: 105 | B107: 逆变器 | C107: 逆变器-25 | D107: 逆变器-25 | E107: 1 | F107: 5687 | G107: 5687 | H107: 山海新能-锦浪 | I107: 庄河荣名库 | J107: 大连竣泰通信工程有限公司 | L107: 2023-07-25
A108: 106 | B108: 逆变器 | C108: 逆变器-25 | D108: 逆变器-25 | E108: 1 | F108: 5687 | G108: 5687 | H108: 山海新能-锦浪 | I108: 庄河荣名库 | J108: 大连竣泰通信工程有限公司 | L108: 2023-07-25
A109: 107 | B109: 逆变器 | C109: 逆变器-25 | D109: 逆变器-25 | E109: 1 | F109: 5687 | G109: 5687 | H109: 山海新能-锦浪 | I109: 庄河荣名库 | J109: 大连竣泰通信工程有限公司 | L109: 2023-07-25
A110: 108 | B110: 逆变器 | C110: 逆变器-25 | D110: 逆变器-25 | E110: 1 | F110: 5687 | G110: 5687 | H110: 山海新能-锦浪 | I110: 庄河荣名库 | J110: 大连竣泰通信工程有限公司 | L110: 2023-07-25
A111: 109 | B111: 逆变器 | C111: 逆变器-25 | D111: 逆变器-25 | E111: 1 | F111: 5687 | G111: 5687 | H111: 山海新能-锦浪 | I111: 庄河荣名库 | J111: 大连竣泰通信工程有限公司 | L111: 2023-07-25
A112: 110 | B112: 逆变器 | C112: 逆变器-25 | D112: 逆变器-25 | E112: 1 | F112: 5687 | G112: 5687 | H112: 山海新能-锦浪 | I112: 庄河荣名库 | J112: 大连竣泰通信工程有限公司 | L112: 2023-07-25
A113: 111 | B113: 逆变器 | C113: 逆变器-25 | D113: 逆变器-25 | E113: 1 | F113: 5687 | G113: 5687 | H113: 山海新能-锦浪 | I113: 庄河荣名库 | J113: 大连竣泰通信工程有限公司 | L113: 2023-07-25
A114: 112 | B114: 逆变器 | C114: 逆变器-25 | D114: 逆变器-25 | E114: 1 | F114: 5687 | G114: 5687 | H114: 山海新能-锦浪 | I114: 庄河荣名库 | J114: 大连竣泰通信工程有限公司 | L114: 2023-07-25
A115: 113 | B115: 逆变器 | C115: 逆变器-20 | D115: 逆变器-20 | E115: 13 | F115: 4510 | G115: 58630 | H115: 山海新能-锦浪 | I115: 庄河荣名库 | J115: 大连竣泰通信工程有限公司 | L115: 2023-07-26T14:50:57
A116: 114 | B116: 逆变器 | C116: 逆变器-25 | D116: 逆变器-25 | E116: 15 | F116: 5170 | G116: 77550 | H116: 山海新能-锦浪 | I116: 庄河荣名库 | J116: 大连竣泰通信工程有限公司 | L116: 2023-07-26T14:50:57
A117: 115 | B117: 逆变器 | C117: 逆变器-80 | D117: 逆变器-80 | E117: 1 | F117: 19030 | G117: 19030 | H117: 山海新能-锦浪 | I117: 庄河荣名库 | J117: 辽宁圣东建筑工程有限公司 | L117: 2023-07-27
A118: 116 | B118: 逆变器 | C118: 逆变器-80 | D118: 逆变器-80 | E118: 1 | F118: 19030 | G118: 19030 | H118: 山海新能-锦浪 | I118: 庄河荣名库 | J118: 辽宁圣东建筑工程有限公司 | L118: 2023-07-27
A119: 117 | B119: 组件 | C119: 东方日升600 | D119: 东方日升600 | E119: 64 | F119: 1219.68 | G119: 78059.52 | H119: 山海新能-东方日升 | I119: 庄河荣名库 | J119: 大连竣泰通信工程有限公司 | L119: 2023-07-29
A120: 118 | B120: 逆变器 | C120: 逆变器-36 | D120: 逆变器-36 | E120: 1 | F120: 9377.5 | G120: 9377.5 | H120: 山海新能-锦浪 | I120: 庄河荣名库 | J120: 辽宁圣东建筑工程有限公司 | L120: 2023-07-29
A121: 119 | B121: 逆变器 | C121: 逆变器-36 | D121: 逆变器-36 | E121: 1 | F121: 9377.5 | G121: 9377.5 | H121: 山海新能-锦浪 | I121: 庄河荣名库 | J121: 辽宁圣东建筑工程有限公司 | L121: 2023-07-29
A122: 120 | B122: 逆变器 | C122: 逆变器-50 | D122: 逆变器-50 | E122: 1 | F122: 13189 | G122: 13189 | H122: 山海新能-锦浪 | I122: 庄河荣名库 | J122: 辽宁圣东建筑工程有限公司 | L122: 2023-07-29
A123: 121 | B123: 逆变器 | C123: 逆变器-50 | D123: 逆变器-50 | E123: 1 | F123: 13189 | G123: 13189 | H123: 山海新能-锦浪 | I123: 庄河荣名库 | J123: 辽宁圣东建筑工程有限公司 | L123: 2023-07-29
A124: 122 | B124: 逆变器 | C124: 逆变器-50 | D124: 逆变器-50 | E124: 1 | F124: 13189 | G124: 13189 | H124: 山海新能-锦浪 | I124: 庄河荣名库 | J124: 辽宁圣东建筑工程有限公司 | L124: 2023-07-29
A125: 123 | B125: 逆变器 | C125: 逆变器-50 | D125: 逆变器-50 | E125: 1 | F125: 13189 | G125: 13189 | H125: 山海新能-锦浪 | I125: 庄河荣名库 | J125: 辽宁圣东建筑工程有限公司 | L125: 2023-07-29
A126: 124 | B126: 逆变器 | C126: 逆变器-50 | D126: 逆变器-50 | E126: 1 | F126: 13189 | G126: 13189 | H126: 山海新能-锦浪 | I126: 庄河荣名库 | J126: 辽宁圣东建筑工程有限公司 | L126: 2023-07-29
A127: 125 | B127: 逆变器 | C127: 逆变器-50 | D127: 逆变器-50 | E127: 1 | F127: 13189 | G127: 13189 | H127: 山海新能-锦浪 | I127: 庄河荣名库 | J127: 辽宁圣东建筑工程有限公司 | L127: 2023-07-29
A128: 126 | B128: 逆变器 | C128: 逆变器-50 | D128: 逆变器-50 | E128: 1 | F128: 13189 | G128: 13189 | H128: 山海新能-锦浪 | I128: 庄河荣名库 | J128: 辽宁圣东建筑工程有限公司 | L128: 2023-07-29
A129: 127 | B129: 逆变器 | C129: 逆变器-50 | D129: 逆变器-50 | E129: 1 | F129: 13189 | G129: 13189 | H129: 山海新能-锦浪 | I129: 庄河荣名库 | J129: 辽宁圣东建筑工程有限公司 | L129: 2023-07-29
A130: 128 | B130: 逆变器 | C130: 逆变器-50 | D130: 逆变器-50 | E130: 1 | F130: 13189 | G130: 13189 | H130: 山海新能-锦浪 | I130: 庄河荣名库 | J130: 大连竣泰通信工程有限公司 | L130: 2023-07-29
A131: 129 | B131: 逆变器 | C131: 逆变器-60 | D131: 逆变器-60 | E131: 1 | F131: 12430 | G131: 12430 | H131: 山海新能-锦浪 | I131: 庄河荣名库 | J131: 大连竣泰通信工程有限公司 | L131: 2023-07-29
A132: 130 | B132: 逆变器 | C132: 逆变器-60 | D132: 逆变器-60 | E132: 3 | F132: 11300 | G132: =E132*F132 -> 33900 | H132: 山海新能-锦浪 | I132: 庄河荣名库 | J132: 辽宁圣东建筑工程有限公司 | L132: 2023-07-29
A133: 131 | B133: 逆变器 | C133: 逆变器-80 | D133: 逆变器-80 | E133: 1 | F133: 19030 | G133: 19030 | H133: 山海新能-锦浪 | I133: 庄河荣名库 | J133: 辽宁圣东建筑工程有限公司 | L133: 2023-07-29
A134: 132 | B134: 逆变器 | C134: 逆变器-80 | D134: 逆变器-80 | E134: 1 | F134: 19030 | G134: 19030 | H134: 山海新能-锦浪 | I134: 庄河荣名库 | J134: 辽宁圣东建筑工程有限公司 | L134: 2023-07-29
A135: 133 | B135: 逆变器 | C135: 逆变器-80 | D135: 逆变器-80 | E135: 1 | F135: 19030 | G135: 19030 | H135: 山海新能-锦浪 | I135: 庄河荣名库 | J135: 辽宁圣东建筑工程有限公司 | L135: 2023-07-29
A136: 134 | B136: 逆变器 | C136: 逆变器-80 | D136: 逆变器-80 | E136: 1 | F136: 19030 | G136: 19030 | H136: 山海新能-锦浪 | I136: 庄河荣名库 | J136: 辽宁圣东建筑工程有限公司 | L136: 2023-07-29
A137: 135 | B137: 逆变器 | C137: 逆变器-80 | D137: 逆变器-80 | E137: 1 | F137: 19030 | G137: 19030 | H137: 山海新能-锦浪 | I137: 庄河荣名库 | J137: 辽宁圣东建筑工程有限公司 | L137: 2023-07-29
A138: 136 | B138: 组件 | C138: 东方日升600 | D138: 东方日升600 | E138: 228 | F138: 1219.68 | G138: 278087.04 | H138: 山海新能-东方日升 | I138: 庄河荣名库 | J138: 大连竣泰通信工程有限公司 | L138: 2023-07-31
A139: 137 | B139: 组件 | C139: 东方日升600 | D139: 东方日升600 | E139: 64 | F139: 1219.68 | G139: 78059.52 | H139: 山海新能-东方日升 | I139: 庄河荣名库 | J139: 辽宁圣东建筑工程有限公司 | L139: 2023-07-31
A140: 138 | B140: 组件 | C140: 东方日升600 | D140: 东方日升600 | E140: 32 | F140: 1219.68 | G140: 39029.76 | H140: 山海新能-东方日升 | I140: 庄河荣名库 | J140: 辽宁圣东建筑工程有限公司 | L140: 2023-07-31
A141: 139 | B141: 组件 | C141: 东方日升600 | D141: 东方日升600 | E141: 18 | F141: 1108.8 | G141: 19958.4 | H141: 山海新能-东方日升 | I141: 庄河荣名库 | J141: 东方日升新能源股份有限公司 | L141: 2023-07-31
A142: 140 | B142: 逆变器 | C142: 逆变器-13 | D142: 逆变器-13 | E142: 2 | F142: 3872 | G142: 7744 | H142: 山海新能-锦浪 | I142: 庄河荣名库 | J142: 大连竣泰通信工程有限公司 | L142: 2023-07-31
A143: 141 | B143: 逆变器 | C143: 逆变器-15 | D143: 逆变器-15 | E143: 2 | F143: 4295.5 | G143: 8591 | H143: 山海新能-锦浪 | I143: 庄河荣名库 | J143: 大连竣泰通信工程有限公司 | L143: 2023-07-31
A144: 142 | B144: 逆变器 | C144: 逆变器-33 | D144: 逆变器-33 | E144: 1 | F144: 9014.5 | G144: 9014.5 | H144: 山海新能-锦浪 | I144: 庄河荣名库 | J144: 大连竣泰通信工程有限公司 | L144: 2023-07-31
A145: 143 | B145: 逆变器 | C145: 逆变器-36 | D145: 逆变器-36 | E145: 1 | F145: 9377.5 | G145: 9377.5 | H145: 山海新能-锦浪 | I145: 庄河荣名库 | J145: 辽宁圣东建筑工程有限公司 | L145: 2023-07-31
A146: 144 | B146: 逆变器 | C146: 逆变器-36 | D146: 逆变器-36 | E146: 1 | F146: 9377.5 | G146: 9377.5 | H146: 山海新能-锦浪 | I146: 庄河荣名库 | J146: 辽宁圣东建筑工程有限公司 | L146: 2023-07-31
A147: 145 | B147: 逆变器 | C147: 逆变器-50 | D147: 逆变器-50 | E147: 1 | F147: 13189 | G147: 13189 | H147: 山海新能-锦浪 | I147: 庄河荣名库 | J147: 大连竣泰通信工程有限公司 | L147: 2023-07-31
A148: 146 | B148: 逆变器 | C148: 逆变器-50 | D148: 逆变器-50 | E148: 1 | F148: 13189 | G148: 13189 | H148: 山海新能-锦浪 | I148: 庄河荣名库 | J148: 辽宁圣东建筑工程有限公司 | L148: 2023-07-31
A149: 147 | B149: 逆变器 | C149: 逆变器-60 | D149: 逆变器-60 | E149: 2 | F149: 12430 | G149: 24860 | H149: 山海新能-锦浪 | I149: 庄河荣名库 | J149: 大连竣泰通信工程有限公司 | L149: 2023-07-31
A150: 148 | B150: 逆变器 | C150: 逆变器-80 | D150: 逆变器-80 | E150: 2 | F150: 19030 | G150: 38060 | H150: 山海新能-锦浪 | I150: 庄河荣名库 | J150: 大连竣泰通信工程有限公司 | L150: 2023-07-31
A151: 149 | B151: 逆变器 | C151: 逆变器-80 | D151: 逆变器-80 | E151: 1 | F151: 19030 | G151: 19030 | H151: 山海新能-锦浪 | I151: 庄河荣名库 | J151: 辽宁圣东建筑工程有限公司 | L151: 2023-07-31
A152: 150 | B152: 逆变器 | C152: 逆变器-80 | D152: 逆变器-80 | E152: 1 | F152: 19030 | G152: 19030 | H152: 山海新能-锦浪 | I152: 庄河荣名库 | J152: 辽宁圣东建筑工程有限公司 | L152: 2023-07-31
A153: 151 | B153: 逆变器 | C153: 逆变器-80 | D153: 逆变器-80 | E153: 1 | F153: 19030 | G153: 19030 | H153: 山海新能-锦浪 | I153: 庄河荣名库 | J153: 辽宁圣东建筑工程有限公司 | L153: 2023-07-31
A154: 152 | B154: 逆变器 | C154: 逆变器-13 | D154: 逆变器-13 | E154: 1 | F154: 3520 | G154: 3520 | H154: 山海新能-锦浪 | I154: 庄河荣名库 | J154: 大连竣泰通信工程有限公司 | L154: 2023-08-01
A155: 153 | B155: 逆变器 | C155: 逆变器-33 | D155: 逆变器-33 | E155: 1 | F155: 8195 | G155: 8195 | H155: 山海新能-锦浪 | I155: 庄河荣名库 | J155: 大连竣泰通信工程有限公司 | L155: 2023-08-01
A156: 154 | B156: 逆变器 | C156: 逆变器-13 | D156: 逆变器-13 | E156: 1 | F156: 3872 | G156: 3872 | H156: 山海新能-锦浪 | I156: 庄河荣名库 | J156: 潍坊地球村能源有限公司 | L156: 2023-08-04
A157: 155 | B157: 逆变器 | C157: 逆变器-13 | D157: 逆变器-13 | E157: 1 | F157: 3872 | G157: 3872 | H157: 山海新能-锦浪 | I157: 庄河荣名库 | J157: 大连竣泰通信工程有限公司 | L157: 2023-08-04
A158: 156 | B158: 逆变器 | C158: 逆变器-15 | D158: 逆变器-15 | E158: 1 | F158: 4295.5 | G158: 4295.5 | H158: 山海新能-锦浪 | I158: 庄河荣名库 | J158: 大连竣泰通信工程有限公司 | L158: 2023-08-04
A159: 157 | B159: 逆变器 | C159: 逆变器-80 | D159: 逆变器-80 | E159: 1 | F159: 19030 | G159: 19030 | H159: 山海新能-锦浪 | I159: 庄河荣名库 | J159: 潍坊地球村能源有限公司 | L159: 2023-08-04
A160: 158 | B160: 逆变器 | C160: 逆变器-13 | D160: 逆变器-13 | E160: 16 | F160: 3520 | G160: 56320 | H160: 山海新能-锦浪 | I160: 庄河荣名库 | J160: 大连竣泰通信工程有限公司 | L160: 2023-08-07
A161: 159 | B161: 逆变器 | C161: 逆变器-13 | D161: 逆变器-13 | E161: 16 | F161: 3520 | G161: 56320 | H161: 山海新能-锦浪 | I161: 庄河荣名库 | J161: 大连竣泰通信工程有限公司 | L161: 2023-08-07
A162: 160 | B162: 逆变器 | C162: 逆变器-33 | D162: 逆变器-33 | E162: 10 | F162: 8195 | G162: 81950 | H162: 山海新能-锦浪 | I162: 庄河荣名库 | J162: 大连竣泰通信工程有限公司 | L162: 2023-08-07
A163: 161 | B163: 逆变器 | C163: 逆变器-33 | D163: 逆变器-33 | E163: 10 | F163: 8195 | G163: 81950 | H163: 山海新能-锦浪 | I163: 庄河荣名库 | J163: 大连竣泰通信工程有限公司 | L163: 2023-08-07
A164: 162 | B164: 逆变器 | C164: 逆变器-36 | D164: 逆变器-36 | E164: 4 | F164: 8525 | G164: =E164*F164 -> 34100 | H164: 山海新能-锦浪 | I164: 庄河荣名库 | J164: 大连竣泰通信工程有限公司 | L164: 2023-08-07
A165: 163 | B165: 逆变器 | C165: 逆变器-36 | D165: 逆变器-36 | E165: 4 | F165: 8525 | G165: 34100 | H165: 山海新能-锦浪 | I165: 庄河荣名库 | J165: 大连竣泰通信工程有限公司 | L165: 2023-08-07
A166: 164 | B166: 逆变器 | C166: 逆变器-60 | D166: 逆变器-60 | E166: 1 | F166: 11300 | G166: 11300 | H166: 山海新能-锦浪 | I166: 庄河荣名库 | J166: 大连竣泰通信工程有限公司 | L166: 2023-08-07
A167: 165 | B167: 逆变器 | C167: 逆变器-60 | D167: 逆变器-60 | E167: 1 | F167: 11300 | G167: 11300 | H167: 山海新能-锦浪 | I167: 庄河荣名库 | J167: 大连竣泰通信工程有限公司 | L167: 2023-08-07
A168: 166 | B168: 逆变器 | C168: 逆变器-80 | D168: 逆变器-80 | E168: 1 | F168: 17300 | G168: 17300 | H168: 山海新能-锦浪 | I168: 庄河荣名库 | J168: 大连竣泰通信工程有限公司 | L168: 2023-08-07
A169: 167 | B169: 逆变器 | C169: 逆变器-80 | D169: 逆变器-80 | E169: 1 | F169: 17300 | G169: 17300 | H169: 山海新能-锦浪 | I169: 庄河荣名库 | J169: 大连竣泰通信工程有限公司 | L169: 2023-08-07
A170: 168 | B170: 逆变器 | C170: 逆变器-15 | D170: 逆变器-15 | E170: 1 | F170: 4295.5 | G170: 4295.5 | H170: 山海新能-锦浪 | I170: 庄河荣名库 | J170: 大连竣泰通信工程有限公司 | L170: 2023-08-08
A171: 169 | B171: 逆变器 | C171: 逆变器-50 | D171: 逆变器-50 | E171: 1 | F171: 13189 | G171: 13189 | H171: 山海新能-锦浪 | I171: 庄河荣名库 | J171: 大连竣泰通信工程有限公司 | L171: 2023-08-08
A172: 170 | B172: 组件 | C172: 东方日升600 | D172: 东方日升600 | E172: 26 | F172: 1108.8 | G172: 28828.8 | H172: 山海新能-东方日升 | I172: 庄河荣名库 | J172: 大连竣泰通信工程有限公司 | L172: 2023-08-09T15:11:52
A173: 171 | B173: 逆变器 | C173: 逆变器-13 | D173: 逆变器-13 | E173: 2 | F173: 3520 | G173: 7040 | H173: 山海新能-锦浪 | I173: 庄河荣名库 | J173: 辽宁圣东建筑工程有限公司 | L173: 2023-08-10T14:40:59
A174: 172 | B174: 逆变器 | C174: 逆变器-30 | D174: 逆变器-30 | E174: 2 | F174: 7700 | G174: 15400 | H174: 山海新能-锦浪 | I174: 庄河荣名库 | J174: 辽宁圣东建筑工程有限公司 | L174: 2023-08-10T14:40:59
A175: 173 | B175: 组件 | C175: 天合600 | D175: 天合600 | E175: 67 | F175: 1267 | G175: 84889 | H175: 山海智慧-天合 | I175: 庄河荣名库 | J175: 辽宁圣东建筑工程有限公司 | L175: 2023-08-10T14:40:59
A176: 174 | B176: 逆变器 | C176: 逆变器-60 | D176: 逆变器-60 | E176: 1 | F176: 11300 | G176: 11300 | H176: 山海新能-锦浪 | I176: 庄河荣名库 | J176: 大连竣泰通信工程有限公司 | L176: 2023-08-10T14:49:39
A177: 175 | B177: 逆变器 | C177: 逆变器-60 | D177: 逆变器-60 | E177: 1 | F177: 12430 | G177: 12430 | H177: 山海新能-锦浪 | I177: 庄河荣名库 | J177: 大连竣泰通信工程有限公司 | L177: 2023-08-12
A178: 176 | B178: 逆变器 | C178: 逆变器-50 | D178: 逆变器-50 | E178: 1 | F178: 13189 | G178: 13189 | H178: 山海新能-锦浪 | I178: 庄河荣名库 | J178: 辽宁圣东建筑工程有限公司 | L178: 2023-08-15
A179: 177 | B179: 逆变器 | C179: 逆变器-13 | D179: 逆变器-13 | E179: 2 | F179: 3520 | G179: 7040 | H179: 山海新能-锦浪 | I179: 庄河荣名库 | J179: 潍坊地球村能源有限公司 | L179: 2023-08-17
A180: 178 | B180: 逆变器 | C180: 逆变器-13 | D180: 逆变器-13 | E180: 1 | F180: 3872 | G180: 3872 | H180: 山海新能-锦浪 | I180: 庄河荣名库 | J180: 潍坊地球村能源有限公司 | L180: 2023-08-18
A181: 179 | B181: 逆变器 | C181: 逆变器-13 | D181: 逆变器-13 | E181: 1 | F181: 3872 | G181: 3872 | H181: 山海新能-锦浪 | I181: 庄河荣名库 | J181: 潍坊地球村能源有限公司 | L181: 2023-08-18
A182: 180 | B182: 逆变器 | C182: 逆变器-60 | D182: 逆变器-60 | E182: 1 | F182: 12430 | G182: 12430 | H182: 山海新能-锦浪 | I182: 庄河荣名库 | J182: 大连竣泰通信工程有限公司 | L182: 2023-08-18
A183: 181 | B183: 逆变器 | C183: 逆变器-110 | D183: 逆变器-110 | E183: 18 | F183: 19800 | G183: 356400 | H183: 山海新能-锦浪 | I183: 庄河荣名库 | J183: 大连竣泰通信工程有限公司 | L183: 2023-08-21T16:12:58
A184: 182 | B184: 逆变器 | C184: 逆变器-36 | D184: 逆变器-36 | E184: 1 | F184: 9377.5 | G184: 9377.5 | H184: 山海新能-锦浪 | I184: 庄河荣名库 | J184: 辽宁圣东建筑工程有限公司 | L184: 2023-08-25
A185: 183 | B185: 逆变器 | C185: 逆变器-60 | D185: 逆变器-60 | E185: 1 | F185: 12430 | G185: 12430 | H185: 山海新能-锦浪 | I185: 庄河荣名库 | J185: 大连竣泰通信工程有限公司 | L185: 2023-08-25
A186: 184 | B186: 逆变器 | C186: 逆变器-60 | D186: 逆变器-60 | E186: 1 | F186: 12430 | G186: 12430 | H186: 山海新能-锦浪 | I186: 庄河荣名库 | J186: 大连竣泰通信工程有限公司 | L186: 2023-08-28
A187: 185 | B187: 逆变器 | C187: 逆变器-30 | D187: 逆变器-30 | E187: 1 | F187: 8470 | G187: 8470 | H187: 山海新能-锦浪 | I187: 庄河荣名库 | J187: 大连竣泰通信工程有限公司 | L187: 2023-08-29
A188: 186 | B188: 逆变器 | C188: 逆变器-80 | D188: 逆变器-80 | E188: 1 | F188: 17300 | G188: 17300 | H188: 山海新能-锦浪 | I188: 庄河荣名库 | J188: 大连竣泰通信工程有限公司 | L188: 2023-09-08
A189: 187 | B189: 逆变器 | C189: 逆变器-25 | D189: 逆变器-25 | E189: 9 | F189: 5170 | G189: 46530 | H189: 山海新能-锦浪 | I189: 庄河荣名库 | J189: 辽宁圣东建筑工程有限公司 | L189: 2023-09-08
A190: 188 | B190: 组件 | C190: 晶科475 | D190: 晶科475 | E190: 155 | F190: 904 | G190: =E190*F190 -> 140120 | H190: 山海智慧-天合 | I190: 庄河荣名库 | J190: 潍坊地球村能源有限公司 | L190: 2023-09-11
A191: 189 | B191: 逆变器 | C191: 逆变器-60 | D191: 逆变器-60 | E191: 1 | F191: 11300 | G191: 11300 | H191: 山海新能-锦浪 | I191: 庄河荣名库 | J191: 潍坊地球村能源有限公司 | L191: 2023-09-11
A192: 190 | B192: 组件 | C192: 东方日升600 | D192: 东方日升600 | E192: 640 | F192: 1108.8 | G192: 709632 | H192: 东方日升 | I192: 庄河荣名库 | J192: 大连竣泰通信工程有限公司 | L192: 2023-09-12
A193: 191 | B193: 逆变器 | C193: 逆变器-33 | D193: 逆变器-33 | E193: 1 | F193: 8195 | G193: 8195 | H193: 山海新能-锦浪 | I193: 庄河荣名库 | J193: 大连竣泰通信工程有限公司 | L193: 2023-09-12
A194: 192 | B194: 逆变器 | C194: 逆变器-60 | D194: 逆变器-60 | E194: 1 | F194: 11300 | G194: 11300 | H194: 山海新能-锦浪 | I194: 庄河荣名库 | J194: 大连竣泰通信工程有限公司 | L194: 2023-09-12
A195: 193 | B195: 逆变器 | C195: 逆变器-40 | D195: 逆变器-40 | E195: 1 | F195: 8171 | G195: 8171 | H195: 固德威 | I195: 庄河荣名库 | J195: 大连竣泰通信工程有限公司 | L195: 2023-09-12
A196: 194 | B196: 逆变器 | C196: 逆变器-60 | D196: 逆变器-60 | E196: 5 | F196: 11300 | G196: 56500 | H196: 锦浪 | I196: 庄河荣名库 | J196: 辽宁圣东建筑工程有限公司 | L196: 2023-09-14
A197: 195 | B197: 逆变器 | C197: 逆变器-60 | D197: 逆变器-60 | E197: 3 | F197: 11300 | G197: 33900 | H197: 锦浪 | I197: 庄河荣名库 | J197: 大连竣泰通信工程有限公司 | L197: 2023-09-15
A198: 196 | B198: 组件 | C198: 东方日升600 | D198: 东方日升600 | E198: 640 | F198: 1108.8 | G198: 709632 | H198: 东方日升 | I198: 庄河荣名库 | J198: 大连竣泰通信工程有限公司 | L198: 2023-09-15
A199: 197 | B199: 逆变器 | C199: 逆变器-40 | D199: 逆变器-40 | E199: 3 | F199: 8171 | G199: 24513 | H199: 锦浪 | I199: 庄河荣名库 | J199: 大连竣泰通信工程有限公司 | L199: 2023-09-15
A200: 198 | B200: 组件 | C200: 东方日升600 | D200: 东方日升600 | E200: 320 | F200: 1108.8 | G200: 354816 | H200: 东方日升 | I200: 庄河荣名库 | J200: 大连竣泰通信工程有限公司 | L200: 2023-09-15
... 11 more rows

Sheet 安阳荣名库
A1: 山海货物出库明细
A2: 序号 | B2: 名称 | C2: 产品名称 | D2: 规格 | E2: 数量 | F2: 单价/元 | G2: 金额/元 | H2: 产品厂家 | I2: 仓库地点 | J2: 到达地点 | K2: 出库车牌号 | L2: 时间 | M2: 备注
A3: 1 | B3: 逆变器 | C3: 逆变器-13 | D3: 逆变器-13 | E3: 1 | F3: 3872 | G3: =E3*F3 -> 3872 | H3: 山海新能-锦浪 | I3: 安阳荣名库 | J3: 河北冀朋工程项目管理有限公司 | L3: 2023-07-02
A4: 2 | B4: 逆变器 | C4: 逆变器-33 | D4: 逆变器-33 | E4: 1 | F4: 9014.5 | G4: =E4*F4 -> 9014.5 | H4: 山海新能-锦浪 | I4: 安阳荣名库 | J4: 安阳营销中心 | L4: 2023-07-02
A5: 3 | B5: 逆变器 | C5: 逆变器-40 | D5: 逆变器-40 | E5: 1 | F5: 9559 | G5: 9559 | H5: 山海新能-锦浪 | I5: 安阳荣名库 | J5: 启阳（安阳）新能源有限公司 | L5: 2023-07-02
A6: 4 | B6: 逆变器 | C6: 逆变器-80 | D6: 逆变器-80 | E6: 1 | F6: 19030 | G6: 19030 | H6: 山海新能-锦浪 | I6: 安阳荣名库 | J6: 启阳（安阳）新能源有限公司 | L6: 2023-07-02
A7: 5 | B7: 逆变器 | C7: 逆变器-15 | D7: 逆变器-15 | E7: 1 | F7: 4295.5 | G7: 4295.5 | H7: 山海新能-锦浪 | I7: 安阳荣名库 | J7: 安阳营销中心 | L7: 2023-07-03
A8: 6 | B8: 逆变器 | C8: 逆变器-33 | D8: 逆变器-33 | E8: 1 | F8: 9014.5 | G8: 9014.5 | H8: 山海新能-锦浪 | I8: 安阳荣名库 | J8: 安阳营销中心 | L8: 2023-07-03
A9: 7 | B9: 逆变器 | C9: 逆变器-40 | D9: 逆变器-40 | E9: 1 | F9: 9559 | G9: 9559 | H9: 山海新能-锦浪 | I9: 安阳荣名库 | J9: 安阳营销中心 | L9: 2023-07-03
A10: 8 | B10: 逆变器 | C10: 逆变器-50 | D10: 逆变器-50 | E10: 1 | F10: 9900 | G10: 9900 | H10: 山海新能-古瑞瓦特 | I10: 安阳荣名库 | J10: 安阳营销中心 | L10: 2023-07-03
A11: 9 | B11: 组件 | C11: 晶科475 | D11: 晶科475 | E11: 620 | F11: 904 | G11: 560480 | H11: 山海智慧-天合 | I11: 安阳荣名库 | J11: 安阳营销中心 | L11: 2023-07-03T15:46:02
A12: 10 | B12: 组件 | C12: 阿特斯660 | D12: 阿特斯660 | E12: 775 | F12: 1075.8 | G12: 833745 | H12: 山海新能-阿特斯 | I12: 安阳荣名库 | J12: 唐县冉灏新能源开发有限责任公司 | L12: 2023-07-03T16:48:53
A13: 11 | B13: 逆变器 | C13: 逆变器-60 | D13: 逆变器-60 | E13: 2 | F13: 12430 | G13: 24860 | H13: 山海新能-锦浪 | I13: 安阳荣名库 | J13: 唐县冉灏新能源开发有限责任公司 | L13: 2023-07-04
A14: 12 | B14: 逆变器 | C14: 逆变器-60 | D14: 逆变器-60 | E14: 1 | F14: 12430 | G14: 12430 | H14: 山海新能-锦浪 | I14: 安阳荣名库 | J14: 唐县冉灏新能源开发有限责任公司 | L14: 2023-07-04
A15: 13 | B15: 逆变器 | C15: 逆变器-36 | D15: 逆变器-36 | E15: 4 | F15: 9377.5 | G15: 37510 | H15: 山海新能-锦浪 | I15: 安阳荣名库 | J15: 唐县冉灏新能源开发有限责任公司 | L15: 2023-07-04
A16: 14 | B16: 逆变器 | C16: 逆变器-20 | D16: 逆变器-20 | E16: 1 | F16: 4961 | G16: 4961 | H16: 山海新能-锦浪 | I16: 安阳荣名库 | J16: 唐县冉灏新能源开发有限责任公司 | L16: 2023-07-04
A17: 15 | B17: 组件 | C17: 晶科475 | D17: 晶科475 | E17: 34 | F17: 994.4 | G17: 33809.6 | H17: 山海智慧-天合 | I17: 安阳荣名库 | J17: 唐县冉灏新能源开发有限责任公司 | L17: 2023-07-04
A18: 16 | B18: 逆变器 | C18: 逆变器-80 | D18: 逆变器-80 | E18: 1 | F18: 19030 | G18: 19030 | H18: 山海新能-锦浪 | I18: 安阳荣名库 | J18: 唐县冉灏新能源开发有限责任公司 | L18: 2023-07-04
A19: 17 | B19: 逆变器 | C19: 逆变器-60 | D19: 逆变器-60 | E19: 1 | F19: 12430 | G19: 12430 | H19: 山海新能-锦浪 | I19: 安阳荣名库 | J19: 唐县冉灏新能源开发有限责任公司 | L19: 2023-07-04
A20: 18 | B20: 逆变器 | C20: 逆变器-33 | D20: 逆变器-33 | E20: 1 | F20: 9014.5 | G20: 9014.5 | H20: 山海新能-锦浪 | I20: 安阳荣名库 | J20: 安阳营销中心 | L20: 2023-07-05
A21: 19 | B21: 逆变器 | C21: 逆变器-40 | D21: 逆变器-40 | E21: 1 | F21: 9559 | G21: 9559 | H21: 山海新能-锦浪 | I21: 安阳荣名库 | J21: 安阳营销中心 | L21: 2023-07-05
A22: 20 | B22: 逆变器 | C22: 逆变器-60 | D22: 逆变器-60 | E22: 6 | F22: 11300 | G22: 67800 | H22: 山海新能-锦浪 | I22: 安阳荣名库 | J22: 河南晶特新能源有限公司 | L22: 2023-07-07T11:03:02
A23: 21 | B23: 逆变器 | C23: 逆变器-50 | D23: 逆变器-50 | E23: 17 | F23: 11990 | G23: 203830 | H23: 山海新能-锦浪 | I23: 安阳荣名库 | J23: 河南晶特新能源有限公司 | L23: 2023-07-07T11:03:02
A24: 22 | B24: 逆变器 | C24: 逆变器-40 | D24: 逆变器-40 | E24: 16 | F24: 8690 | G24: 139040 | H24: 山海新能-锦浪 | I24: 安阳荣名库 | J24: 河南晶特新能源有限公司 | L24: 2023-07-07T11:03:02
A25: 23 | B25: 逆变器 | C25: 逆变器-36 | D25: 逆变器-36 | E25: 8 | F25: 8525 | G25: 68200 | H25: 山海新能-锦浪 | I25: 安阳荣名库 | J25: 河南晶特新能源有限公司 | L25: 2023-07-07T11:03:02
A26: 24 | B26: 逆变器 | C26: 逆变器-30 | D26: 逆变器-30 | E26: 14 | F26: 7700 | G26: 107800 | H26: 山海新能-锦浪 | I26: 安阳荣名库 | J26: 河南晶特新能源有限公司 | L26: 2023-07-07T11:03:02
A27: 25 | B27: 逆变器 | C27: 逆变器-25 | D27: 逆变器-25 | E27: 12 | F27: 5170 | G27: 62040 | H27: 山海新能-锦浪 | I27: 安阳荣名库 | J27: 河南晶特新能源有限公司 | L27: 2023-07-07T11:03:02
A28: 26 | B28: 逆变器 | C28: 逆变器-20 | D28: 逆变器-20 | E28: 7 | F28: 4510 | G28: 31570 | H28: 山海新能-锦浪 | I28: 安阳荣名库 | J28: 河南晶特新能源有限公司 | L28: 2023-07-07T11:03:02
A29: 27 | B29: 逆变器 | C29: 逆变器-80 | D29: 逆变器-80 | E29: 2 | F29: 19030 | G29: 38060 | H29: 山海新能-锦浪 | I29: 安阳荣名库 | J29: 安阳营销中心 | L29: 2023-07-07T11:15:18
A30: 28 | B30: 逆变器 | C30: 逆变器-60 | D30: 逆变器-60 | E30: 1 | F30: 12430 | G30: 12430 | H30: 山海新能-锦浪 | I30: 安阳荣名库 | J30: 安阳营销中心 | L30: 2023-07-07T11:15:18
A31: 29 | B31: 逆变器 | C31: 逆变器-50 | D31: 逆变器-50 | E31: 4 | F31: 13189 | G31: 52756 | H31: 山海新能-锦浪 | I31: 安阳荣名库 | J31: 安阳营销中心 | L31: 2023-07-07T11:15:18
A32: 30 | B32: 逆变器 | C32: 逆变器-40 | D32: 逆变器-40 | E32: 1 | F32: 9559 | G32: 9559 | H32: 山海新能-锦浪 | I32: 安阳荣名库 | J32: 安阳营销中心 | L32: 2023-07-07T11:15:18
A33: 31 | B33: 逆变器 | C33: 逆变器-36 | D33: 逆变器-36 | E33: 1 | F33: 9377.5 | G33: 9377.5 | H33: 山海新能-锦浪 | I33: 安阳荣名库 | J33: 安阳营销中心 | L33: 2023-07-07T11:15:18
A34: 32 | B34: 逆变器 | C34: 逆变器-30 | D34: 逆变器-30 | E34: 4 | F34: 8470 | G34: 33880 | H34: 山海新能-锦浪 | I34: 安阳荣名库 | J34: 安阳营销中心 | L34: 2023-07-07T11:15:18
A35: 33 | B35: 逆变器 | C35: 逆变器-25 | D35: 逆变器-25 | E35: 2 | F35: 5687 | G35: 11374 | H35: 山海新能-锦浪 | I35: 安阳荣名库 | J35: 安阳营销中心 | L35: 2023-07-07T11:15:18
A36: 34 | B36: 逆变器 | C36: 逆变器-20 | D36: 逆变器-20 | E36: 2 | F36: 4961 | G36: =E36*F36 -> 9922 | H36: 山海新能-锦浪 | I36: 安阳荣名库 | J36: 安阳营销中心 | L36: 2023-07-07T11:15:18
A37: 35 | B37: 逆变器 | C37: 逆变器-80 | D37: 逆变器-80 | E37: 2 | F37: 17300 | G37: 34600 | H37: 山海新能-锦浪 | I37: 安阳荣名库 | J37: 河北冀朋工程项目管理有限公司 | L37: 2023-07-07T13:15:15
A38: 36 | B38: 逆变器 | C38: 逆变器-60 | D38: 逆变器-60 | E38: 3 | F38: 11300 | G38: 33900 | H38: 山海新能-锦浪 | I38: 安阳荣名库 | J38: 河北冀朋工程项目管理有限公司 | L38: 2023-07-07T13:15:15
A39: 37 | B39: 逆变器 | C39: 逆变器-50 | D39: 逆变器-50 | E39: 11 | F39: 11990 | G39: 131890 | H39: 山海新能-锦浪 | I39: 安阳荣名库 | J39: 河北冀朋工程项目管理有限公司 | L39: 2023-07-07T13:15:15
A40: 38 | B40: 逆变器 | C40: 逆变器-36 | D40: 逆变器-36 | E40: 2 | F40: 8525 | G40: 17050 | H40: 山海新能-锦浪 | I40: 安阳荣名库 | J40: 河北冀朋工程项目管理有限公司 | L40: 2023-07-07T13:15:15
A41: 39 | B41: 逆变器 | C41: 逆变器-30 | D41: 逆变器-30 | E41: 3 | F41: 7700 | G41: 23100 | H41: 山海新能-锦浪 | I41: 安阳荣名库 | J41: 河北冀朋工程项目管理有限公司 | L41: 2023-07-07T13:15:15
A42: 40 | B42: 逆变器 | C42: 逆变器-25 | D42: 逆变器-25 | E42: 1 | F42: 5170 | G42: 5170 | H42: 山海新能-锦浪 | I42: 安阳荣名库 | J42: 河北冀朋工程项目管理有限公司 | L42: 2023-07-07T13:15:15
A43: 41 | B43: 逆变器 | C43: 逆变器-20 | D43: 逆变器-20 | E43: 3 | F43: 4510 | G43: 13530 | H43: 山海新能-锦浪 | I43: 安阳荣名库 | J43: 河北冀朋工程项目管理有限公司 | L43: 2023-07-07T13:15:15
A44: 42 | B44: 组件 | C44: 东方日升660 | D44: 东方日升660 | E44: 1536 | F44: 1014 | G44: 1557504 | H44: 山海新能-东方日升 | I44: 安阳荣名库 | J44: 河南晶特新能源有限公司 | L44: 2023-07-07T14:19:21
A45: 43 | B45: 组件 | C45: 东方日升660 | D45: 东方日升660 | E45: 1536 | F45: 1014 | G45: 1557504 | H45: 山海新能-东方日升 | I45: 安阳荣名库 | J45: 河北冀朋工程项目管理有限公司 | L45: 2023-07-07T14:20:16
A46: 44 | B46: 组件 | C46: 东方日升660 | D46: 东方日升660 | E46: 1536 | F46: 1115.4 | G46: 1713254.4 | H46: 山海新能-东方日升 | I46: 安阳荣名库 | J46: 安阳营销中心 | L46: 2023-07-07T14:20:49
A47: 45 | B47: 逆变器 | C47: 逆变器-40 | D47: 逆变器-40 | E47: 2 | F47: 8690 | G47: 17380 | H47: 山海新能-锦浪 | I47: 安阳荣名库 | J47: 唐县冉灏新能源开发有限责任公司 | L47: 2023-07-07T16:37:01
A48: 46 | B48: 逆变器 | C48: 逆变器-80 | D48: 逆变器-80 | E48: 4 | F48: 17300 | G48: 69200 | H48: 山海新能-锦浪 | I48: 安阳荣名库 | J48: 唐县冉灏新能源开发有限责任公司 | L48: 2023-07-07T16:37:01
A49: 47 | B49: 逆变器 | C49: 逆变器-60 | D49: 逆变器-60 | E49: 3 | F49: 11300 | G49: 33900 | H49: 山海新能-锦浪 | I49: 安阳荣名库 | J49: 唐县冉灏新能源开发有限责任公司 | L49: 2023-07-07T16:37:01
A50: 48 | B50: 逆变器 | C50: 逆变器-50 | D50: 逆变器-50 | E50: 13 | F50: 11990 | G50: 155870 | H50: 山海新能-锦浪 | I50: 安阳荣名库 | J50: 唐县冉灏新能源开发有限责任公司 | L50: 2023-07-07T16:37:01
A51: 49 | B51: 逆变器 | C51: 逆变器-36 | D51: 逆变器-36 | E51: 5 | F51: 8525 | G51: 42625 | H51: 山海新能-锦浪 | I51: 安阳荣名库 | J51: 唐县冉灏新能源开发有限责任公司 | L51: 2023-07-07T16:37:01
A52: 50 | B52: 逆变器 | C52: 逆变器-30 | D52: 逆变器-30 | E52: 8 | F52: 7700 | G52: 61600 | H52: 山海新能-锦浪 | I52: 安阳荣名库 | J52: 唐县冉灏新能源开发有限责任公司 | L52: 2023-07-07T16:37:01
A53: 51 | B53: 逆变器 | C53: 逆变器-25 | D53: 逆变器-25 | E53: 9 | F53: 5170 | G53: 46530 | H53: 山海新能-锦浪 | I53: 安阳荣名库 | J53: 唐县冉灏新能源开发有限责任公司 | L53: 2023-07-07T16:37:01
A54: 52 | B54: 逆变器 | C54: 逆变器-20 | D54: 逆变器-20 | E54: 1 | F54: 4510 | G54: 4510 | H54: 山海新能-锦浪 | I54: 安阳荣名库 | J54: 唐县冉灏新能源开发有限责任公司 | L54: 2023-07-07T16:37:01
A55: 53 | B55: 逆变器 | C55: 逆变器-15 | D55: 逆变器-15 | E55: 1 | F55: 3905 | G55: 3905 | H55: 山海新能-锦浪 | I55: 安阳荣名库 | J55: 唐县冉灏新能源开发有限责任公司 | L55: 2023-07-07T16:37:01
A56: 54 | B56: 组件 | C56: 东方日升660 | D56: 东方日升660 | E56: 768 | F56: 1014 | G56: 778752 | H56: 山海新能-东方日升 | I56: 安阳荣名库 | J56: 河南晶特新能源有限公司 | L56: 2023-07-08T17:15:36
A57: 55 | B57: 组件 | C57: 东方日升660 | D57: 东方日升660 | E57: 768 | F57: 1014 | G57: 778752 | H57: 山海新能-东方日升 | I57: 安阳荣名库 | J57: 河北冀朋工程项目管理有限公司 | L57: 2023-07-08T17:16:47
A58: 56 | B58: 组件 | C58: 东方日升660 | D58: 东方日升660 | E58: 768 | F58: 1014 | G58: 778752 | H58: 山海新能-东方日升 | I58: 安阳荣名库 | J58: 河南晶特新能源有限公司 | L58: 2023-07-10T10:34:05
A59: 57 | B59: 逆变器 | C59: 逆变器-33 | D59: 逆变器-33 | E59: 1 | F59: 8195 | G59: 8195 | H59: 山海新能-锦浪 | I59: 安阳荣名库 | J59: 安阳营销中心 | L59: 2023-07-10T10:38:45
A60: 58 | B60: 逆变器 | C60: 逆变器-30 | D60: 逆变器-30 | E60: 2 | F60: 7700 | G60: 15400 | H60: 山海新能-锦浪 | I60: 安阳荣名库 | J60: 安阳营销中心 | L60: 2023-07-10T10:38:45
A61: 59 | B61: 逆变器 | C61: 逆变器-50 | D61: 逆变器-50 | E61: 4 | F61: 9000 | G61: 36000 | H61: 山海新能-古瑞瓦特 | I61: 安阳荣名库 | J61: 庄河荣名库 | L61: 2023-07-10T16:14:41
A62: 60 | B62: 逆变器 | C62: 逆变器-40 | D62: 逆变器-40 | E62: 32 | F62: 8171 | G62: 261472 | H62: 山海新能-固德威 | I62: 安阳荣名库 | J62: 庄河荣名库 | L62: 2023-07-10T16:14:41
A63: 61 | B63: 逆变器 | C63: 逆变器-36 | D63: 逆变器-36 | E63: 15 | F63: 7660 | G63: 114900 | H63: 山海新能-固德威 | I63: 安阳荣名库 | J63: 庄河荣名库 | L63: 2023-07-10T16:14:41
A64: 62 | B64: 逆变器 | C64: 逆变器-30 | D64: 逆变器-30 | E64: 26 | F64: 7100 | G64: 184600 | H64: 山海新能-固德威 | I64: 安阳荣名库 | J64: 庄河荣名库 | L64: 2023-07-10T16:14:41
A65: 63 | B65: 逆变器 | C65: 逆变器-33 | D65: 逆变器-33 | E65: 22 | F65: 8195 | G65: 180290 | H65: 山海新能-锦浪 | I65: 安阳荣名库 | J65: 庄河荣名库 | L65: 2023-07-10T16:14:41
A66: 64 | B66: 逆变器 | C66: 逆变器-20 | D66: 逆变器-20 | E66: 12 | F66: 4510 | G66: 54120 | H66: 山海新能-锦浪 | I66: 安阳荣名库 | J66: 庄河荣名库 | L66: 2023-07-10T16:14:41
A67: 65 | B67: 逆变器 | C67: 逆变器-15 | D67: 逆变器-15 | E67: 21 | F67: 3905 | G67: 82005 | H67: 山海新能-锦浪 | I67: 安阳荣名库 | J67: 庄河荣名库 | L67: 2023-07-10T16:14:41
A68: 66 | B68: 逆变器 | C68: 逆变器-20 | D68: 逆变器-20 | E68: 1 | F68: 4510 | G68: =E68*F68 -> 4510 | H68: 山海新能-锦浪 | I68: 安阳荣名库 | J68: 藁城荣名库 | L68: 2023-07-10T16:50:56
A69: 67 | B69: 逆变器 | C69: 逆变器-25 | D69: 逆变器-25 | E69: 1 | F69: 5687 | G69: 5687 | H69: 山海新能-锦浪 | I69: 安阳荣名库 | J69: 安阳营销中心 | L69: 2023-07-12
A70: 68 | B70: 逆变器 | C70: 逆变器-25 | D70: 逆变器-25 | E70: 2 | F70: 5170 | G70: 10340 | H70: 山海新能-锦浪 | I70: 安阳荣名库 | J70: 庄河荣名库 | L70: 2023-07-12T11:48:06
A71: 69 | B71: 逆变器 | C71: 逆变器-40 | D71: 逆变器-40 | E71: 1 | F71: 8690 | G71: 8690 | H71: 山海新能-锦浪 | I71: 安阳荣名库 | J71: 河北冀朋工程项目管理有限公司 | L71: 2023-07-13T15:55:56
A72: 70 | B72: 逆变器 | C72: 逆变器-20 | D72: 逆变器-20 | E72: 2 | F72: 4510 | G72: 9020 | H72: 山海新能-锦浪 | I72: 安阳荣名库 | J72: 河北冀朋工程项目管理有限公司 | L72: 2023-07-13T15:55:56
A73: 71 | B73: 逆变器 | C73: 逆变器-15 | D73: 逆变器-15 | E73: 2 | F73: 3905 | G73: 7810 | H73: 山海新能-锦浪 | I73: 安阳荣名库 | J73: 河南晶特新能源有限公司 | L73: 2023-07-14T10:32:17
A74: 72 | B74: 逆变器 | C74: 逆变器-13 | D74: 逆变器-13 | E74: 2 | F74: 3520 | G74: 7040 | H74: 山海新能-锦浪 | I74: 安阳荣名库 | J74: 河南晶特新能源有限公司 | L74: 2023-07-14T10:32:17
A75: 73 | B75: 逆变器 | C75: 逆变器-50 | D75: 逆变器-50 | E75: 4 | F75: 11990 | G75: 47960 | H75: 山海新能-锦浪 | I75: 安阳荣名库 | J75: 河北冀朋工程项目管理有限公司 | L75: 2023-07-17T09:16:20
A76: 74 | B76: 逆变器 | C76: 逆变器-40 | D76: 逆变器-40 | E76: 5 | F76: 8690 | G76: 43450 | H76: 山海新能-锦浪 | I76: 安阳荣名库 | J76: 河北冀朋工程项目管理有限公司 | L76: 2023-07-17T09:16:20
A77: 75 | B77: 逆变器 | C77: 逆变器-30 | D77: 逆变器-30 | E77: 1 | F77: 7700 | G77: 7700 | H77: 山海新能-锦浪 | I77: 安阳荣名库 | J77: 河北冀朋工程项目管理有限公司 | L77: 2023-07-17T09:16:20
A78: 76 | B78: 逆变器 | C78: 逆变器-25 | D78: 逆变器-25 | E78: 2 | F78: 5170 | G78: 10340 | H78: 山海新能-锦浪 | I78: 安阳荣名库 | J78: 河北冀朋工程项目管理有限公司 | L78: 2023-07-17T09:16:20
A79: 77 | B79: 逆变器 | C79: 逆变器-20 | D79: 逆变器-20 | E79: 1 | F79: 4510 | G79: 4510 | H79: 山海新能-锦浪 | I79: 安阳荣名库 | J79: 河北冀朋工程项目管理有限公司 | L79: 2023-07-17T09:16:20
A80: 78 | B80: 组件 | C80: 东方日升660 | D80: 东方日升660 | E80: 768 | F80: 1014 | G80: 778752 | H80: 山海新能-东方日升 | I80: 安阳荣名库 | J80: 河南晶特新能源有限公司 | L80: 2023-07-18T15:14:07
A81: 79 | B81: 组件 | C81: 东方日升660 | D81: 东方日升660 | E81: 768 | F81: 1014 | G81: 778752 | H81: 山海新能-东方日升 | I81: 安阳荣名库 | J81: 河北冀朋工程项目管理有限公司 | L81: 2023-07-19T08:47:30
A82: 80 | B82: 组件 | C82: 东方日升660 | D82: 东方日升660 | E82: 768 | F82: 1014 | G82: 778752 | H82: 山海新能-东方日升 | I82: 安阳荣名库 | J82: 唐县德闰新能源开发有限公司 | L82: 2023-07-19T08:50:38
A83: 81 | B83: 逆变器 | C83: 逆变器-80 | D83: 逆变器-80 | E83: 2 | F83: 17300 | G83: 34600 | H83: 山海新能-锦浪 | I83: 安阳荣名库 | J83: 邯郸一铭新能源科技有限公司 | L83: 2023-07-19T10:02:32
A84: 82 | B84: 逆变器 | C84: 逆变器-60 | D84: 逆变器-60 | E84: 3 | F84: 11300 | G84: 33900 | H84: 山海新能-锦浪 | I84: 安阳荣名库 | J84: 邯郸一铭新能源科技有限公司 | L84: 2023-07-19T10:02:32
A85: 83 | B85: 逆变器 | C85: 逆变器-20 | D85: 逆变器-20 | E85: 5 | F85: 4510 | G85: 22550 | H85: 山海新能-锦浪 | I85: 安阳荣名库 | J85: 邯郸一铭新能源科技有限公司 | L85: 2023-07-19T10:02:32
A86: 84 | B86: 逆变器 | C86: 逆变器-15 | D86: 逆变器-15 | E86: 1 | F86: 3905 | G86: 3905 | H86: 山海新能-锦浪 | I86: 安阳荣名库 | J86: 邯郸一铭新能源科技有限公司 | L86: 2023-07-19T10:02:32
A87: 85 | B87: 逆变器 | C87: 逆变器-25 | D87: 逆变器-25 | E87: 2 | F87: 5170 | G87: 10340 | H87: 山海新能-锦浪 | I87: 安阳荣名库 | J87: 邯郸一铭新能源科技有限公司 | L87: 2023-07-19T10:02:32
A88: 86 | B88: 逆变器 | C88: 逆变器-50 | D88: 逆变器-50 | E88: 2 | F88: 11990 | G88: 23980 | H88: 山海新能-锦浪 | I88: 安阳荣名库 | J88: 邯郸一铭新能源科技有限公司 | L88: 2023-07-19T10:02:32
A89: 87 | B89: 逆变器 | C89: 逆变器-30 | D89: 逆变器-30 | E89: 6 | F89: 7700 | G89: 46200 | H89: 山海新能-锦浪 | I89: 安阳荣名库 | J89: 邯郸一铭新能源科技有限公司 | L89: 2023-07-19T10:02:32
A90: 88 | B90: 逆变器 | C90: 逆变器-13 | D90: 逆变器-13 | E90: 1 | F90: 3520 | G90: 3520 | H90: 山海新能-锦浪 | I90: 安阳荣名库 | J90: 邯郸一铭新能源科技有限公司 | L90: 2023-07-19T10:02:32
A91: 89 | B91: 逆变器 | C91: 逆变器-33 | D91: 逆变器-33 | E91: 1 | F91: 8195 | G91: 8195 | H91: 山海新能-锦浪 | I91: 安阳荣名库 | J91: 邯郸一铭新能源科技有限公司 | L91: 2023-07-19T10:02:32
A92: 90 | B92: 逆变器 | C92: 逆变器-25 | D92: 逆变器-25 | E92: 1 | F92: 4750 | G92: 4750 | H92: 山海新能-固德威 | I92: 安阳荣名库 | J92: 邯郸一铭新能源科技有限公司 | L92: 2023-07-19T10:02:32
A93: 91 | B93: 组件 | C93: 晶科475 | D93: 晶科475 | E93: 111 | F93: 904 | G93: 100344 | H93: 山海智慧-天合 | I93: 安阳荣名库 | J93: 邯郸一铭新能源科技有限公司 | L93: 2023-07-19T10:02:32
A94: 92 | B94: 组件 | C94: 天合660 | D94: 天合660 | E94: 23 | F94: 1267 | G94: 29141 | H94: 山海智慧-天合 | I94: 安阳荣名库 | J94: 邯郸一铭新能源科技有限公司 | L94: 2023-07-19T10:02:32
A95: 93 | B95: 组件 | C95: 阿特斯660 | D95: 阿特斯660 | E95: 63 | F95: 1075.8 | G95: 67775.4 | H95: 山海新能-阿特斯 | I95: 安阳荣名库 | J95: 邯郸一铭新能源科技有限公司 | L95: 2023-07-19T10:02:32
A96: 94 | B96: 组件 | C96: 东方日升660 | D96: 东方日升660 | E96: 1130 | F96: 1014 | G96: 1145820 | H96: 山海新能-东方日升 | I96: 安阳荣名库 | J96: 邯郸一铭新能源科技有限公司 | L96: 2023-07-19T10:02:32
A97: 95 | B97: 组件 | C97: 东方日升660 | D97: 东方日升660 | E97: 384 | F97: 1014 | G97: 389376 | H97: 山海新能-东方日升 | I97: 安阳荣名库 | J97: 河南晶特新能源有限公司 | L97: 2023-07-19T12:51:51
A98: 96 | B98: 组件 | C98: 东方日升660 | D98: 东方日升660 | E98: 384 | F98: 1014 | G98: 389376 | H98: 山海新能-东方日升 | I98: 安阳荣名库 | J98: 河北冀朋工程项目管理有限公司 | L98: 2023-07-19T12:52:36
A99: 97 | B99: 组件 | C99: 东方日升660 | D99: 东方日升660 | E99: 768 | F99: 1014 | G99: 778752 | H99: 山海新能-东方日升 | I99: 安阳荣名库 | J99: 河北冀朋工程项目管理有限公司 | L99: 2023-07-19T17:04:30
A100: 98 | B100: 组件 | C100: 东方日升660 | D100: 东方日升660 | E100: 768 | F100: 1014 | G100: =E100*F100 -> 778752 | H100: 山海新能-东方日升 | I100: 安阳荣名库 | J100: 河南晶特新能源有限公司 | L100: 2023-07-20T09:01:54
A101: 99 | B101: 组件 | C101: 东方日升660 | D101: 东方日升660 | E101: 768 | F101: 1014 | G101: 778752 | H101: 山海新能-东方日升 | I101: 安阳荣名库 | J101: 启阳（安阳）新能源有限公司 | L101: 2023-07-22T10:45:41
A102: 100 | B102: 逆变器 | C102: 逆变器-50 | D102: 逆变器-50 | E102: 2 | F102: 11990 | G102: 23980 | H102: 山海新能-锦浪 | I102: 安阳荣名库 | J102: 启阳（安阳）新能源有限公司 | L102: 2023-07-24T12:11:31
A103: 101 | B103: 逆变器 | C103: 逆变器-40 | D103: 逆变器-40 | E103: 1 | F103: 8690 | G103: 8690 | H103: 山海新能-锦浪 | I103: 安阳荣名库 | J103: 启阳（安阳）新能源有限公司 | L103: 2023-07-24T12:11:31
A104: 102 | B104: 逆变器 | C104: 逆变器-50 | D104: 逆变器-50 | E104: 6 | F104: 11990 | G104: 71940 | H104: 山海新能-锦浪 | I104: 安阳荣名库 | J104: 河北冀朋工程项目管理有限公司 | L104: 2023-07-24T16:24:37
A105: 103 | B105: 逆变器 | C105: 逆变器-40 | D105: 逆变器-40 | E105: 6 | F105: 8690 | G105: 52140 | H105: 山海新能-锦浪 | I105: 安阳荣名库 | J105: 河北冀朋工程项目管理有限公司 | L105: 2023-07-24T16:24:37
A106: 104 | B106: 逆变器 | C106: 逆变器-36 | D106: 逆变器-36 | E106: 6 | F106: 8525 | G106: 51150 | H106: 山海新能-锦浪 | I106: 安阳荣名库 | J106: 河北冀朋工程项目管理有限公司 | L106: 2023-07-24T16:24:37
A107: 105 | B107: 逆变器 | C107: 逆变器-30 | D107: 逆变器-30 | E107: 6 | F107: 7700 | G107: 46200 | H107: 山海新能-锦浪 | I107: 安阳荣名库 | J107: 河北冀朋工程项目管理有限公司 | L107: 2023-07-24T16:24:37
A108: 106 | B108: 逆变器 | C108: 逆变器-25 | D108: 逆变器-25 | E108: 5 | F108: 5170 | G108: 25850 | H108: 山海新能-锦浪 | I108: 安阳荣名库 | J108: 河北冀朋工程项目管理有限公司 | L108: 2023-07-24T16:24:37
A109: 107 | B109: 逆变器 | C109: 逆变器-50 | D109: 逆变器-50 | E109: 4 | F109: 11990 | G109: 47960 | H109: 山海新能-锦浪 | I109: 安阳荣名库 | J109: 邯郸一铭新能源科技有限公司 | L109: 2023-07-24T16:29:56
A110: 108 | B110: 逆变器 | C110: 逆变器-40 | D110: 逆变器-40 | E110: 5 | F110: 8690 | G110: 43450 | H110: 山海新能-锦浪 | I110: 安阳荣名库 | J110: 邯郸一铭新能源科技有限公司 | L110: 2023-07-24T16:29:56
A111: 109 | B111: 逆变器 | C111: 逆变器-36 | D111: 逆变器-36 | E111: 4 | F111: 8525 | G111: 34100 | H111: 山海新能-锦浪 | I111: 安阳荣名库 | J111: 邯郸一铭新能源科技有限公司 | L111: 2023-07-24T16:29:56
A112: 110 | B112: 逆变器 | C112: 逆变器-30 | D112: 逆变器-30 | E112: 3 | F112: 7700 | G112: 23100 | H112: 山海新能-锦浪 | I112: 安阳荣名库 | J112: 邯郸一铭新能源科技有限公司 | L112: 2023-07-24T16:29:56
A113: 111 | B113: 逆变器 | C113: 逆变器-25 | D113: 逆变器-25 | E113: 4 | F113: 5170 | G113: 20680 | H113: 山海新能-锦浪 | I113: 安阳荣名库 | J113: 邯郸一铭新能源科技有限公司 | L113: 2023-07-24T16:29:56
A114: 112 | B114: 逆变器 | C114: 逆变器-20 | D114: 逆变器-20 | E114: 4 | F114: 4510 | G114: 18040 | H114: 山海新能-锦浪 | I114: 安阳荣名库 | J114: 邯郸一铭新能源科技有限公司 | L114: 2023-07-24T16:29:56
A115: 113 | B115: 逆变器 | C115: 逆变器-50 | D115: 逆变器-50 | E115: 2 | F115: 11990 | G115: 23980 | H115: 山海新能-锦浪 | I115: 安阳荣名库 | J115: 启阳（安阳）新能源有限公司 | L115: 2023-07-24T16:36:09
A116: 114 | B116: 逆变器 | C116: 逆变器-40 | D116: 逆变器-40 | E116: 1 | F116: 8690 | G116: 8690 | H116: 山海新能-锦浪 | I116: 安阳荣名库 | J116: 启阳（安阳）新能源有限公司 | L116: 2023-07-24T16:36:09
A117: 115 | B117: 逆变器 | C117: 逆变器-25 | D117: 逆变器-25 | E117: 5 | F117: 5170 | G117: 25850 | H117: 山海新能-锦浪 | I117: 安阳荣名库 | J117: 河南省茂凯莱新能源科技有限公司（盛兴英) | L117: 2023-07-24T16:40:27
A118: 116 | B118: 逆变器 | C118: 逆变器-50 | D118: 逆变器-50 | E118: 6 | F118: 11990 | G118: 71940 | H118: 山海新能-锦浪 | I118: 安阳荣名库 | J118: 河北冀朋工程项目管理有限公司 | L118: 2023-07-24T16:59:37
A119: 117 | B119: 逆变器 | C119: 逆变器-40 | D119: 逆变器-40 | E119: 6 | F119: 8690 | G119: 52140 | H119: 山海新能-锦浪 | I119: 安阳荣名库 | J119: 河北冀朋工程项目管理有限公司 | L119: 2023-07-24T16:59:37
A120: 118 | B120: 逆变器 | C120: 逆变器-36 | D120: 逆变器-36 | E120: 6 | F120: 8525 | G120: 51150 | H120: 山海新能-锦浪 | I120: 安阳荣名库 | J120: 河北冀朋工程项目管理有限公司 | L120: 2023-07-24T16:59:37
A121: 119 | B121: 逆变器 | C121: 逆变器-30 | D121: 逆变器-30 | E121: 6 | F121: 7700 | G121: 46200 | H121: 山海新能-锦浪 | I121: 安阳荣名库 | J121: 河北冀朋工程项目管理有限公司 | L121: 2023-07-24T16:59:37
A122: 120 | B122: 逆变器 | C122: 逆变器-25 | D122: 逆变器-25 | E122: 5 | F122: 5170 | G122: 25850 | H122: 山海新能-锦浪 | I122: 安阳荣名库 | J122: 河北冀朋工程项目管理有限公司 | L122: 2023-07-24T16:59:37
A123: 121 | B123: 逆变器 | C123: 逆变器-50 | D123: 逆变器-50 | E123: 10 | F123: 11990 | G123: 119900 | H123: 山海新能-锦浪 | I123: 安阳荣名库 | J123: 河南晶特新能源有限公司 | L123: 2023-07-24T17:09:50
A124: 122 | B124: 逆变器 | C124: 逆变器-40 | D124: 逆变器-40 | E124: 12 | F124: 8690 | G124: 104280 | H124: 山海新能-锦浪 | I124: 安阳荣名库 | J124: 河南晶特新能源有限公司 | L124: 2023-07-24T17:09:50
A125: 123 | B125: 逆变器 | C125: 逆变器-36 | D125: 逆变器-36 | E125: 12 | F125: 8525 | G125: 102300 | H125: 山海新能-锦浪 | I125: 安阳荣名库 | J125: 河南晶特新能源有限公司 | L125: 2023-07-24T17:09:50
A126: 124 | B126: 逆变器 | C126: 逆变器-30 | D126: 逆变器-30 | E126: 10 | F126: 7700 | G126: 77000 | H126: 山海新能-锦浪 | I126: 安阳荣名库 | J126: 河南晶特新能源有限公司 | L126: 2023-07-24T17:09:50
A127: 125 | B127: 逆变器 | C127: 逆变器-25 | D127: 逆变器-25 | E127: 8 | F127: 5170 | G127: 41360 | H127: 山海新能-锦浪 | I127: 安阳荣名库 | J127: 河南晶特新能源有限公司 | L127: 2023-07-24T17:09:50
A128: 126 | B128: 逆变器 | C128: 逆变器-20 | D128: 逆变器-20 | E128: 8 | F128: 4510 | G128: 36080 | H128: 山海新能-锦浪 | I128: 安阳荣名库 | J128: 河南晶特新能源有限公司 | L128: 2023-07-24T17:09:50
A129: 127 | B129: 逆变器 | C129: 逆变器-15 | D129: 逆变器-15 | E129: 2 | F129: 3905 | G129: 7810 | H129: 山海新能-锦浪 | I129: 安阳荣名库 | J129: 河南晶特新能源有限公司 | L129: 2023-07-24T17:09:50
A130: 128 | B130: 逆变器 | C130: 逆变器-50 | D130: 逆变器-50 | E130: 6 | F130: 11990 | G130: 71940 | H130: 山海新能-锦浪 | I130: 安阳荣名库 | J130: 唐县德闰新能源开发有限公司 | L130: 2023-07-25T16:35:35
A131: 129 | B131: 逆变器 | C131: 逆变器-40 | D131: 逆变器-40 | E131: 2 | F131: 8690 | G131: 17380 | H131: 山海新能-锦浪 | I131: 安阳荣名库 | J131: 唐县德闰新能源开发有限公司 | L131: 2023-07-25T16:35:35
A132: 130 | B132: 逆变器 | C132: 逆变器-36 | D132: 逆变器-36 | E132: 12 | F132: 8525 | G132: =E132*F132 -> 102300 | H132: 山海新能-锦浪 | I132: 安阳荣名库 | J132: 唐县德闰新能源开发有限公司 | L132: 2023-07-25T16:35:35
A133: 131 | B133: 逆变器 | C133: 逆变器-50 | D133: 逆变器-50 | E133: 2 | F133: 11990 | G133: 23980 | H133: 山海新能-锦浪 | I133: 安阳荣名库 | J133: 启阳（安阳）新能源有限公司 | L133: 2023-07-27T09:23:23
A134: 132 | B134: 逆变器 | C134: 逆变器-50 | D134: 逆变器-50 | E134: 10 | F134: 11990 | G134: 119900 | H134: 山海新能-锦浪 | I134: 安阳荣名库 | J134: 唐县冉灏新能源开发有限责任公司 | L134: 2023-07-27T09:59:24
A135: 133 | B135: 逆变器 | C135: 逆变器-40 | D135: 逆变器-40 | E135: 6 | F135: 8690 | G135: 52140 | H135: 山海新能-锦浪 | I135: 安阳荣名库 | J135: 唐县冉灏新能源开发有限责任公司 | L135: 2023-07-27T09:59:24
A136: 134 | B136: 逆变器 | C136: 逆变器-36 | D136: 逆变器-36 | E136: 6 | F136: 8525 | G136: 51150 | H136: 山海新能-锦浪 | I136: 安阳荣名库 | J136: 唐县冉灏新能源开发有限责任公司 | L136: 2023-07-27T09:59:24
A137: 135 | B137: 逆变器 | C137: 逆变器-30 | D137: 逆变器-30 | E137: 5 | F137: 7700 | G137: 38500 | H137: 山海新能-锦浪 | I137: 安阳荣名库 | J137: 唐县冉灏新能源开发有限责任公司 | L137: 2023-07-27T09:59:24
A138: 136 | B138: 逆变器 | C138: 逆变器-25 | D138: 逆变器-25 | E138: 5 | F138: 5170 | G138: 25850 | H138: 山海新能-锦浪 | I138: 安阳荣名库 | J138: 唐县冉灏新能源开发有限责任公司 | L138: 2023-07-27T09:59:24
A139: 137 | B139: 逆变器 | C139: 逆变器-20 | D139: 逆变器-20 | E139: 1 | F139: 4510 | G139: 4510 | H139: 山海新能-锦浪 | I139: 安阳荣名库 | J139: 唐县冉灏新能源开发有限责任公司 | L139: 2023-07-27T09:59:24
A140: 138 | B140: 逆变器 | C140: 逆变器-25 | D140: 逆变器-25 | E140: 5 | F140: 5170 | G140: 25850 | H140: 山海新能-锦浪 | I140: 安阳荣名库 | J140: 河南省茂凯莱新能源科技有限公司（盛兴英) | L140: 2023-07-28T15:54:57
A141: 139 | B141: 逆变器 | C141: 逆变器-50 | D141: 逆变器-50 | E141: 1 | F141: 11990 | G141: 11990 | H141: 山海新能-锦浪 | I141: 安阳荣名库 | J141: 河南省茂凯莱新能源科技有限公司（盛兴英) | L141: 2023-07-31T15:40:30
A142: 140 | B142: 逆变器 | C142: 逆变器-40 | D142: 逆变器-40 | E142: 1 | F142: 8690 | G142: 8690 | H142: 山海新能-锦浪 | I142: 安阳荣名库 | J142: 河南省茂凯莱新能源科技有限公司（盛兴英) | L142: 2023-07-31T15:40:30
A143: 141 | B143: 逆变器 | C143: 逆变器-30 | D143: 逆变器-30 | E143: 2 | F143: 7700 | G143: 15400 | H143: 山海新能-锦浪 | I143: 安阳荣名库 | J143: 河南省茂凯莱新能源科技有限公司（盛兴英) | L143: 2023-07-31T15:40:30
A144: 142 | B144: 逆变器 | C144: 逆变器-25 | D144: 逆变器-25 | E144: 2 | F144: 5170 | G144: 10340 | H144: 山海新能-锦浪 | I144: 安阳荣名库 | J144: 河南省茂凯莱新能源科技有限公司（盛兴英) | L144: 2023-07-31T15:40:30
A145: 143 | B145: 逆变器 | C145: 逆变器-20 | D145: 逆变器-20 | E145: 1 | F145: 4510 | G145: 4510 | H145: 山海新能-锦浪 | I145: 安阳荣名库 | J145: 河南省茂凯莱新能源科技有限公司（盛兴英) | L145: 2023-07-31T15:40:30
A146: 144 | B146: 组件 | C146: 东方日升660 | D146: 东方日升660 | E146: 768 | F146: 1014 | G146: 778752 | H146: 山海新能-东方日升 | I146: 安阳荣名库 | J146: 河南省茂凯莱新能源科技有限公司（盛兴英) | L146: 2023-08-01T12:17:29
A147: 145 | B147: 组件 | C147: 东方日升660 | D147: 东方日升660 | E147: 768 | F147: 1014 | G147: 778752 | H147: 山海新能-东方日升 | I147: 安阳荣名库 | J147: 唐县冉灏新能源开发有限责任公司 | L147: 2023-08-01T12:19:03
A148: 146 | B148: 逆变器 | C148: 逆变器-60 | D148: 逆变器-60 | E148: 8 | F148: 11300 | G148: 90400 | H148: 山海新能-锦浪 | I148: 安阳荣名库 | J148: 邯郸一铭新能源科技有限公司 | L148: 2023-08-04T11:18:33
A149: 147 | B149: 逆变器 | C149: 逆变器-80 | D149: 逆变器-80 | E149: 5 | F149: 17300 | G149: 86500 | H149: 山海新能-锦浪 | I149: 安阳荣名库 | J149: 邯郸一铭新能源科技有限公司 | L149: 2023-08-04T11:18:33
A150: 148 | B150: 逆变器 | C150: 逆变器-80 | D150: 逆变器-80 | E150: 2 | F150: 17300 | G150: 34600 | H150: 山海新能-锦浪 | I150: 安阳荣名库 | J150: 河北冀朋工程项目管理有限公司 | L150: 2023-08-04T16:49:44
A151: 149 | B151: 逆变器 | C151: 逆变器-60 | D151: 逆变器-60 | E151: 6 | F151: 11300 | G151: 67800 | H151: 山海新能-锦浪 | I151: 安阳荣名库 | J151: 河北冀朋工程项目管理有限公司 | L151: 2023-08-04T16:49:44
A152: 150 | B152: 逆变器 | C152: 逆变器-25 | D152: 逆变器-25 | E152: 3 | F152: 5170 | G152: 15510 | H152: 山海新能-锦浪 | I152: 安阳荣名库 | J152: 启阳（安阳）新能源有限公司 | L152: 2023-08-07T11:37:26
A153: 151 | B153: 逆变器 | C153: 逆变器-30 | D153: 逆变器-30 | E153: 1 | F153: 7700 | G153: 7700 | H153: 山海新能-锦浪 | I153: 安阳荣名库 | J153: 启阳（安阳）新能源有限公司 | L153: 2023-08-07T11:37:26
A154: 152 | B154: 逆变器 | C154: 逆变器-60 | D154: 逆变器-60 | E154: 1 | F154: 11300 | G154: 11300 | H154: 山海新能-锦浪 | I154: 安阳荣名库 | J154: 启阳（安阳）新能源有限公司 | L154: 2023-08-07T11:37:26
A155: 153 | B155: 组件 | C155: 东方日升660 | D155: 东方日升660 | E155: 768 | F155: 1014 | G155: 778752 | H155: 山海新能-东方日升 | I155: 安阳荣名库 | J155: 河南晶特新能源有限公司 | L155: 2023-08-07T11:51:58
A156: 154 | B156: 逆变器 | C156: 逆变器-80 | D156: 逆变器-80 | E156: 1 | F156: 19030 | G156: 19030 | H156: 山海新能-锦浪 | I156: 安阳荣名库 | J156: 启阳（安阳）新能源有限公司 | L156: 2023-08-09
A157: 155 | B157: 逆变器 | C157: 逆变器-60 | D157: 逆变器-60 | E157: 2 | F157: 11300 | G157: 22600 | H157: 山海新能-锦浪 | I157: 安阳荣名库 | J157: 唐县德闰新能源开发有限公司 | L157: 2023-08-09T16:18:01
A158: 156 | B158: 逆变器 | C158: 逆变器-50 | D158: 逆变器-50 | E158: 2 | F158: 11990 | G158: 23980 | H158: 山海新能-锦浪 | I158: 安阳荣名库 | J158: 唐县德闰新能源开发有限公司 | L158: 2023-08-09T16:18:01
A159: 157 | B159: 逆变器 | C159: 逆变器-40 | D159: 逆变器-40 | E159: 4 | F159: 8690 | G159: 34760 | H159: 山海新能-锦浪 | I159: 安阳荣名库 | J159: 唐县德闰新能源开发有限公司 | L159: 2023-08-09T16:18:01
A160: 158 | B160: 逆变器 | C160: 逆变器-80 | D160: 逆变器-80 | E160: 1 | F160: 17300 | G160: 17300 | H160: 山海新能-锦浪 | I160: 安阳荣名库 | J160: 启阳（安阳）新能源有限公司 | L160: 2023-08-10T13:25:52
A161: 159 | B161: 逆变器 | C161: 逆变器-40 | D161: 逆变器-40 | E161: 1 | F161: 8690 | G161: 8690 | H161: 山海新能-锦浪 | I161: 安阳荣名库 | J161: 启阳（安阳）新能源有限公司 | L161: 2023-08-10T13:25:52
A162: 160 | B162: 逆变器 | C162: 逆变器-40 | D162: 逆变器-40 | E162: 1 | F162: 8690 | G162: 8690 | H162: 山海新能-锦浪 | I162: 安阳荣名库 | J162: 河南省茂凯莱新能源科技有限公司（盛兴英) | L162: 2023-08-11T10:43:35
A163: 161 | B163: 逆变器 | C163: 逆变器-36 | D163: 逆变器-36 | E163: 3 | F163: 8525 | G163: 25575 | H163: 山海新能-锦浪 | I163: 安阳荣名库 | J163: 河南省茂凯莱新能源科技有限公司（盛兴英) | L163: 2023-08-11T10:43:35
A164: 162 | B164: 逆变器 | C164: 逆变器-30 | D164: 逆变器-30 | E164: 1 | F164: 7700 | G164: =E164*F164 -> 7700 | H164: 山海新能-锦浪 | I164: 安阳荣名库 | J164: 河南省茂凯莱新能源科技有限公司（盛兴英) | L164: 2023-08-11T10:43:35
A165: 163 | B165: 逆变器 | C165: 逆变器-25 | D165: 逆变器-25 | E165: 4 | F165: 5170 | G165: 20680 | H165: 山海新能-锦浪 | I165: 安阳荣名库 | J165: 河南省茂凯莱新能源科技有限公司（盛兴英) | L165: 2023-08-11T10:43:35
A166: 164 | B166: 组件 | C166: 东方日升660双玻 | D166: 东方日升660双玻 | E166: 2208 | F166: 1082.4 | G166: 2389939.2 | H166: 山海新能-东方日升 | I166: 安阳荣名库 | J166: 河北冀朋工程项目管理有限公司 | L166: 2023-08-14T10:07:43
A167: 165 | B167: 组件 | C167: 东方日升660双玻 | D167: 东方日升660双玻 | E167: 1472 | F167: 1082.4 | G167: 1593292.8 | H167: 山海新能-东方日升 | I167: 安阳荣名库 | J167: 河南晶特新能源有限公司 | L167: 2023-08-14T10:08:30
A168: 166 | B168: 组件 | C168: 东方日升660双玻 | D168: 东方日升660双玻 | E168: 736 | F168: 1082.4 | G168: 796646.4 | H168: 山海新能-东方日升 | I168: 安阳荣名库 | J168: 邯郸一铭新能源科技有限公司 | L168: 2023-08-14T10:09:41
A169: 167 | B169: 组件 | C169: 东方日升660双玻 | D169: 东方日升660双玻 | E169: 736 | F169: 1082.4 | G169: 796646.4 | H169: 山海新能-东方日升 | I169: 安阳荣名库 | J169: 唐县德闰新能源开发有限公司 | L169: 2023-08-14T10:10:17
A170: 168 | B170: 逆变器 | C170: 逆变器-15 | D170: 逆变器-15 | E170: 1 | F170: 3905 | G170: 3905 | H170: 山海新能-锦浪 | I170: 安阳荣名库 | J170: 启阳（安阳）新能源有限公司 | L170: 2023-08-16T10:38:02
A171: 169 | B171: 组件 | C171: 东方日升660 | D171: 东方日升660 | E171: 270 | F171: 1014 | G171: 273780 | H171: 山海新能-东方日升 | I171: 安阳荣名库 | J171: 启阳（安阳）新能源有限公司 | L171: 2023-08-16T10:38:02
A172: 170 | B172: 组件 | C172: 东方日升660 | D172: 东方日升660 | E172: 160 | F172: 1014 | G172: 162240 | H172: 山海新能-东方日升 | I172: 安阳荣名库 | J172: 唐县冉灏新能源开发有限责任公司 | L172: 2023-08-16T10:47:00
A173: 171 | B173: 组件 | C173: 东方日升660 | D173: 东方日升660 | E173: 338 | F173: 1014 | G173: 342732 | H173: 山海新能-东方日升 | I173: 安阳荣名库 | J173: 邯郸一铭新能源科技有限公司 | L173: 2023-08-16T10:49:40
A174: 172 | B174: 逆变器 | C174: 逆变器-13 | D174: 逆变器-13 | E174: 2 | F174: 3520 | G174: 7040 | H174: 山海新能-锦浪 | I174: 安阳荣名库 | J174: 河北冀朋工程项目管理有限公司 | L174: 2023-08-17T09:09:44
A175: 173 | B175: 逆变器 | C175: 逆变器-20 | D175: 逆变器-20 | E175: 2 | F175: 4510 | G175: 9020 | H175: 山海新能-锦浪 | I175: 安阳荣名库 | J175: 河北冀朋工程项目管理有限公司 | L175: 2023-08-17T09:09:44
A176: 174 | B176: 逆变器 | C176: 逆变器-25 | D176: 逆变器-25 | E176: 4 | F176: 5170 | G176: 20680 | H176: 山海新能-锦浪 | I176: 安阳荣名库 | J176: 河北冀朋工程项目管理有限公司 | L176: 2023-08-17T09:09:44
A177: 175 | B177: 逆变器 | C177: 逆变器-30 | D177: 逆变器-30 | E177: 6 | F177: 7700 | G177: 46200 | H177: 山海新能-锦浪 | I177: 安阳荣名库 | J177: 河北冀朋工程项目管理有限公司 | L177: 2023-08-17T09:09:44
A178: 176 | B178: 逆变器 | C178: 逆变器-36 | D178: 逆变器-36 | E178: 4 | F178: 8525 | G178: 34100 | H178: 山海新能-锦浪 | I178: 安阳荣名库 | J178: 河北冀朋工程项目管理有限公司 | L178: 2023-08-17T09:09:44
A179: 177 | B179: 逆变器 | C179: 逆变器-40 | D179: 逆变器-40 | E179: 2 | F179: 8690 | G179: 17380 | H179: 山海新能-锦浪 | I179: 安阳荣名库 | J179: 河北冀朋工程项目管理有限公司 | L179: 2023-08-17T09:09:44
A180: 178 | B180: 逆变器 | C180: 逆变器-50 | D180: 逆变器-50 | E180: 4 | F180: 11990 | G180: 47960 | H180: 山海新能-锦浪 | I180: 安阳荣名库 | J180: 河北冀朋工程项目管理有限公司 | L180: 2023-08-17T09:09:44
A181: 179 | B181: 逆变器 | C181: 逆变器-60 | D181: 逆变器-60 | E181: 2 | F181: 11300 | G181: 22600 | H181: 山海新能-锦浪 | I181: 安阳荣名库 | J181: 河南晶特新能源有限公司 | L181: 2023-08-17T09:56:07
A182: 180 | B182: 逆变器 | C182: 逆变器-20 | D182: 逆变器-20 | E182: 1 | F182: 4510 | G182: 4510 | H182: 山海新能-锦浪 | I182: 安阳荣名库 | J182: 启阳（安阳）新能源有限公司 | L182: 2023-08-17T15:49:52
A183: 181 | B183: 逆变器 | C183: 逆变器-25 | D183: 逆变器-25 | E183: 2 | F183: 5170 | G183: 10340 | H183: 山海新能-锦浪 | I183: 安阳荣名库 | J183: 启阳（安阳）新能源有限公司 | L183: 2023-08-17T15:49:52
A184: 182 | B184: 逆变器 | C184: 逆变器-30 | D184: 逆变器-30 | E184: 1 | F184: 7700 | G184: 7700 | H184: 山海新能-锦浪 | I184: 安阳荣名库 | J184: 启阳（安阳）新能源有限公司 | L184: 2023-08-17T15:49:52
A185: 183 | B185: 逆变器 | C185: 逆变器-36 | D185: 逆变器-36 | E185: 1 | F185: 8525 | G185: 8525 | H185: 山海新能-锦浪 | I185: 安阳荣名库 | J185: 启阳（安阳）新能源有限公司 | L185: 2023-08-17T15:49:52
A186: 184 | B186: 逆变器 | C186: 逆变器-60 | D186: 逆变器-60 | E186: 1 | F186: 11300 | G186: 11300 | H186: 山海新能-锦浪 | I186: 安阳荣名库 | J186: 启阳（安阳）新能源有限公司 | L186: 2023-08-17T15:49:52
A187: 185 | B187: 组件 | C187: 东方日升660双玻 | D187: 东方日升660双玻 | E187: 736 | F187: 1082.4 | G187: 796646.4 | H187: 山海新能-东方日升 | I187: 安阳荣名库 | J187: 唐县冉灏新能源开发有限责任公司 | L187: 2023-08-21T16:34:10
A188: 186 | B188: 组件 | C188: 东方日升660双玻 | D188: 东方日升660双玻 | E188: 853 | F188: 1082.4 | G188: 923287.2 | H188: 山海新能-东方日升 | I188: 安阳荣名库 | J188: 邯郸一铭新能源科技有限公司 | L188: 2023-08-21T16:35:18
A189: 187 | B189: 组件 | C189: 东方日升660双玻 | D189: 东方日升660双玻 | E189: 736 | F189: 1082.4 | G189: 796646.4 | H189: 山海新能-东方日升 | I189: 安阳荣名库 | J189: 河南省茂凯莱新能源科技有限公司（盛兴英) | L189: 2023-08-21T16:36:06
A190: 188 | B190: 组件 | C190: 东方日升660双玻 | D190: 东方日升660双玻 | E190: 140 | F190: 1082.4 | G190: 151536 | H190: 山海新能-东方日升 | I190: 安阳荣名库 | J190: 河南晶特新能源有限公司 | L190: 2023-08-21T16:36:54
A191: 189 | B191: 逆变器 | C191: 逆变器-20 | D191: 逆变器-20 | E191: 1 | F191: 4510 | G191: 4510 | H191: 山海新能-锦浪 | I191: 安阳荣名库 | J191: 河北顺公建筑工程有限公司 | L191: 2023-08-22T16:03:22
A192: 190 | B192: 逆变器 | C192: 逆变器-25 | D192: 逆变器-25 | E192: 2 | F192: 5170 | G192: 10340 | H192: 山海新能-锦浪 | I192: 安阳荣名库 | J192: 河北顺公建筑工程有限公司 | L192: 2023-08-22T16:03:22
A193: 191 | B193: 逆变器 | C193: 逆变器-36 | D193: 逆变器-36 | E193: 1 | F193: 8525 | G193: 8525 | H193: 山海新能-锦浪 | I193: 安阳荣名库 | J193: 河北顺公建筑工程有限公司 | L193: 2023-08-22T16:03:22
A194: 192 | B194: 逆变器 | C194: 逆变器-80 | D194: 逆变器-80 | E194: 1 | F194: 17300 | G194: 17300 | H194: 山海新能-锦浪 | I194: 安阳荣名库 | J194: 河北顺公建筑工程有限公司 | L194: 2023-08-22T16:03:22
A195: 193 | B195: 组件 | C195: 东方日升660双玻 | D195: 东方日升660双玻 | E195: 736 | F195: 1082.4 | G195: 796646.4 | H195: 山海新能-东方日升 | I195: 安阳荣名库 | J195: 河北顺公建筑工程有限公司 | L195: 2023-08-22T16:03:22
A196: 194 | B196: 逆变器 | C196: 逆变器-25 | D196: 逆变器-25 | E196: 7 | F196: 5170 | G196: 36190 | H196: 山海新能-锦浪 | I196: 安阳荣名库 | J196: 唐县冉灏新能源开发有限责任公司 | L196: 2023-08-23T12:01:37
A197: 195 | B197: 逆变器 | C197: 逆变器-15 | D197: 逆变器-15 | E197: 3 | F197: 3905 | G197: 11715 | H197: 山海新能-锦浪 | I197: 安阳荣名库 | J197: 唐县冉灏新能源开发有限责任公司 | L197: 2023-08-23T12:01:37
A198: 196 | G198: 0 | I198: 安阳荣名库
A199: 197 | G199: 0 | I199: 安阳荣名库
A200: 198 | G200: 0 | I200: 安阳荣名库
... 7 more rows

Sheet 藁城荣名库
A1: 山海货物出库明细
A2: 序号 | B2: 名称 | C2: 产品名称 | D2: 规格 | E2: 数量 | F2: 单价/元 | G2: 金额/元 | H2: 产品厂家 | I2: 仓库地点 | J2: 到达地点 | K2: 出库车牌号 | L2: 时间 | M2: 备注
A3: 1 | B3: 逆变器 | C3: 逆变器-20 | D3: 逆变器-20 | E3: 1 | F3: 4961 | G3: =E3*F3 -> 4961 | H3: 山海新能-锦浪 | I3: 藁城荣名库 | J3: 保定市锦润新能源科技有限公司 | L3: 2023-07-10
A4: 2 | B4: 组件 | C4: TSM-450DE17M(II） | D4: TSM-450DE17M(II） | E4: 1 | F4: 810 | G4: =E4*F4 -> 810 | H4: 山海智慧-天合 | I4: 藁城荣名库 | J4: 运维库 | L4: 2023-07-17
A5: 3 | B5: 组件 | C5: TSM-535DE19 | D5: TSM-535DE19 | E5: 1 | F5: 996 | G5: 996 | H5: 山海智慧-乐丰 | I5: 藁城荣名库 | J5: 运维库 | L5: 2023-07-17
A6: 4 | B6: 组件 | C6: TSM-535DE19 | D6: TSM-535DE19 | E6: 5 | F6: 963 | G6: 4815 | H6: 山海智慧-天合 | I6: 藁城荣名库 | J6: 运维库 | L6: 2023-07-17
A7: 5 | B7: 组件 | C7: 晶科470 | D7: 晶科470 | E7: 2 | F7: 904 | G7: 1808 | H7: 山海智慧-天合 | I7: 藁城荣名库 | J7: 运维库 | L7: 2023-08-01
A8: 6 | B8: 组件 | C8: 晶科475 | D8: 晶科475 | E8: 930 | F8: 904 | G8: 840720 | H8: 山海智慧-天合 | I8: 藁城荣名库 | J8: 庄河荣名库 | L8: 2023-08-14
A9: 7 | B9: 组件 | C9: TSM-450DE17M(II） | D9: TSM-450DE17M(II） | E9: 3 | F9: 810 | G9: 2430 | H9: 山海智慧-天合 | I9: 藁城荣名库 | J9: 运维库 | L9: 2023-08-16
A10: 8 | B10: 组件 | C10: 晶科475 | D10: 晶科475 | E10: 930 | F10: 904 | G10: 840720 | H10: 山海智慧-天合 | I10: 藁城荣名库 | J10: 安阳荣名库 | L10: 2023-08-17
A11: 9 | B11: 组件 | C11: 晶科475 | D11: 晶科475 | E11: 930 | F11: 904 | G11: 840720 | H11: 山海智慧-天合 | I11: 藁城荣名库 | J11: 安阳荣名库 | L11: 2023-08-21
A12: 10 | B12: 逆变器 | C12: 逆变器-15 | D12: 逆变器-15 | E12: 3 | F12: 3905 | G12: 11715 | H12: 山海新能-锦浪 | I12: 藁城荣名库 | J12: 安阳荣名库 | L12: 2023-08-21
A13: 11 | B13: 逆变器 | C13: 逆变器-40 | D13: 逆变器-40 | E13: 12 | F13: 7600 | G13: 91200 | H13: 山海新能-古瑞瓦特 | I13: 藁城荣名库 | J13: 安阳荣名库 | L13: 2023-08-21
A14: 12 | B14: 逆变器 | C14: 逆变器-50 | D14: 逆变器-50 | E14: 36 | F14: 9000 | G14: 324000 | H14: 山海新能-古瑞瓦特 | I14: 藁城荣名库 | J14: 安阳荣名库 | L14: 2023-08-21
A15: 13 | B15: 逆变器 | C15: 逆变器-30 | D15: 逆变器-30 | E15: 33 | F15: 7040 | G15: 232320 | H15: 禾望 | I15: 藁城荣名库 | J15: 安阳荣名库 | L15: 2023-08-21
A16: 14 | B16: 逆变器 | C16: 逆变器-33 | D16: 逆变器-33 | E16: 34 | F16: 7260 | G16: 246840 | H16: 禾望 | I16: 藁城荣名库 | J16: 安阳荣名库 | L16: 2023-08-21
A17: 15 | B17: 逆变器 | C17: 逆变器-36 | D17: 逆变器-36 | E17: 17 | F17: 7920 | G17: 134640 | H17: 禾望 | I17: 藁城荣名库 | J17: 安阳荣名库 | L17: 2023-08-21
A18: 16 | B18: 逆变器 | C18: 逆变器-36 | D18: 逆变器-36 | E18: 17 | F18: 7920 | G18: 134640 | H18: 禾望 | I18: 藁城荣名库 | J18: 藁城荣名库 | L18: 2023-08-21
A19: 17 | B19: 组件 | C19: 晶科475 | D19: 晶科475 | E19: 682 | F19: 904 | G19: 616528 | H19: 山海智慧-天合 | I19: 藁城荣名库 | J19: 藁城荣名库 | L19: 2023-08-21
A20: 18 | B20: 逆变器 | C20: 逆变器-15 | D20: 逆变器-15 | E20: 3 | F20: 3905 | G20: 11715 | H20: 山海新能-锦浪 | I20: 藁城荣名库 | J20: 藁城荣名库 | L20: 2023-08-21
A21: 19 | B21: 逆变器 | C21: 逆变器-40 | D21: 逆变器-40 | E21: 12 | F21: 7600 | G21: 91200 | H21: 山海新能-古瑞瓦特 | I21: 藁城荣名库 | J21: 藁城荣名库 | L21: 2023-08-21
A22: 20 | B22: 逆变器 | C22: 逆变器-50 | D22: 逆变器-50 | E22: 36 | F22: 9000 | G22: 324000 | H22: 山海新能-古瑞瓦特 | I22: 藁城荣名库 | J22: 藁城荣名库 | L22: 2023-08-21
A23: 21 | B23: 逆变器 | C23: 逆变器-30 | D23: 逆变器-30 | E23: 33 | F23: 7040 | G23: 232320 | H23: 禾望 | I23: 藁城荣名库 | J23: 藁城荣名库 | L23: 2023-08-21
A24: 22 | B24: 逆变器 | C24: 逆变器-33 | D24: 逆变器-33 | E24: 34 | F24: 7260 | G24: 246840 | H24: 禾望 | I24: 藁城荣名库 | J24: 藁城荣名库 | L24: 2023-08-21
A25: 23 | B25: 逆变器 | C25: 逆变器-36 | D25: 逆变器-36 | E25: 1 | F25: 8525 | G25: 8525 | H25: 山海新能-锦浪 | I25: 藁城荣名库 | J25: 安阳荣名库 | L25: 2023-08-21
A26: 24 | B26: 逆变器 | C26: 逆变器-50 | D26: 逆变器-50 | E26: 36 | F26: 9000 | G26: 324000 | H26: 山海新能-古瑞瓦特 | I26: 藁城荣名库 | J26: 安阳荣名库 | L26: 2023-08-21
A27: 25 | B27: 逆变器 | C27: 逆变器-36 | D27: 逆变器-36 | E27: 17 | F27: 7920 | G27: 134640 | H27: 禾望 | I27: 藁城荣名库 | J27: 安阳荣名库 | L27: 2023-08-21
A28: 26 | B28: 逆变器 | C28: 逆变器-33 | D28: 逆变器-33 | E28: 34 | F28: 7260 | G28: 246840 | H28: 禾望 | I28: 藁城荣名库 | J28: 安阳荣名库 | L28: 2023-08-21
A29: 27 | B29: 逆变器 | C29: 逆变器-30 | D29: 逆变器-30 | E29: 33 | F29: 7040 | G29: 232320 | H29: 禾望 | I29: 藁城荣名库 | J29: 安阳荣名库 | L29: 2023-08-21
A30: 28 | B30: 逆变器 | C30: 逆变器-15 | D30: 逆变器-15 | E30: 3 | F30: 3905 | G30: 11715 | H30: 山海新能-锦浪 | I30: 藁城荣名库 | J30: 安阳荣名库 | L30: 2023-08-21
A31: 29 | B31: 逆变器 | C31: 逆变器-40 | D31: 逆变器-40 | E31: 12 | F31: 7600 | G31: 91200 | H31: 山海新能-古瑞瓦特 | I31: 藁城荣名库 | J31: 安阳荣名库 | L31: 2023-08-21
A32: 30 | B32: 组件 | C32: 晶科475 | D32: 晶科475 | E32: 682 | F32: 904 | G32: 616528 | H32: 山海智慧-天合 | I32: 藁城荣名库 | J32: 安阳荣名库 | L32: 2023-08-21
A33: 31 | B33: 组件 | C33: 晶科475 | D33: 晶科475 | E33: 682 | F33: 904 | G33: 616528 | H33: 山海智慧-天合 | I33: 藁城荣名库 | J33: 安阳荣名库 | L33: 2023-08-22T09:31:01
A34: 32 | B34: 组件 | C34: 晶科475 | D34: 晶科475 | E34: 930 | F34: 904 | G34: 840720 | H34: 山海智慧-天合 | I34: 藁城荣名库 | J34: 安阳荣名库 | L34: 2023-08-23
A35: 33 | B35: 组件 | C35: 晶科475 | D35: 晶科475 | E35: 682 | F35: 904 | G35: 616528 | H35: 山海智慧-天合 | I35: 藁城荣名库 | J35: 安阳荣名库 | L35: 2023-08-23T15:44:52
A36: 34 | B36: 组件 | C36: 晶科475 | D36: 晶科475 | E36: 682 | F36: 904 | G36: 616528 | H36: 山海新能 | I36: 藁城荣名库 | J36: 安阳荣名库 | L36: 2023-08-24
A37: 35 | B37: 组件 | C37: 晶科475 | D37: 晶科475 | E37: 682 | F37: 904 | G37: 616528 | H37: 山海新能 | I37: 藁城荣名库 | J37: 安阳荣名库 | L37: 2023-08-24
A38: 36 | B38: 组件 | C38: 晶科475 | D38: 晶科475 | E38: 930 | F38: 904 | G38: 840720 | H38: 山海新能 | I38: 藁城荣名库 | J38: 安阳荣名库 | L38: 2023-08-24
A39: 37 | B39: 组件 | C39: 晶科470 | D39: 晶科470 | E39: 0 | F39: 904 | G39: 0 | H39: 山海新能 | I39: 藁城荣名库 | J39: 安阳荣名库 | L39: 2023-08-25
A40: 38 | B40: 组件 | C40: 晶科470 | D40: 晶科470 | E40: 682 | F40: 904 | G40: 616528 | H40: 山海新能 | I40: 藁城荣名库 | J40: 安阳荣名库 | L40: 2023-08-25
A41: 39 | B41: 组件 | C41: 晶科470 | D41: 晶科470 | E41: 930 | F41: 904 | G41: 840720 | H41: 山海新能 | I41: 藁城荣名库 | J41: 安阳荣名库 | L41: 2023-08-25
A42: 40 | B42: 组件 | C42: 晶科470 | D42: 晶科470 | E42: 682 | F42: 904 | G42: 616528 | H42: 山海新能 | I42: 藁城荣名库 | J42: 安阳荣名库 | L42: 2023-08-25
A43: 41 | B43: 组件 | C43: 晶科475 | D43: 晶科475 | E43: 682 | F43: 904 | G43: 616528 | H43: 山海新能 | I43: 藁城荣名库 | J43: 安阳荣名库 | L43: 2023-08-25T11:11:51
A44: 42 | B44: 组件 | C44: 晶科475 | D44: 晶科475 | E44: 930 | F44: 904 | G44: 840720 | H44: 山海新能 | I44: 藁城荣名库 | J44: 庄河荣名库 | L44: 2023-08-31
A45: 43 | B45: 组件 | C45: 晶科475 | D45: 晶科475 | E45: 682 | F45: 904 | G45: 616528 | H45: 山海新能 | I45: 藁城荣名库 | J45: 安阳荣名库 | L45: 2023-09-01
A46: 44 | B46: 组件 | C46: 晶科475 | D46: 晶科475 | E46: 682 | F46: 904 | G46: 616528 | H46: 山海新能 | I46: 藁城荣名库 | J46: 安阳荣名库 | L46: 2023-09-04
A47: 45 | B47: 组件 | C47: 晶科475 | D47: 晶科475 | E47: 682 | F47: 904 | G47: 616528 | H47: 山海新能 | I47: 藁城荣名库 | J47: 安阳荣名库 | L47: 2023-09-04
A48: 46 | B48: 组件 | C48: 晶科475 | D48: 晶科475 | E48: 682 | F48: 904 | G48: 616528 | H48: 山海新能 | I48: 藁城荣名库 | J48: 安阳荣名库 | L48: 2023-09-04
A49: 47 | B49: 组件 | C49: 晶科475 | D49: 晶科475 | E49: 930 | F49: 904 | G49: 840720 | H49: 山海新能 | I49: 藁城荣名库 | J49: 庄河荣名库 | L49: 2023-09-04
A50: 48 | B50: 组件 | C50: 晶科475 | D50: 晶科475 | E50: 682 | F50: 904 | G50: 616528 | H50: 山海新能 | I50: 藁城荣名库 | J50: 安阳荣名库 | L50: 2023-09-05
A51: 49 | B51: 组件 | C51: 晶科475 | D51: 晶科475 | E51: 682 | F51: 904 | G51: 616528 | H51: 山海新能 | I51: 藁城荣名库 | J51: 安阳荣名库 | L51: 2023-09-06
A52: 50 | B52: 组件 | C52: 晶科475 | D52: 晶科475 | E52: 930 | F52: 904 | G52: 840720 | H52: 山海新能 | I52: 藁城荣名库 | J52: 安阳荣名库 | L52: 2023-09-06
A53: 51 | B53: 组件 | C53: 晶科475 | D53: 晶科475 | E53: 930 | F53: 904 | G53: 840720 | H53: 山海新能 | I53: 藁城荣名库 | J53: 安阳荣名库 | L53: 2023-09-06
A54: 52 | B54: 逆变器 | C54: 逆变器-36 | D54: 逆变器-36 | E54: 1 | F54: 8525 | G54: 8525 | H54: 锦浪 | I54: 藁城荣名库 | J54: 保定市锦润新能源科技有限公司 | L54: 2023-09-08
A55: 53 | B55: 组件 | C55: 晶科475 | D55: 晶科475 | E55: 682 | F55: 904 | G55: 616528 | H55: 山海新能 | I55: 藁城荣名库 | J55: 安阳荣名库 | L55: 2023-09-09
A56: 54 | B56: 组件 | C56: 晶科475 | D56: 晶科475 | E56: 682 | F56: 904 | G56: 616528 | H56: 山海新能 | I56: 藁城荣名库 | J56: 安阳荣名库 | L56: 2023-09-09
A57: 55 | B57: 组件 | C57: 晶科475 | D57: 晶科475 | E57: 930 | F57: 904 | G57: 840720 | H57: 山海新能 | I57: 藁城荣名库 | J57: 安阳荣名库 | L57: 2023-09-09
A58: 56 | B58: 组件 | C58: 晶科475 | D58: 晶科475 | E58: 868 | F58: 904 | G58: 784672 | H58: 山海新能 | I58: 藁城荣名库 | J58: 安阳荣名库 | L58: 2023-09-11
A59: 57 | B59: 组件 | C59: 晶科470 | D59: 晶科470 | E59: 744 | F59: 904 | G59: 672576 | H59: 山海新能 | I59: 藁城荣名库 | J59: 安阳荣名库 | L59: 2023-09-10
A60: 58 | B60: 组件 | C60: 晶科475 | D60: 晶科475 | E60: 3162 | F60: 904 | G60: 2858448 | H60: 山海新能 | I60: 藁城荣名库 | J60: 安阳荣名库 | L60: 2023-09-10
A61: 59 | B61: 组件 | C61: 晶科475 | D61: 晶科475 | E61: 682 | F61: 904 | G61: 616528 | H61: 山海新能 | I61: 藁城荣名库 | J61: 安阳荣名库 | L61: 2023-09-11
A62: 60 | B62: 组件 | C62: 晶科475 | D62: 晶科475 | E62: 930 | F62: 904 | G62: 840720 | H62: 山海新能 | I62: 藁城荣名库 | J62: 安阳荣名库 | L62: 2023-09-12
A63: 61 | B63: 组件 | C63: 晶科475 | D63: 晶科475 | E63: 930 | F63: 904 | G63: 840720 | H63: 山海新能 | I63: 藁城荣名库 | J63: 安阳荣名库 | L63: 2023-09-13
A64: 62 | B64: 组件 | C64: 晶科475 | D64: 晶科475 | E64: 930 | F64: 904 | G64: 840720 | H64: 山海新能 | I64: 藁城荣名库 | J64: 安阳荣名库 | L64: 2023-09-13
A65: 63 | B65: 组件 | C65: 晶科475 | D65: 晶科475 | E65: 682 | F65: 904 | G65: 616528 | H65: 山海新能 | I65: 藁城荣名库 | J65: 安阳荣名库 | L65: 2023-09-13
A66: 64 | B66: 组件 | C66: 晶科475 | D66: 晶科475 | E66: 682 | F66: 904 | G66: =E66*F66 -> 616528 | H66: 山海新能 | I66: 藁城荣名库 | J66: 安阳荣名库 | L66: 2023-09-14
A67: 65 | B67: 组件 | C67: 晶科475 | D67: 晶科475 | E67: 940 | F67: 904 | G67: 849760 | H67: 山海新能 | I67: 藁城荣名库 | J67: 安阳荣名库 | L67: 2023-09-14
A68: 66 | B68: 组件 | C68: 晶科475 | D68: 晶科475 | E68: 682 | F68: 904 | G68: 616528 | H68: 山海新能 | I68: 藁城荣名库 | J68: 安阳荣名库 | L68: 2023-09-14
A69: 67 | B69: 组件 | C69: 晶科475 | D69: 晶科475 | E69: 930 | F69: 904 | G69: 840720 | H69: 山海新能 | I69: 藁城荣名库 | J69: 安阳荣名库 | L69: 2023-09-14
A70: 68 | B70: 组件 | C70: 晶科475 | D70: 晶科475 | E70: 682 | F70: 904 | G70: 616528 | H70: 山海新能 | I70: 藁城荣名库 | J70: 安阳荣名库 | L70: 2023-09-14
A71: 69 | B71: 组件 | C71: 晶科475 | D71: 晶科475 | E71: 682 | F71: 904 | G71: 616528 | H71: 山海新能 | I71: 藁城荣名库 | J71: 安阳荣名库 | L71: 2023-09-14
A72: 70 | B72: 组件 | C72: 晶科475 | D72: 晶科475 | E72: 682 | F72: 904 | G72: 616528 | H72: 山海新能 | I72: 藁城荣名库 | J72: 安阳荣名库 | L72: 2023-09-14
A73: 71 | B73: 组件 | C73: 晶科475 | D73: 晶科475 | E73: 682 | F73: 904 | G73: 616528 | H73: 山海新能 | I73: 藁城荣名库 | J73: 安阳荣名库 | L73: 2023-09-14
A74: 72 | B74: 组件 | C74: 晶科475 | D74: 晶科475 | E74: 682 | F74: 904 | G74: 616528 | H74: 山海新能 | I74: 藁城荣名库 | J74: 安阳荣名库 | L74: 2023-09-14
A75: 73 | B75: 组件 | C75: 晶科475 | D75: 晶科475 | E75: 314 | F75: 904 | G75: =E75*F75 -> 283856 | H75: 山海新能 | I75: 藁城荣名库 | J75: 安阳荣名库 | L75: 2023-09-18
A76: 74
A77: 75
A78: 76
A79: 77
A80: 78
A81: 79
A82: 80
A83: 81

Sheet 曲阜荣名库
A1: 山海货物出库明细
A2: 序号 | B2: 名称 | C2: 产品名称 | D2: 规格 | E2: 数量 | F2: 单价/元 | G2: 金额/元 | H2: 产品厂家 | I2: 仓库地点 | J2: 到达地点 | K2: 出库车牌号 | L2: 时间 | M2: 备注
A3: 1 | B3: 逆变器 | C3: 逆变器-25 | D3: 逆变器-25 | E3: 1 | F3: 5687 | G3: =E3*F3 -> 5687 | H3: 山海新能-锦浪 | I3: 曲阜荣名库 | J3: 成都盛世中丰工程有限公司 | L3: 2023-07-06
A4: 2 | B4: 逆变器 | C4: 逆变器-25 | D4: 逆变器-25 | E4: 1 | F4: 5687 | G4: =E4*F4 -> 5687 | H4: 山海新能-锦浪 | I4: 曲阜荣名库 | J4: 成都盛世中丰工程有限公司 | L4: 2023-07-06
A5: 3 | B5: 逆变器 | C5: 逆变器-20 | D5: 逆变器-20 | E5: 1 | F5: 4961 | G5: 4961 | H5: 山海新能-锦浪 | I5: 曲阜荣名库 | J5: 成都盛世中丰工程有限公司 | L5: 2023-07-06
A6: 4 | B6: 组件 | C6: 东方日升600 | D6: 东方日升600 | E6: 128 | F6: 1219.68 | G6: 156119.04 | H6: 山海新能-东方日升 | I6: 曲阜荣名库 | J6: 成都盛世中丰工程有限公司 | L6: 2023-07-06
A7: 5 | B7: 逆变器 | C7: 逆变器-25 | D7: 逆变器-25 | E7: 1 | F7: 5687 | G7: 5687 | H7: 山海新能-锦浪 | I7: 曲阜荣名库 | J7: 成都盛世中丰工程有限公司 | L7: 2023-07-06
A8: 6 | B8: 逆变器 | C8: 逆变器-15 | D8: 逆变器-15 | E8: 1 | F8: 4295.5 | G8: 4295.5 | H8: 山海新能-锦浪 | I8: 曲阜荣名库 | J8: 成都盛世中丰工程有限公司 | L8: 2023-07-14
A9: 7 | B9: 逆变器 | C9: 逆变器-30 | D9: 逆变器-30 | E9: 1 | F9: 8470 | G9: 8470 | H9: 山海新能-锦浪 | I9: 曲阜荣名库 | J9: 成都盛世中丰工程有限公司 | L9: 2023-07-14
A10: 8 | B10: 逆变器 | C10: 逆变器-15 | D10: 逆变器-15 | E10: 1 | F10: 4295.5 | G10: 4295.5 | H10: 山海新能-锦浪 | I10: 曲阜荣名库 | J10: 成都盛世中丰工程有限公司 | L10: 2023-07-14
A11: 9 | B11: 逆变器 | C11: 逆变器-15 | D11: 逆变器-15 | E11: 1 | F11: 4295.5 | G11: 4295.5 | H11: 山海新能-锦浪 | I11: 曲阜荣名库 | J11: 成都盛世中丰工程有限公司 | L11: 2023-07-14
A12: 10 | B12: 逆变器 | C12: 逆变器-30 | D12: 逆变器-30 | E12: 1 | F12: 8470 | G12: 8470 | H12: 山海新能-锦浪 | I12: 曲阜荣名库 | J12: 成都盛世中丰工程有限公司 | L12: 2023-07-14
A13: 11 | B13: 逆变器 | C13: 逆变器-15 | D13: 逆变器-15 | E13: 1 | F13: 4295.5 | G13: 4295.5 | H13: 山海新能-锦浪 | I13: 曲阜荣名库 | J13: 成都盛世中丰工程有限公司 | L13: 2023-07-14
A14: 12 | B14: 逆变器 | C14: 逆变器-30 | D14: 逆变器-30 | E14: 1 | F14: 8470 | G14: 8470 | H14: 山海新能-锦浪 | I14: 曲阜荣名库 | J14: 成都盛世中丰工程有限公司 | L14: 2023-07-14
A15: 13 | B15: 逆变器 | C15: 逆变器-20 | D15: 逆变器-20 | E15: 1 | F15: 4961 | G15: 4961 | H15: 山海新能-锦浪 | I15: 曲阜荣名库 | J15: 成都盛世中丰工程有限公司 | L15: 2023-07-14
A16: 14 | B16: 逆变器 | C16: 逆变器-20 | D16: 逆变器-20 | E16: 1 | F16: 4961 | G16: 4961 | H16: 山海新能-锦浪 | I16: 曲阜荣名库 | J16: 成都盛世中丰工程有限公司 | L16: 2023-07-14
A17: 15 | B17: 逆变器 | C17: 逆变器-20 | D17: 逆变器-20 | E17: 1 | F17: 4961 | G17: 4961 | H17: 山海新能-锦浪 | I17: 曲阜荣名库 | J17: 成都盛世中丰工程有限公司 | L17: 2023-07-14
A18: 16 | B18: 逆变器 | C18: 逆变器-20 | D18: 逆变器-20 | E18: 1 | F18: 4961 | G18: 4961 | H18: 山海新能-锦浪 | I18: 曲阜荣名库 | J18: 成都盛世中丰工程有限公司 | L18: 2023-07-14
A19: 17 | B19: 逆变器 | C19: 逆变器-15 | D19: 逆变器-15 | E19: 1 | F19: 4295.5 | G19: 4295.5 | H19: 山海新能-锦浪 | I19: 曲阜荣名库 | J19: 成都盛世中丰工程有限公司 | L19: 2023-07-14
A20: 18 | B20: 逆变器 | C20: 逆变器-20 | D20: 逆变器-20 | E20: 1 | F20: 4961 | G20: 4961 | H20: 山海新能-锦浪 | I20: 曲阜荣名库 | J20: 成都盛世中丰工程有限公司 | L20: 2023-07-14
A21: 19 | B21: 逆变器 | C21: 逆变器-15 | D21: 逆变器-15 | E21: 1 | F21: 4295.5 | G21: 4295.5 | H21: 山海新能-锦浪 | I21: 曲阜荣名库 | J21: 成都盛世中丰工程有限公司 | L21: 2023-07-14
A22: 20 | B22: 逆变器 | C22: 逆变器-15 | D22: 逆变器-15 | E22: 1 | F22: 4295.5 | G22: 4295.5 | H22: 山海新能-锦浪 | I22: 曲阜荣名库 | J22: 成都盛世中丰工程有限公司 | L22: 2023-07-14
A23: 21 | B23: 组件 | C23: 东方日升600 | D23: 东方日升600 | E23: 1536 | F23: 1219.68 | G23: 1873428.48 | H23: 山海新能-东方日升 | I23: 曲阜荣名库 | J23: 成都盛世中丰工程有限公司 | L23: 2023-07-14
A24: 22 | B24: 逆变器 | C24: 逆变器-25 | D24: 逆变器-25 | E24: 1 | F24: 5687 | G24: 5687 | H24: 山海新能-锦浪 | I24: 曲阜荣名库 | J24: 成都盛世中丰工程有限公司 | L24: 2023-07-14
A25: 23 | B25: 逆变器 | C25: 逆变器-20 | D25: 逆变器-20 | E25: 1 | F25: 4961 | G25: 4961 | H25: 山海新能-锦浪 | I25: 曲阜荣名库 | J25: 成都盛世中丰工程有限公司 | L25: 2023-07-14
A26: 24 | B26: 逆变器 | C26: 逆变器-15 | D26: 逆变器-15 | E26: 1 | F26: 4295.5 | G26: 4295.5 | H26: 山海新能-锦浪 | I26: 曲阜荣名库 | J26: 成都盛世中丰工程有限公司 | L26: 2023-07-14
A27: 25 | B27: 逆变器 | C27: 逆变器-15 | D27: 逆变器-15 | E27: 1 | F27: 4295.5 | G27: 4295.5 | H27: 山海新能-锦浪 | I27: 曲阜荣名库 | J27: 成都盛世中丰工程有限公司 | L27: 2023-07-14
A28: 26 | B28: 逆变器 | C28: 逆变器-20 | D28: 逆变器-20 | E28: 1 | F28: 4961 | G28: 4961 | H28: 山海新能-锦浪 | I28: 曲阜荣名库 | J28: 成都盛世中丰工程有限公司 | L28: 2023-07-14
A29: 27 | B29: 逆变器 | C29: 逆变器-25 | D29: 逆变器-25 | E29: 1 | F29: 5687 | G29: 5687 | H29: 山海新能-锦浪 | I29: 曲阜荣名库 | J29: 成都盛世中丰工程有限公司 | L29: 2023-07-14
A30: 28 | B30: 逆变器 | C30: 逆变器-20 | D30: 逆变器-20 | E30: 1 | F30: 4961 | G30: 4961 | H30: 山海新能-锦浪 | I30: 曲阜荣名库 | J30: 成都盛世中丰工程有限公司 | L30: 2023-07-14
A31: 29 | B31: 逆变器 | C31: 逆变器-25 | D31: 逆变器-25 | E31: 1 | F31: 5687 | G31: 5687 | H31: 山海新能-锦浪 | I31: 曲阜荣名库 | J31: 成都盛世中丰工程有限公司 | L31: 2023-07-14
A32: 30 | B32: 逆变器 | C32: 逆变器-30 | D32: 逆变器-30 | E32: 1 | F32: 8470 | G32: 8470 | H32: 山海新能-锦浪 | I32: 曲阜荣名库 | J32: 成都盛世中丰工程有限公司 | L32: 2023-07-14
A33: 31 | B33: 逆变器 | C33: 逆变器-25 | D33: 逆变器-25 | E33: 1 | F33: 5687 | G33: 5687 | H33: 山海新能-锦浪 | I33: 曲阜荣名库 | J33: 成都盛世中丰工程有限公司 | L33: 2023-07-14
A34: 32 | B34: 逆变器 | C34: 逆变器-20 | D34: 逆变器-20 | E34: 1 | F34: 4961 | G34: 4961 | H34: 山海新能-锦浪 | I34: 曲阜荣名库 | J34: 成都盛世中丰工程有限公司 | L34: 2023-07-14
A35: 33 | B35: 逆变器 | C35: 逆变器-20 | D35: 逆变器-20 | E35: 1 | F35: 4961 | G35: 4961 | H35: 山海新能-锦浪 | I35: 曲阜荣名库 | J35: 成都盛世中丰工程有限公司 | L35: 2023-07-14
A36: 34 | B36: 逆变器 | C36: 逆变器-25 | D36: 逆变器-25 | E36: 1 | F36: 5687 | G36: =E36*F36 -> 5687 | H36: 山海新能-锦浪 | I36: 曲阜荣名库 | J36: 成都盛世中丰工程有限公司 | L36: 2023-07-14
A37: 35 | B37: 逆变器 | C37: 逆变器-25 | D37: 逆变器-25 | E37: 1 | F37: 5687 | G37: 5687 | H37: 山海新能-锦浪 | I37: 曲阜荣名库 | J37: 成都盛世中丰工程有限公司 | L37: 2023-07-14
A38: 36 | B38: 逆变器 | C38: 逆变器-15 | D38: 逆变器-15 | E38: 1 | F38: 4295.5 | G38: 4295.5 | H38: 山海新能-锦浪 | I38: 曲阜荣名库 | J38: 成都盛世中丰工程有限公司 | L38: 2023-07-14
A39: 37 | B39: 逆变器 | C39: 逆变器-25 | D39: 逆变器-25 | E39: 1 | F39: 5687 | G39: 5687 | H39: 山海新能-锦浪 | I39: 曲阜荣名库 | J39: 成都盛世中丰工程有限公司 | L39: 2023-07-14
A40: 38 | B40: 组件 | C40: 东方日升600 | D40: 东方日升600 | E40: 640 | F40: 1219.68 | G40: 780595.2 | H40: 山海新能-东方日升 | I40: 曲阜荣名库 | J40: 成都盛世中丰工程有限公司 | L40: 2023-07-14
A41: 39 | B41: 逆变器 | C41: 逆变器-15 | D41: 逆变器-15 | E41: 1 | F41: 4295.5 | G41: 4295.5 | H41: 山海新能-锦浪 | I41: 曲阜荣名库 | J41: 成都盛世中丰工程有限公司 | L41: 2023-07-14
A42: 40 | B42: 逆变器 | C42: 逆变器-20 | D42: 逆变器-20 | E42: 1 | F42: 4961 | G42: 4961 | H42: 山海新能-锦浪 | I42: 曲阜荣名库 | J42: 成都盛世中丰工程有限公司 | L42: 2023-07-14
A43: 41 | B43: 逆变器 | C43: 逆变器-25 | D43: 逆变器-25 | E43: 1 | F43: 5687 | G43: 5687 | H43: 山海新能-锦浪 | I43: 曲阜荣名库 | J43: 成都盛世中丰工程有限公司 | L43: 2023-07-14
A44: 42 | B44: 逆变器 | C44: 逆变器-20 | D44: 逆变器-20 | E44: 1 | F44: 4961 | G44: 4961 | H44: 山海新能-锦浪 | I44: 曲阜荣名库 | J44: 成都盛世中丰工程有限公司 | L44: 2023-07-14
A45: 43 | B45: 逆变器 | C45: 逆变器-20 | D45: 逆变器-20 | E45: 1 | F45: 4961 | G45: 4961 | H45: 山海新能-锦浪 | I45: 曲阜荣名库 | J45: 成都盛世中丰工程有限公司 | L45: 2023-07-14
A46: 44 | B46: 逆变器 | C46: 逆变器-20 | D46: 逆变器-20 | E46: 1 | F46: 4961 | G46: 4961 | H46: 山海新能-锦浪 | I46: 曲阜荣名库 | J46: 成都盛世中丰工程有限公司 | L46: 2023-07-14
A47: 45 | B47: 逆变器 | C47: 逆变器-20 | D47: 逆变器-20 | E47: 1 | F47: 4961 | G47: 4961 | H47: 山海新能-锦浪 | I47: 曲阜荣名库 | J47: 成都盛世中丰工程有限公司 | L47: 2023-07-14
A48: 46 | B48: 逆变器 | C48: 逆变器-20 | D48: 逆变器-20 | E48: 1 | F48: 4961 | G48: 4961 | H48: 山海新能-锦浪 | I48: 曲阜荣名库 | J48: 成都盛世中丰工程有限公司 | L48: 2023-07-14
A49: 47 | B49: 逆变器 | C49: 逆变器-20 | D49: 逆变器-20 | E49: 1 | F49: 4961 | G49: 4961 | H49: 山海新能-锦浪 | I49: 曲阜荣名库 | J49: 成都盛世中丰工程有限公司 | L49: 2023-07-14
A50: 48 | B50: 逆变器 | C50: 逆变器-20 | D50: 逆变器-20 | E50: 1 | F50: 4961 | G50: 4961 | H50: 山海新能-锦浪 | I50: 曲阜荣名库 | J50: 成都盛世中丰工程有限公司 | L50: 2023-07-14
A51: 49 | B51: 逆变器 | C51: 逆变器-20 | D51: 逆变器-20 | E51: 1 | F51: 4961 | G51: 4961 | H51: 山海新能-锦浪 | I51: 曲阜荣名库 | J51: 成都盛世中丰工程有限公司 | L51: 2023-07-14
A52: 50 | B52: 逆变器 | C52: 逆变器-20 | D52: 逆变器-20 | E52: 1 | F52: 4961 | G52: 4961 | H52: 山海新能-锦浪 | I52: 曲阜荣名库 | J52: 成都盛世中丰工程有限公司 | L52: 2023-07-14
A53: 51 | B53: 逆变器 | C53: 逆变器-20 | D53: 逆变器-20 | E53: 1 | F53: 4961 | G53: 4961 | H53: 山海新能-锦浪 | I53: 曲阜荣名库 | J53: 成都盛世中丰工程有限公司 | L53: 2023-07-14
A54: 52 | B54: 逆变器 | C54: 逆变器-20 | D54: 逆变器-20 | E54: 1 | F54: 4961 | G54: 4961 | H54: 山海新能-锦浪 | I54: 曲阜荣名库 | J54: 成都盛世中丰工程有限公司 | L54: 2023-07-14
A55: 53 | B55: 逆变器 | C55: 逆变器-25 | D55: 逆变器-25 | E55: 1 | F55: 5687 | G55: 5687 | H55: 山海新能-锦浪 | I55: 曲阜荣名库 | J55: 成都盛世中丰工程有限公司 | L55: 2023-07-14
A56: 54 | B56: 逆变器 | C56: 逆变器-25 | D56: 逆变器-25 | E56: 1 | F56: 5687 | G56: 5687 | H56: 山海新能-锦浪 | I56: 曲阜荣名库 | J56: 成都盛世中丰工程有限公司 | L56: 2023-07-14
A57: 55 | B57: 逆变器 | C57: 逆变器-13 | D57: 逆变器-13 | E57: 1 | F57: 3872 | G57: 3872 | H57: 山海新能-锦浪 | I57: 曲阜荣名库 | J57: 成都盛世中丰工程有限公司 | L57: 2023-07-14
A58: 56 | B58: 逆变器 | C58: 逆变器-25 | D58: 逆变器-25 | E58: 1 | F58: 5687 | G58: 5687 | H58: 山海新能-锦浪 | I58: 曲阜荣名库 | J58: 成都盛世中丰工程有限公司 | L58: 2023-07-14
A59: 57 | B59: 逆变器 | C59: 逆变器-20 | D59: 逆变器-20 | E59: 1 | F59: 4961 | G59: 4961 | H59: 山海新能-锦浪 | I59: 曲阜荣名库 | J59: 成都盛世中丰工程有限公司 | L59: 2023-07-14
A60: 58 | B60: 组件 | C60: 东方日升600 | D60: 东方日升600 | E60: 640 | F60: 1219.68 | G60: 780595.2 | H60: 山海新能-东方日升 | I60: 曲阜荣名库 | J60: 成都盛世中丰工程有限公司 | L60: 2023-07-14
A61: 59 | B61: 逆变器 | C61: 逆变器-20 | D61: 逆变器-20 | E61: 1 | F61: 4961 | G61: 4961 | H61: 山海新能-锦浪 | I61: 曲阜荣名库 | J61: 成都盛世中丰工程有限公司 | L61: 2023-07-14
A62: 60 | B62: 组件 | C62: 东方日升600 | D62: 东方日升600 | E62: 32 | F62: 1219.68 | G62: 39029.76 | H62: 山海新能-东方日升 | I62: 曲阜荣名库 | J62: 成都盛世中丰工程有限公司 | L62: 2023-07-14
A63: 61 | B63: 逆变器 | C63: 逆变器-20 | D63: 逆变器-20 | E63: 1 | F63: 4961 | G63: 4961 | H63: 山海新能-锦浪 | I63: 曲阜荣名库 | J63: 成都盛世中丰工程有限公司 | L63: 2023-07-14
A64: 62 | B64: 组件 | C64: 东方日升600 | D64: 东方日升600 | E64: 32 | F64: 1219.68 | G64: 39029.76 | H64: 山海新能-东方日升 | I64: 曲阜荣名库 | J64: 成都盛世中丰工程有限公司 | L64: 2023-07-14
A65: 63 | B65: 逆变器 | C65: 逆变器-20 | D65: 逆变器-20 | E65: 1 | F65: 4961 | G65: 4961 | H65: 山海新能-锦浪 | I65: 曲阜荣名库 | J65: 成都盛世中丰工程有限公司 | L65: 2023-07-14
A66: 64 | B66: 逆变器 | C66: 逆变器-20 | D66: 逆变器-20 | E66: 1 | F66: 4961 | G66: 4961 | H66: 山海新能-锦浪 | I66: 曲阜荣名库 | J66: 成都盛世中丰工程有限公司 | L66: 2023-07-15
A67: 65 | B67: 逆变器 | C67: 逆变器-30 | D67: 逆变器-30 | E67: 1 | F67: 8470 | G67: 8470 | H67: 山海新能-锦浪 | I67: 曲阜荣名库 | J67: 成都盛世中丰工程有限公司 | L67: 2023-07-17
A68: 66 | B68: 逆变器 | C68: 逆变器-40 | D68: 逆变器-40 | E68: 1 | F68: 9559 | G68: =E68*F68 -> 9559 | H68: 山海新能-锦浪 | I68: 曲阜荣名库 | J68: 成都盛世中丰工程有限公司 | L68: 2023-07-17
A69: 67 | B69: 逆变器 | C69: 逆变器-36 | D69: 逆变器-36 | E69: 1 | F69: 9377.5 | G69: 9377.5 | H69: 山海新能-锦浪 | I69: 曲阜荣名库 | J69: 成都盛世中丰工程有限公司 | L69: 2023-07-17
A70: 68 | B70: 逆变器 | C70: 逆变器-36 | D70: 逆变器-36 | E70: 1 | F70: 9377.5 | G70: 9377.5 | H70: 山海新能-锦浪 | I70: 曲阜荣名库 | J70: 成都盛世中丰工程有限公司 | L70: 2023-07-17
A71: 69 | B71: 逆变器 | C71: 逆变器-36 | D71: 逆变器-36 | E71: 1 | F71: 9377.5 | G71: 9377.5 | H71: 山海新能-锦浪 | I71: 曲阜荣名库 | J71: 成都盛世中丰工程有限公司 | L71: 2023-07-17
A72: 70 | B72: 逆变器 | C72: 逆变器-36 | D72: 逆变器-36 | E72: 1 | F72: 9377.5 | G72: 9377.5 | H72: 山海新能-锦浪 | I72: 曲阜荣名库 | J72: 成都盛世中丰工程有限公司 | L72: 2023-07-17
A73: 71 | B73: 逆变器 | C73: 逆变器-36 | D73: 逆变器-36 | E73: 1 | F73: 9377.5 | G73: 9377.5 | H73: 山海新能-锦浪 | I73: 曲阜荣名库 | J73: 成都盛世中丰工程有限公司 | L73: 2023-07-17
A74: 72 | B74: 逆变器 | C74: 逆变器-30 | D74: 逆变器-30 | E74: 1 | F74: 8470 | G74: 8470 | H74: 山海新能-锦浪 | I74: 曲阜荣名库 | J74: 成都盛世中丰工程有限公司 | L74: 2023-07-17
A75: 73 | B75: 逆变器 | C75: 逆变器-36 | D75: 逆变器-36 | E75: 1 | F75: 9377.5 | G75: 9377.5 | H75: 山海新能-锦浪 | I75: 曲阜荣名库 | J75: 成都盛世中丰工程有限公司 | L75: 2023-07-17
A76: 74 | B76: 逆变器 | C76: 逆变器-36 | D76: 逆变器-36 | E76: 1 | F76: 9377.5 | G76: 9377.5 | H76: 山海新能-锦浪 | I76: 曲阜荣名库 | J76: 成都盛世中丰工程有限公司 | L76: 2023-07-17
A77: 75 | B77: 组件 | C77: 东方日升600 | D77: 东方日升600 | E77: 928 | F77: 1219.68 | G77: 1131863.04 | H77: 山海新能-东方日升 | I77: 曲阜荣名库 | J77: 成都盛世中丰工程有限公司 | L77: 2023-07-17
A78: 76 | B78: 逆变器 | C78: 逆变器-36 | D78: 逆变器-36 | E78: 1 | F78: 9377.5 | G78: 9377.5 | H78: 山海新能-锦浪 | I78: 曲阜荣名库 | J78: 成都盛世中丰工程有限公司 | L78: 2023-07-17
A79: 77 | B79: 逆变器 | C79: 逆变器-36 | D79: 逆变器-36 | E79: 1 | F79: 9377.5 | G79: 9377.5 | H79: 山海新能-锦浪 | I79: 曲阜荣名库 | J79: 成都盛世中丰工程有限公司 | L79: 2023-07-18
A80: 78 | B80: 逆变器 | C80: 逆变器-40 | D80: 逆变器-40 | E80: 1 | F80: 9559 | G80: 9559 | H80: 山海新能-锦浪 | I80: 曲阜荣名库 | J80: 成都盛世中丰工程有限公司 | L80: 2023-07-18
A81: 79 | B81: 逆变器 | C81: 逆变器-30 | D81: 逆变器-30 | E81: 1 | F81: 8470 | G81: 8470 | H81: 山海新能-锦浪 | I81: 曲阜荣名库 | J81: 成都盛世中丰工程有限公司 | L81: 2023-07-18
A82: 80 | B82: 组件 | C82: 东方日升600 | D82: 东方日升600 | E82: 384 | F82: 1219.68 | G82: 468357.12 | H82: 山海新能-东方日升 | I82: 曲阜荣名库 | J82: 成都盛世中丰工程有限公司 | L82: 2023-07-18
A83: 81 | B83: 组件 | C83: 东方日升600 | D83: 东方日升600 | E83: 672 | F83: 1219.68 | G83: 819624.96 | H83: 山海新能-东方日升 | I83: 曲阜荣名库 | J83: 成都盛世中丰工程有限公司 | L83: 2023-07-19
A84: 82 | B84: 逆变器 | C84: 逆变器-50 | D84: 逆变器-50 | E84: 1 | F84: 13189 | G84: 13189 | H84: 山海新能-锦浪 | I84: 曲阜荣名库 | J84: 成都盛世中丰工程有限公司 | L84: 2023-07-19
A85: 83 | B85: 逆变器 | C85: 逆变器-50 | D85: 逆变器-50 | E85: 1 | F85: 13189 | G85: 13189 | H85: 山海新能-锦浪 | I85: 曲阜荣名库 | J85: 成都盛世中丰工程有限公司 | L85: 2023-07-19
A86: 84 | B86: 组件 | C86: 东方日升600 | D86: 东方日升600 | E86: 448 | F86: 1219.68 | G86: 546416.64 | H86: 山海新能-东方日升 | I86: 曲阜荣名库 | J86: 成都盛世中丰工程有限公司 | L86: 2023-07-19
A87: 85 | B87: 组件 | C87: 东方日升600 | D87: 东方日升600 | E87: 256 | F87: 1108.8 | G87: 283852.8 | H87: 山海新能-东方日升 | I87: 曲阜荣名库 | J87: 成都盛世中丰工程有限公司 | L87: 2023-07-26
A88: 86 | B88: 逆变器 | C88: 逆变器-25 | D88: 逆变器-25 | E88: 7 | F88: 5170 | G88: 36190 | H88: 山海新能-锦浪 | I88: 曲阜荣名库 | J88: 成都盛世中丰工程有限公司 | L88: 2023-07-26
A89: 87 | B89: 逆变器 | C89: 逆变器-20 | D89: 逆变器-20 | E89: 3 | F89: 4510 | G89: 13530 | H89: 山海新能-锦浪 | I89: 曲阜荣名库 | J89: 成都盛世中丰工程有限公司 | L89: 2023-07-26
A90: 88 | B90: 组件 | C90: 东方日升600 | D90: 东方日升600 | E90: 928 | F90: 1108.8 | G90: 1028966.4 | H90: 山海新能-东方日升 | I90: 曲阜荣名库 | J90: 成都盛世中丰工程有限公司 | L90: 2023-07-27
A91: 89 | B91: 逆变器 | C91: 逆变器-25 | D91: 逆变器-25 | E91: 7 | F91: 5170 | G91: 36190 | H91: 山海新能-锦浪 | I91: 曲阜荣名库 | J91: 成都盛世中丰工程有限公司 | L91: 2023-07-27
A92: 90 | B92: 逆变器 | C92: 逆变器-30 | D92: 逆变器-30 | E92: 1 | F92: 7700 | G92: 7700 | H92: 山海新能-锦浪 | I92: 曲阜荣名库 | J92: 成都盛世中丰工程有限公司 | L92: 2023-07-27
A93: 91 | B93: 逆变器 | C93: 逆变器-20 | D93: 逆变器-20 | E93: 13 | F93: 4510 | G93: 58630 | H93: 山海新能-锦浪 | I93: 曲阜荣名库 | J93: 成都盛世中丰工程有限公司 | L93: 2023-07-27
A94: 92 | B94: 组件 | C94: 东方日升600 | D94: 东方日升600 | E94: 288 | F94: 1108.8 | G94: 319334.4 | H94: 山海新能-东方日升 | I94: 曲阜荣名库 | J94: 成都盛世中丰工程有限公司 | L94: 2023-07-29
A95: 93 | B95: 逆变器 | C95: 逆变器-30 | D95: 逆变器-30 | E95: 2 | F95: 7700 | G95: 15400 | H95: 山海新能-锦浪 | I95: 曲阜荣名库 | J95: 成都盛世中丰工程有限公司 | L95: 2023-07-29
A96: 94 | B96: 逆变器 | C96: 逆变器-25 | D96: 逆变器-25 | E96: 5 | F96: 5170 | G96: 25850 | H96: 山海新能-锦浪 | I96: 曲阜荣名库 | J96: 成都盛世中丰工程有限公司 | L96: 2023-07-29
A97: 95 | B97: 逆变器 | C97: 逆变器-20 | D97: 逆变器-20 | E97: 1 | F97: 4510 | G97: 4510 | H97: 山海新能-锦浪 | I97: 曲阜荣名库 | J97: 成都盛世中丰工程有限公司 | L97: 2023-07-29
A98: 96 | B98: 逆变器 | C98: 逆变器-20 | D98: 逆变器-20 | E98: 1 | F98: 4510 | G98: 4510 | H98: 山海新能-锦浪 | I98: 曲阜荣名库 | J98: 成都盛世中丰工程有限公司 | L98: 2023-07-31
A99: 97 | B99: 逆变器 | C99: 逆变器-25 | D99: 逆变器-25 | E99: 2 | F99: 5170 | G99: 10340 | H99: 山海新能-锦浪 | I99: 曲阜荣名库 | J99: 成都盛世中丰工程有限公司 | L99: 2023-07-31
A100: 98 | B100: 逆变器 | C100: 逆变器-50 | D100: 逆变器-50 | E100: 2 | F100: 11990 | G100: =E100*F100 -> 23980 | H100: 山海新能-锦浪 | I100: 曲阜荣名库 | J100: 成都盛世中丰工程有限公司 | L100: 2023-07-31
A101: 99 | B101: 逆变器 | C101: 逆变器-25 | D101: 逆变器-25 | E101: 4 | F101: 5170 | G101: 20680 | H101: 山海新能-锦浪 | I101: 曲阜荣名库 | J101: 成都盛世中丰工程有限公司 | L101: 2023-08-03
A102: 100 | B102: 逆变器 | C102: 逆变器-30 | D102: 逆变器-30 | E102: 1 | F102: 7700 | G102: 7700 | H102: 山海新能-锦浪 | I102: 曲阜荣名库 | J102: 成都盛世中丰工程有限公司 | L102: 2023-08-03
A103: 101 | B103: 逆变器 | C103: 逆变器-20 | D103: 逆变器-20 | E103: 2 | F103: 4510 | G103: 9020 | H103: 山海新能-锦浪 | I103: 曲阜荣名库 | J103: 成都盛世中丰工程有限公司 | L103: 2023-08-03
A104: 102 | B104: 逆变器 | C104: 逆变器-25 | D104: 逆变器-25 | E104: 2 | F104: 5170 | G104: 10340 | H104: 山海新能-锦浪 | I104: 曲阜荣名库 | J104: 成都盛世中丰工程有限公司 | L104: 2023-08-08T13:49:36
A105: 103 | B105: 逆变器 | C105: 逆变器-20 | D105: 逆变器-20 | E105: 3 | F105: 4510 | G105: 13530 | H105: 山海新能-锦浪 | I105: 曲阜荣名库 | J105: 成都盛世中丰工程有限公司 | L105: 2023-08-08T13:49:36
A106: 104 | B106: 逆变器 | C106: 逆变器-13 | D106: 逆变器-13 | E106: 1 | F106: 3520 | G106: 3520 | H106: 山海新能-锦浪 | I106: 曲阜荣名库 | J106: 成都盛世中丰工程有限公司 | L106: 2023-08-08T13:49:36
A107: 105 | B107: 逆变器 | C107: 逆变器-30 | D107: 逆变器-30 | E107: 2 | F107: 7700 | G107: 15400 | H107: 山海新能-锦浪 | I107: 曲阜荣名库 | J107: 成都盛世中丰工程有限公司 | L107: 2023-08-12
A108: 106 | B108: 逆变器 | C108: 逆变器-25 | D108: 逆变器-25 | E108: 1 | F108: 5170 | G108: 5170 | H108: 山海新能-锦浪 | I108: 曲阜荣名库 | J108: 成都盛世中丰工程有限公司 | L108: 2023-08-12
A109: 107 | B109: 逆变器 | C109: 逆变器-20 | D109: 逆变器-20 | E109: 6 | F109: 4510 | G109: 27060 | H109: 山海新能-锦浪 | I109: 曲阜荣名库 | J109: 成都盛世中丰工程有限公司 | L109: 2023-08-12
A110: 108 | B110: 逆变器 | C110: 逆变器-25 | D110: 逆变器-25 | E110: 2 | F110: 5170 | G110: 10340 | H110: 山海新能-锦浪 | I110: 曲阜荣名库 | J110: 成都盛世中丰工程有限公司 | L110: 2023-08-14T09:11:15
A111: 109 | B111: 逆变器 | C111: 逆变器-15 | D111: 逆变器-15 | E111: 1 | F111: 3905 | G111: 3905 | H111: 山海新能-锦浪 | I111: 曲阜荣名库 | J111: 成都盛世中丰工程有限公司 | L111: 2023-08-14T09:11:15
A112: 110 | B112: 逆变器 | C112: 逆变器-20 | D112: 逆变器-20 | E112: 2 | F112: 4510 | G112: 9020 | H112: 山海新能-锦浪 | I112: 曲阜荣名库 | J112: 成都盛世中丰工程有限公司 | L112: 2023-08-14T09:11:15
A113: 111 | B113: 逆变器 | C113: 逆变器-30 | D113: 逆变器-30 | E113: 1 | F113: 7700 | G113: 7700 | H113: 山海新能-锦浪 | I113: 曲阜荣名库 | J113: 成都盛世中丰工程有限公司 | L113: 2023-08-17
A114: 112 | B114: 逆变器 | C114: 逆变器-25 | D114: 逆变器-25 | E114: 6 | F114: 5170 | G114: 31020 | H114: 山海新能-锦浪 | I114: 曲阜荣名库 | J114: 成都盛世中丰工程有限公司 | L114: 2023-08-17
A115: 113 | B115: 逆变器 | C115: 逆变器-20 | D115: 逆变器-20 | E115: 5 | F115: 4510 | G115: 22550 | H115: 山海新能-锦浪 | I115: 曲阜荣名库 | J115: 成都盛世中丰工程有限公司 | L115: 2023-08-17
A116: 114 | B116: 逆变器 | C116: 逆变器-15 | D116: 逆变器-15 | E116: 2 | F116: 3905 | G116: 7810 | H116: 山海新能-锦浪 | I116: 曲阜荣名库 | J116: 成都盛世中丰工程有限公司 | L116: 2023-08-17
A117: 115 | B117: 逆变器 | C117: 逆变器-25 | D117: 逆变器-25 | E117: 4 | F117: 5170 | G117: 20680 | H117: 山海新能-锦浪 | I117: 曲阜荣名库 | J117: 成都盛世中丰工程有限公司 | L117: 2023-08-23T16:48:39
A118: 116 | B118: 逆变器 | C118: 逆变器-20 | D118: 逆变器-20 | E118: 3 | F118: 4510 | G118: 13530 | H118: 山海新能-锦浪 | I118: 曲阜荣名库 | J118: 成都盛世中丰工程有限公司 | L118: 2023-08-23T16:48:39
A119: 117 | B119: 组件 | C119: 天合600 | D119: 天合600 | E119: 2 | F119: 1267 | G119: 2534 | H119: 山海智慧-天合 | I119: 曲阜荣名库 | J119: 报废库 | L119: 2023-08-23T16:52:03
A120: 118 | B120: 逆变器 | C120: 逆变器-25 | D120: 逆变器-25 | E120: 1 | F120: 5170 | G120: 5170 | H120: 山海新能-锦浪 | I120: 曲阜荣名库 | J120: 成都盛世中丰工程有限公司 | L120: 2023-08-28T16:28:01
A121: 119 | B121: 逆变器 | C121: 逆变器-20 | D121: 逆变器-20 | E121: 2 | F121: 4510 | G121: 9020 | H121: 山海新能-锦浪 | I121: 曲阜荣名库 | J121: 成都盛世中丰工程有限公司 | L121: 2023-08-28T16:28:01
A122: 120 | B122: 逆变器 | C122: 逆变器-25 | D122: 逆变器-25 | E122: 3 | F122: 5170 | G122: 15510 | H122: 山海新能-锦浪 | I122: 曲阜荣名库 | J122: 成都盛世中丰工程有限公司 | L122: 2023-08-29T08:43:44
A123: 121 | B123: 逆变器 | C123: 逆变器-25 | D123: 逆变器-25 | E123: 1 | F123: 5170 | G123: 5170 | H123: 山海新能-锦浪 | I123: 曲阜荣名库 | J123: 成都盛世中丰工程有限公司 | L123: 2023-08-31T14:12:48
A124: 122 | B124: 逆变器 | C124: 逆变器-20 | D124: 逆变器-20 | E124: 3 | F124: 4510 | G124: 13530 | H124: 山海新能-锦浪 | I124: 曲阜荣名库 | J124: 成都盛世中丰工程有限公司 | L124: 2023-08-31T14:12:48
A125: 123 | B125: 逆变器 | C125: 逆变器-15 | D125: 逆变器-15 | E125: 2 | F125: 3905 | G125: 7810 | H125: 山海新能-锦浪 | I125: 曲阜荣名库 | J125: 成都盛世中丰工程有限公司 | L125: 2023-08-31T14:12:48
A126: 124 | B126: 逆变器 | C126: 逆变器-20 | D126: 逆变器-20 | E126: 2 | F126: 4510 | G126: 9020 | H126: 山海新能-锦浪 | I126: 曲阜荣名库 | J126: 成都盛世中丰工程有限公司 | L126: 2023-09-04
A127: 125 | B127: 逆变器 | C127: 逆变器-15 | D127: 逆变器-15 | E127: 2 | F127: 3905 | G127: 7810 | H127: 锦浪 | I127: 曲阜荣名库 | J127: 成都盛世中丰工程有限公司 | L127: 2023-09-05
A128: 126 | B128: 逆变器 | C128: 逆变器-20 | D128: 逆变器-20 | E128: 7 | F128: 4510 | G128: 31570 | H128: 锦浪 | I128: 曲阜荣名库 | J128: 成都盛世中丰工程有限公司 | L128: 2023-09-05
A129: 127 | B129: 逆变器 | C129: 逆变器-25 | D129: 逆变器-25 | E129: 1 | F129: 5170 | G129: 5170 | H129: 锦浪 | I129: 曲阜荣名库 | J129: 成都盛世中丰工程有限公司 | L129: 2023-09-05
A130: 128 | B130: 逆变器 | C130: 逆变器-36 | D130: 逆变器-36 | E130: 5 | F130: 8525 | G130: 42625 | H130: 锦浪 | I130: 曲阜荣名库 | J130: 成都盛世中丰工程有限公司 | L130: 2023-09-13
A131: 129 | B131: 逆变器 | C131: 逆变器-25 | D131: 逆变器-25 | E131: 2 | F131: 5170 | G131: 10340 | H131: 锦浪 | I131: 曲阜荣名库 | J131: 成都盛世中丰工程有限公司 | L131: 2023-09-13
A132: 130 | B132: 逆变器 | C132: 逆变器-20 | D132: 逆变器-20 | E132: 1 | F132: 4510 | G132: 4510 | H132: 锦浪 | I132: 曲阜荣名库 | J132: 成都盛世中丰工程有限公司 | L132: 2023-09-13
A133: 131 | B133: 组件 | C133: 东方日升600 | D133: 东方日升600 | E133: 864 | F133: 1108.8 | G133: 958003.2 | H133: 东方日升 | I133: 曲阜荣名库 | J133: 成都盛世中丰工程有限公司 | L133: 2023-09-13
A134: 132 | B134: 组件 | C134: 东方日升600 | D134: 东方日升600 | E134: 32 | F134: 1108.8 | G134: 35481.6 | H134: 东方日升 | I134: 曲阜荣名库 | J134: 成都盛世中丰工程有限公司 | L134: 2023-09-15
A135: 133 | B135: 组件 | C135: 东方日升600 | D135: 东方日升600 | E135: 32 | F135: 1108.8 | G135: 35481.6 | H135: 东方日升 | I135: 曲阜荣名库 | J135: 成都盛世中丰工程有限公司 | L135: 2023-09-15
A136: 134 | B136: 组件 | C136: 东方日升600 | D136: 东方日升600 | E136: 32 | F136: 1108.8 | G136: 35481.6 | H136: 东方日升 | I136: 曲阜荣名库 | J136: 成都盛世中丰工程有限公司 | L136: 2023-09-15
A137: 135
A138: 136
A139: 137
A140: 138
A141: 139
A142: 140
A143: 141
A144: 142
A145: 143
A146: 144
